{"text_format":"1","workbook":"xlsx","n_sheets":6,"sheets":["定期報告書","マスタ","H25_H26","別表","様式","入力を始める前に"],"not_rendered":{"charts":0,"images":7,"macros":1,"external_links":0,"defined_names":55,"comments":1,"pivot_tables":0},"unopened":[],"bounds":{"document_bytes":16777216,"sheet_cells":100000,"rows_first":2000,"rows_last":500,"rows_between":2000,"halvings":0,"cell_chars":16384,"cell_head_chars":4096},"cells_cut":0,"cells_raw":0,"read":"whole","date_system":"1900"}

{"sheet":"定期報告書","index":0,"n_rows":396,"n_cols":142,"rows_kept":396,"cut":false,"hidden":false,"merged":[[311,3,311,42],[370,0,370,52],[379,0,379,52],[374,66,383,66],[275,31,275,52],[296,29,296,40],[294,5,294,8],[266,5,266,30],[274,9,274,15],[276,5,281,30],[274,16,274,52],[244,0,244,34],[241,35,241,52],[256,0,257,26],[265,16,265,52],[255,27,255,35],[257,27,257,52],[244,35,244,52],[243,35,243,52],[260,27,260,52],[261,0,261,26],[277,31,277,52],[363,43,363,52],[353,43,353,52],[353,0,353,42],[362,0,362,42],[362,43,362,52],[360,0,360,42],[356,43,356,52],[361,43,361,52],[360,43,360,52],[357,43,357,52],[120,54,120,58],[115,54,115,58],[116,54,116,58],[121,34,121,38],[123,39,123,43],[123,44,123,48],[123,49,123,53],[121,39,121,43],[279,31,279,52],[249,27,249,52],[248,0,248,26],[250,0,250,26],[250,27,250,52],[239,0,243,16],[255,45,255,52],[115,18,115,23],[209,29,209,33],[209,34,209,38],[230,35,230,52],[234,35,234,52],[226,17,226,34],[125,39,125,43],[125,44,125,48],[125,49,125,53],[125,54,125,58],[127,44,127,48],[127,49,127,53],[127,54,127,58],[129,44,129,48],[117,12,117,17],[115,49,115,53],[209,49,209,53],[208,34,208,38],[209,39,209,43],[209,44,209,48],[208,49,208,53],[210,29,210,33],[210,34,210,38],[209,54,209,58],[117,18,117,23],[115,34,115,38],[117,39,117,43],[207,44,207,48],[207,49,207,53],[208,39,208,43],[208,44,208,48],[208,54,208,58],[210,49,210,53],[121,24,121,28],[121,29,121,33],[117,49,117,53],[209,18,209,23],[209,24,209,28],[163,18,163,23],[120,49,120,53],[124,44,124,48],[168,44,168,48],[168,49,168,53],[117,54,117,58],[115,44,115,48],[120,39,120,43],[168,39,168,43],[167,24,167,28],[164,54,164,58],[208,6,208,10],[208,12,208,17],[208,18,208,23],[208,24,208,28],[208,29,208,33],[115,6,115,10],[115,12,115,17],[209,6,209,10],[209,12,209,17],[210,6,210,10],[119,24,119,28],[210,12,210,17],[210,18,210,23],[210,24,210,28],[119,54,119,58],[117,44,117,48],[123,54,123,58],[122,39,122,43],[210,39,210,43],[210,44,210,48],[207,6,207,10],[207,12,207,17],[207,18,207,23],[207,24,207,28],[207,29,207,33],[207,34,207,38],[206,54,206,58],[207,39,207,43],[116,44,116,48],[116,49,116,53],[207,54,207,58],[210,54,210,58],[205,6,205,10],[205,12,205,17],[205,18,205,23],[205,24,205,28],[205,29,205,33],[205,34,205,38],[205,39,205,43],[205,44,205,48],[205,49,205,53],[205,54,205,58],[206,6,206,10],[206,12,206,17],[206,18,206,23],[206,24,206,28],[206,29,206,33],[206,34,206,38],[206,39,206,43],[206,44,206,48],[206,49,206,53],[203,6,203,10],[203,12,203,17],[203,18,203,23],[203,24,203,28],[203,29,203,33],[203,34,203,38],[203,39,203,43],[203,44,203,48],[203,49,203,53],[203,54,203,58],[204,6,204,10],[204,12,204,17],[204,18,204,23],[204,24,204,28],[204,29,204,33],[204,34,204,38],[204,39,204,43],[204,44,204,48],[204,49,204,53],[204,54,204,58],[201,6,201,10],[201,12,201,17],[201,18,201,23],[201,24,201,28],[201,29,201,33],[201,34,201,38],[201,39,201,43],[201,44,201,48],[201,49,201,53],[201,54,201,58],[202,6,202,10],[202,12,202,17],[202,18,202,23],[202,24,202,28],[202,29,202,33],[202,34,202,38],[202,39,202,43],[202,44,202,48],[202,49,202,53],[202,54,202,58],[199,6,199,10],[199,12,199,17],[199,18,199,23],[199,24,199,28],[199,29,199,33],[199,34,199,38],[199,39,199,43],[199,44,199,48],[199,49,199,53],[199,54,199,58],[200,6,200,10],[200,12,200,17],[200,18,200,23],[200,24,200,28],[200,29,200,33],[200,34,200,38],[200,39,200,43],[200,44,200,48],[200,49,200,53],[200,54,200,58],[197,6,197,10],[197,12,197,17],[197,18,197,23],[197,24,197,28],[197,29,197,33],[197,34,197,38],[197,39,197,43],[197,44,197,48],[197,49,197,53],[197,54,197,58],[198,6,198,10],[198,12,198,17],[198,18,198,23],[198,24,198,28],[198,29,198,33],[198,34,198,38],[198,39,198,43],[198,44,198,48],[198,49,198,53],[198,54,198,58],[195,6,195,10],[195,12,195,17],[195,18,195,23],[195,24,195,28],[195,29,195,33],[195,34,195,38],[195,39,195,43],[195,44,195,48],[195,49,195,53],[195,54,195,58],[196,6,196,10],[196,12,196,17],[196,18,196,23],[196,24,196,28],[196,29,196,33],[196,34,196,38],[196,39,196,43],[196,44,196,48],[196,49,196,53],[196,54,196,58],[193,6,193,10],[193,12,193,17],[193,18,193,23],[193,24,193,28],[193,29,193,33],[193,34,193,38],[193,39,193,43],[193,44,193,48],[193,49,193,53],[193,54,193,58],[194,6,194,10],[194,12,194,17],[194,18,194,23],[194,24,194,28],[194,29,194,33],[194,34,194,38],[194,39,194,43],[194,44,194,48],[194,49,194,53],[194,54,194,58],[191,6,191,10],[191,12,191,17],[191,18,191,23],[191,24,191,28],[191,29,191,33],[191,34,191,38],[191,39,191,43],[191,44,191,48],[191,49,191,53],[191,54,191,58],[192,6,192,10],[192,12,192,17],[192,18,192,23],[192,24,192,28],[192,29,192,33],[192,34,192,38],[192,39,192,43],[192,44,192,48],[192,49,192,53],[192,54,192,58],[189,6,189,10],[189,12,189,17],[189,18,189,23],[189,24,189,28],[189,29,189,33],[189,34,189,38],[189,39,189,43],[189,44,189,48],[189,49,189,53],[189,54,189,58],[190,6,190,10],[190,12,190,17],[190,18,190,23],[190,24,190,28],[190,29,190,33],[190,34,190,38],[190,39,190,43],[190,44,190,48],[190,49,190,53],[190,54,190,58],[187,6,187,10],[187,12,187,17],[187,18,187,23],[187,24,187,28],[187,29,187,33],[187,34,187,38],[187,39,187,43],[187,44,187,48],[187,49,187,53],[187,54,187,58],[188,6,188,10],[188,12,188,17],[188,18,188,23],[188,24,188,28],[188,29,188,33],[188,34,188,38],[188,39,188,43],[188,44,188,48],[188,49,188,53],[188,54,188,58],[185,6,185,10],[185,12,185,17],[185,18,185,23],[185,24,185,28],[185,29,185,33],[185,34,185,38],[185,39,185,43],[185,44,185,48],[185,49,185,53],[185,54,185,58],[186,6,186,10],[186,12,186,17],[186,18,186,23],[186,24,186,28],[186,29,186,33],[186,34,186,38],[186,39,186,43],[186,44,186,48],[186,49,186,53],[186,54,186,58],[183,6,183,10],[183,12,183,17],[183,18,183,23],[183,24,183,28],[183,29,183,33],[183,34,183,38],[183,39,183,43],[183,44,183,48],[183,49,183,53],[183,54,183,58],[184,6,184,10],[184,12,184,17],[184,18,184,23],[184,24,184,28],[184,29,184,33],[184,34,184,38],[184,39,184,43],[184,44,184,48],[184,49,184,53],[184,54,184,58],[181,6,181,10],[181,12,181,17],[181,18,181,23],[181,24,181,28],[181,29,181,33],[181,34,181,38],[181,39,181,43],[181,44,181,48],[181,49,181,53],[181,54,181,58],[182,6,182,10],[182,12,182,17],[182,18,182,23],[182,24,182,28],[182,29,182,33],[182,34,182,38],[182,39,182,43],[182,44,182,48],[182,49,182,53],[182,54,182,58],[179,6,179,10],[179,12,179,17],[179,18,179,23],[179,24,179,28],[179,29,179,33],[179,34,179,38],[179,39,179,43],[179,44,179,48],[179,49,179,53],[179,54,179,58],[180,6,180,10],[180,12,180,17],[180,18,180,23],[180,24,180,28],[180,29,180,33],[180,34,180,38],[180,39,180,43],[180,44,180,48],[180,49,180,53],[180,54,180,58],[177,6,177,10],[177,12,177,17],[177,18,177,23],[177,24,177,28],[177,29,177,33],[177,34,177,38],[177,39,177,43],[177,44,177,48],[177,49,177,53],[177,54,177,58],[178,6,178,10],[178,12,178,17],[178,18,178,23],[178,24,178,28],[178,29,178,33],[178,34,178,38],[178,39,178,43],[178,44,178,48],[178,49,178,53],[178,54,178,58],[175,6,175,10],[175,12,175,17],[175,18,175,23],[175,24,175,28],[175,29,175,33],[175,34,175,38],[175,39,175,43],[175,44,175,48],[175,49,175,53],[175,54,175,58],[176,6,176,10],[176,12,176,17],[176,18,176,23],[176,24,176,28],[176,29,176,33],[176,34,176,38],[176,39,176,43],[176,44,176,48],[176,49,176,53],[176,54,176,58],[173,6,173,10],[173,12,173,17],[173,18,173,23],[173,24,173,28],[173,29,173,33],[173,34,173,38],[173,39,173,43],[173,44,173,48],[173,49,173,53],[173,54,173,58],[174,6,174,10],[174,12,174,17],[174,18,174,23],[174,24,174,28],[174,29,174,33],[174,34,174,38],[174,39,174,43],[174,44,174,48],[174,49,174,53],[174,54,174,58],[171,6,171,10],[171,12,171,17],[171,18,171,23],[171,24,171,28],[171,29,171,33],[171,34,171,38],[171,39,171,43],[171,44,171,48],[171,49,171,53],[171,54,171,58],[172,6,172,10],[172,12,172,17],[172,18,172,23],[172,24,172,28],[172,29,172,33],[172,34,172,38],[172,39,172,43],[172,44,172,48],[172,49,172,53],[172,54,172,58],[238,35,238,52],[247,0,247,26],[166,6,166,10],[166,12,166,17],[166,18,166,23],[166,24,166,28],[168,54,168,58],[169,6,169,10],[169,12,169,17],[169,18,169,23],[169,24,169,28],[169,29,169,33],[169,34,169,38],[169,39,169,43],[169,44,169,48],[169,49,169,53],[169,54,169,58],[170,6,170,10],[170,12,170,17],[170,18,170,23],[170,24,170,28],[170,29,170,33],[170,34,170,38],[170,39,170,43],[170,44,170,48],[170,49,170,53],[170,54,170,58],[168,12,168,17],[168,18,168,23],[168,24,168,28],[168,29,168,33],[168,34,168,38],[239,35,239,52],[240,17,240,34],[240,35,240,52],[249,0,249,26],[247,27,247,52],[242,35,242,52],[255,36,255,44],[258,27,258,52],[255,9,255,17],[248,27,248,52],[256,27,256,52],[258,0,258,26],[253,0,253,52],[243,17,243,34],[242,17,242,34],[254,45,254,52],[239,17,239,34],[29,66,34,66],[111,34,114,38],[211,39,211,43],[211,18,211,23],[211,24,211,28],[211,29,211,33],[211,49,211,53],[102,17,102,34],[85,35,85,52],[336,3,336,42],[344,0,344,42],[344,43,344,52],[342,43,342,52],[295,23,295,52],[332,43,332,52],[331,3,331,42],[296,5,296,16],[312,3,312,42],[333,3,333,42],[294,9,294,15],[295,5,295,22],[293,5,293,32],[292,17,292,28],[289,33,289,52],[284,13,284,52],[291,23,291,52],[292,29,292,40],[292,41,292,52],[290,5,290,8],[312,43,312,52],[319,0,322,2],[317,3,317,42],[395,3,395,52],[385,3,385,52],[386,3,386,52],[387,3,387,52],[388,3,388,52],[384,3,384,52],[391,3,391,52],[393,3,393,52],[392,3,392,52],[355,43,355,52],[324,3,324,42],[389,3,389,52],[390,3,390,52],[339,3,339,42],[347,3,347,42],[346,3,346,42],[346,43,346,52],[334,3,334,42],[383,3,383,52],[355,0,355,42],[341,0,343,2],[345,0,349,2],[343,3,343,42],[350,0,350,42],[328,0,339,2],[328,43,328,52],[333,43,333,52],[338,3,338,42],[339,43,339,52],[337,43,337,52],[394,3,394,52],[367,0,367,52],[364,43,364,52],[347,43,347,52],[348,3,348,42],[382,3,382,52],[364,3,364,42],[373,0,373,52],[351,3,351,42],[351,43,351,52],[363,0,364,2],[363,3,363,42],[366,0,366,52],[356,3,356,42],[376,0,376,16],[341,3,341,42],[341,43,341,52],[342,3,342,42],[329,43,329,52],[330,3,330,42],[330,43,330,52],[361,3,361,42],[358,43,358,52],[357,0,357,42],[358,3,358,42],[361,0,361,2],[359,43,359,52],[343,43,343,52],[348,43,348,52],[349,3,349,42],[340,0,340,42],[345,43,345,52],[340,43,340,52],[349,43,349,52],[345,3,345,42],[350,43,350,52],[358,0,359,2],[352,3,352,42],[352,43,352,52],[351,0,352,2],[359,3,359,42],[354,0,354,2],[354,3,354,42],[338,43,338,52],[354,43,354,52],[356,0,356,2],[337,3,337,42],[324,43,324,52],[325,3,325,42],[325,43,325,52],[326,3,326,42],[327,43,327,52],[331,43,331,52],[327,0,327,42],[329,3,329,42],[326,43,326,52],[328,3,328,42],[317,43,317,52],[315,3,315,42],[318,43,318,52],[324,0,326,2],[334,43,334,52],[315,43,315,52],[316,3,316,42],[305,43,305,52],[308,43,308,52],[314,0,314,42],[315,0,317,2],[314,43,314,52],[308,3,308,42],[336,43,336,52],[335,3,335,42],[290,9,290,15],[290,16,290,52],[335,43,335,52],[320,3,320,42],[323,43,323,52],[322,3,322,42],[322,43,322,52],[321,3,321,42],[313,3,313,42],[313,43,313,52],[304,0,313,2],[307,3,307,42],[316,43,316,52],[320,43,320,52],[319,3,319,42],[319,43,319,52],[318,0,318,42],[307,43,307,52],[321,43,321,52],[323,0,323,42],[332,3,332,42],[285,13,285,32],[284,0,285,12],[287,0,287,12],[287,13,287,32],[288,0,288,12],[301,43,301,52],[301,0,302,2],[301,3,301,42],[304,3,304,42],[302,3,302,42],[296,41,296,52],[310,3,310,42],[294,16,294,52],[303,43,303,52],[304,43,304,52],[310,43,310,52],[292,5,292,16],[305,3,305,42],[303,0,303,42],[306,43,306,52],[306,3,306,42],[289,0,292,4],[296,17,296,28],[291,5,291,22],[293,33,293,52],[293,0,296,4],[299,0,299,42],[299,43,299,52],[300,0,300,42],[300,43,300,52],[302,43,302,52],[309,3,309,42],[53,21,53,28],[281,31,281,52],[278,31,278,52],[269,31,269,52],[261,27,261,52],[82,0,82,34],[266,31,266,52],[273,5,273,30],[276,31,276,52],[267,5,272,30],[273,31,273,52],[275,5,275,30],[267,31,267,52],[268,31,268,52],[289,5,289,32],[288,13,288,32],[287,33,287,52],[286,0,286,12],[272,31,272,52],[273,0,281,4],[288,33,288,52],[283,0,283,52],[285,33,285,52],[264,0,272,4],[163,0,210,5],[163,6,163,10],[163,12,163,17],[110,11,114,11],[38,1,38,9],[52,29,52,36],[50,19,50,22],[52,0,54,12],[54,21,54,28],[39,37,39,52],[41,26,41,29],[52,45,52,52],[274,5,274,8],[280,31,280,52],[264,31,264,52],[271,31,271,52],[27,0,27,3],[27,5,27,6],[27,8,27,13],[37,26,37,28],[37,39,37,41],[53,29,53,36],[34,1,34,9],[41,30,41,50],[37,34,37,36],[49,0,49,12],[55,13,55,52],[54,29,54,36],[52,21,52,28],[37,1,37,9],[54,13,54,20],[35,1,35,9],[59,0,59,26],[237,17,237,34],[241,17,241,34],[237,35,237,52],[53,45,53,52],[53,13,53,20],[54,45,54,52],[52,37,52,44],[51,13,51,52],[39,30,39,36],[45,45,45,46],[50,23,50,24],[45,38,45,39],[50,13,50,18],[50,25,50,29],[50,0,51,12],[42,30,42,52],[45,47,45,52],[49,13,49,52],[39,26,39,29],[45,32,45,37],[50,30,50,52],[45,40,45,44],[45,26,45,31],[52,13,52,20],[55,0,55,12],[56,0,56,12],[59,27,59,52],[56,13,56,52],[73,0,73,13],[80,0,80,16],[80,17,80,25],[265,5,265,8],[265,9,265,15],[254,36,254,44],[254,9,254,17],[254,0,254,8],[259,0,259,26],[254,18,254,26],[254,27,254,35],[255,0,255,8],[255,18,255,26],[74,19,74,20],[74,22,74,26],[86,0,92,16],[86,17,86,34],[167,49,167,53],[168,6,168,10],[91,17,91,34],[107,0,107,34],[111,44,114,48],[104,35,104,52],[111,18,114,23],[105,17,105,34],[111,29,114,33],[107,35,107,52],[111,49,114,53],[67,14,67,26],[67,27,67,39],[67,40,67,52],[68,14,68,26],[63,27,63,52],[61,0,61,26],[61,27,61,52],[53,37,53,44],[70,40,70,52],[69,40,69,52],[70,14,70,26],[70,27,70,39],[69,0,70,13],[69,14,69,26],[54,37,54,44],[75,19,75,20],[75,22,75,26],[75,27,75,39],[75,40,75,45],[74,40,74,45],[74,14,74,18],[75,46,75,52],[63,0,63,26],[66,0,66,13],[68,27,68,39],[68,40,68,52],[74,46,74,52],[75,0,75,13],[75,14,75,18],[74,27,74,39],[74,0,74,13],[62,27,62,52],[110,66,114,66],[76,14,76,52],[79,35,79,52],[101,17,101,34],[101,35,101,52],[100,35,100,52],[85,17,85,34],[79,0,79,16],[88,17,88,34],[88,35,88,52],[111,54,114,58],[29,44,29,47],[31,0,31,52],[29,29,29,37],[29,42,29,43],[29,38,29,41],[73,27,73,39],[66,14,66,52],[36,1,36,9],[37,29,37,31],[29,48,29,49],[33,1,33,9],[82,35,82,52],[73,40,73,52],[73,14,73,26],[76,0,76,13],[79,17,79,34],[69,27,69,39],[62,0,62,26],[60,0,60,26],[60,27,60,52],[67,0,68,13],[80,26,80,34],[80,35,80,52],[85,0,85,16],[95,35,95,52],[96,17,96,34],[96,35,96,52],[97,17,97,34],[97,35,97,52],[98,17,98,34],[98,35,98,52],[99,17,99,34],[99,35,99,52],[100,17,100,34],[104,17,104,34],[103,17,103,34],[81,0,81,16],[81,17,81,25],[81,26,81,34],[81,35,81,52],[93,0,99,16],[93,17,93,34],[93,35,93,52],[102,35,102,52],[103,35,103,52],[110,18,110,58],[91,35,91,52],[92,17,92,34],[92,35,92,52],[110,6,114,10],[106,17,106,34],[106,35,106,52],[100,0,106,16],[86,35,86,52],[87,17,87,34],[87,35,87,52],[89,17,89,34],[89,35,89,52],[90,17,90,34],[90,35,90,52],[94,17,94,34],[94,35,94,52],[95,17,95,34],[110,0,114,5],[105,35,105,52],[111,39,114,43],[111,24,114,28],[110,12,114,17],[115,72,121,72],[116,6,116,10],[116,12,116,17],[116,18,116,23],[116,24,116,28],[116,29,116,33],[116,34,116,38],[116,39,116,43],[120,12,120,17],[120,18,120,23],[163,72,169,72],[164,39,164,43],[164,44,164,48],[164,49,164,53],[165,44,165,48],[165,49,165,53],[165,54,165,58],[167,44,167,48],[166,39,166,43],[166,34,166,38],[165,6,165,10],[163,54,163,58],[121,49,121,53],[121,54,121,58],[117,29,117,33],[117,34,117,38],[118,54,118,58],[115,39,115,43],[164,12,164,17],[163,34,163,38],[117,24,117,28],[118,6,118,10],[115,24,115,28],[115,29,115,33],[117,6,117,10],[167,54,167,58],[165,12,165,17],[165,18,165,23],[165,24,165,28],[165,29,165,33],[165,34,165,38],[166,44,166,48],[166,49,166,53],[166,54,166,58],[167,6,167,10],[167,12,167,17],[167,18,167,23],[120,6,120,10],[118,39,118,43],[118,44,118,48],[118,49,118,53],[118,24,118,28],[118,29,118,33]],"merged_total":1484,"flags":["merged_cut"]}
[null,null,null,null,null,null,null,null,null,null,null,null,null,null,null,null,null,null,null,null,null,null,null,null,null,null,null,null,null,null,null,null,null,null,null,null,null,null,null,null,null,null,null,null,null,null,null,null,null,null,null,null,null,null,null,null,null,null,"ｔ","肥料",null,null,null,1,1,"該当なし",null,"部分肉・冷凍肉製造業","肉加工品製造業","牛乳・乳製品製造業","その他の畜産食料品製造業","水産缶詰・瓶詰製造業","海藻加工業","塩干・塩蔵品製造業","水産練製品製造業","冷凍水産物製造業","冷凍水産食品製造業","その他の水産食料品製造業","野菜缶詰・果実缶詰・農産保存食料品製造業（野菜漬物を除く。）","野菜漬物製造業","しょうゆ製造業","味そ製造業","ソース製造業","食酢製造業","その他の調味料製造業","甘しゃ糖製造業","てん菜糖製造業","砂糖精製業","ぶどう糖・水あめ・異性化糖製造業","精米・精麦業","小麦粉製造業","その他の精穀・製粉業","パン製造業","菓子製造業","動植物油脂製造業（食用油脂加工業を除く。）","食用油脂加工業","でん粉製造業","麺類製造業","豆腐・油揚製造業","あん類製造業","冷凍調理食品製造業","そう菜製造業","すし・弁当・調理パン製造業","レトルト食品製造業","他に分類されない食料品製造業","清涼飲料製造業（茶、コーヒー、果汁など残さが出るものに限る。）","清涼飲料製造業（その他）","果実酒製造業","ビール類製造業","清酒製造業","単式蒸留焼酎製造業","蒸留酒・混成酒製造業（単式蒸留焼酎製造業を除く。）","製茶業","コーヒー製造業","米麦卸売業・雑穀卸売業","野菜卸売業・果実卸売業","生鮮魚介卸売業","食肉卸売業","その他の農畜産物・水産物卸売業","食料・飲料卸売業（飲料を中心とするものに限る。）","食料・飲料卸売業（飲料を中心とするものを除く。）","各種食料品小売業","野菜・果実小売業","食肉小売業（卵・鳥肉を除く。）","卵・鳥肉小売業","鮮魚小売業","酒小売業","菓子・パン小売業","コンビニエンスストア","その他の飲食料品小売業（コンビニエンスストアを除く。）","食堂・レストラン（麺類を中心とするものに限る。）","食堂・レストラン（麺類を中心とするものを除く。）","居酒屋等","喫茶店","ファーストフード店","その他の飲食店(ファーストフード店を除く。）","持ち帰り・配達飲食サービス業(給食事業を除く。)","給食事業","沿海旅客海運業","内陸水運業","結婚式場業","旅館業"]
[null,null,null,null,null,null,null,null,null,null,null,null,null,null,null,null,null,null,null,null,null,null,null,null,null,null,null,null,null,null,null,null,null,null,null,null,null,null,null,null,null,null,null,null,null,null,null,null,null,null,null,null,null,null,null,null,null,null,"m3","飼料",null,null,null,2,2]
[null,null,null,null,null,null,null,null,null,null,null,null,null,null,null,null,null,null,null,null,null,null,null,null,null,null,null,null,null,null,null,null,null,null,null,null,null,null,null,null,null,null,null,null,null,null,null,null,null,null,null,null,null,null,null,null,null,null,"m3N","きのこ類の栽培のために使用される固形状の培地",null,null,null,3,3]
[null,null,null,null,null,null,null,null,null,null,null,null,null,null,null,null,null,null,null,null,null,null,null,null,null,null,null,null,null,null,null,null,null,null,null,null,null,null,null,null,null,null,null,null,null,null,null,null,null,null,null,null,null,null,null,null,null,null,null,"炭化の過程を経て製造される燃料及び還元剤",null,null,null,4,4]
[null,null,null,null,null,null,null,null,null,null,null,null,null,null,null,null,null,null,null,null,null,null,null,null,null,null,null,null,null,null,null,null,null,null,null,null,null,null,null,null,null,null,null,null,null,null,null,null,null,null,null,null,null,null,null,null,null,null,null,"油脂及び油脂製品",null,null,null,5,5,null,null,null,"発生抑制の目標値一覧"]
[null,null,null,null,null,null,null,null,null,null,null,null,null,null,null,null,null,null,null,null,null,null,null,null,null,null,null,null,null,null,null,null,null,null,null,null,null,null,null,null,null,null,null,null,null,null,null,null,null,null,null,null,null,null,null,null,null,null,null,"エタノール",null,null,null,6,6,null,null,"KEY","業種","名称","単位","基準発生原単位（数値）","基準発生原単位（単位）"]
[null,null,null,null,null,null,null,null,null,null,null,null,null,null,null,null,null,null,null,null,null,null,null,null,null,null,null,null,null,null,null,null,null,null,null,null,null,null,null,null,null,null,null,null,null,null,null,null,null,null,null,null,null,null,null,null,null,null,null,"メタン",null,null,null,7,7,null,null,{"$f":"CONCATENATE(BQ7,\"||\",BR7,\"||\",BU7)","v":"肉加工品製造業||売上高||kg/百万円"},"肉加工品製造業","売上高","百万円",113,"kg/百万円"]
[null,null,null,null,null,null,null,null,null,null,null,null,null,null,null,null,null,null,null,null,null,null,null,null,null,null,null,null,null,null,null,null,null,null,null,null,null,null,null,null,null,null,null,null,null,null,null,null,null,null,null,null,null,null,null,null,null,null,null,null,null,null,null,8,8,null,null,"牛乳・乳製品製造業||売上高||kg/百万円","牛乳・乳製品製造業","売上高","百万円",101,"kg/百万円"]
[null,null,null,null,null,null,null,null,null,null,null,null,null,null,null,null,null,null,null,null,null,null,null,null,null,null,null,null,null,null,null,null,null,null,null,null,null,null,null,null,null,null,null,null,null,null,null,null,null,null,null,null,null,null,null,null,null,null,null,null,null,null,null,9,9,null,null,"水産缶詰・瓶詰製造業||売上高||kg/百万円","水産缶詰・瓶詰製造業","売上高","百万円",480,"kg/百万円"]
[null,null,null,null,null,null,null,null,null,null,null,null,null,null,null,null,null,null,null,null,null,null,null,null,null,null,null,null,null,null,null,null,null,null,null,null,null,null,null,null,null,null,null,null,null,null,null,null,null,null,null,null,null,null,null,null,null,null,null,null,null,null,null,10,10,null,null,"野菜漬物製造業||売上高||kg/百万円","野菜漬物製造業","売上高","百万円",571,"kg/百万円"]
[null,null,null,null,null,null,null,null,null,null,null,null,null,null,null,null,null,null,null,null,null,null,null,null,null,null,null,null,null,null,null,null,null,null,null,null,null,null,null,null,null,null,null,null,null,null,null,null,null,null,null,null,null,null,null,null,null,null,null,null,null,null,null,11,11,null,null,"味そ製造業||売上高||kg/百万円","味そ製造業","売上高","百万円",115,"kg/百万円"]
[null,null,null,null,null,null,null,null,null,null,null,null,null,null,null,null,null,null,null,null,null,null,null,null,null,null,null,null,null,null,null,null,null,null,null,null,null,null,null,null,null,null,null,null,null,null,null,null,null,null,null,null,null,null,null,null,null,null,null,null,null,null,null,12,12,null,null,"しょうゆ製造業||売上高||kg/百万円","しょうゆ製造業","売上高","百万円",895,"kg/百万円"]
[null,null,null,null,null,null,null,null,null,null,null,null,null,null,null,null,null,null,null,null,null,null,null,null,null,null,null,null,null,null,null,null,null,null,null,null,null,null,null,null,null,null,null,null,null,null,null,null,null,null,null,null,null,null,null,null,null,null,null,null,null,null,null,null,13,null,null,"ソース製造業||製造量||kg/t","ソース製造業","製造量","t",29.7,"kg/t"]
[null,null,null,null,null,null,null,null,null,null,null,null,null,null,null,null,null,null,null,null,null,null,null,null,null,null,null,null,null,null,null,null,null,null,null,null,null,null,null,null,null,null,null,null,null,null,null,null,null,null,null,null,null,null,null,null,null,null,null,null,null,null,null,null,14,null,null,"パン製造業||売上高||kg/百万円","パン製造業","売上高","百万円",165,"kg/百万円"]
[null,null,null,null,null,null,null,null,null,null,null,null,null,null,null,null,null,null,null,null,null,null,null,null,null,null,null,null,null,null,null,null,null,null,null,null,null,null,null,null,null,null,null,null,null,null,null,null,null,null,null,null,null,null,null,null,null,null,null,null,null,null,null,null,15,null,null,"麺類製造業||売上高||kg/百万円","麺類製造業","売上高","百万円",192,"kg/百万円"]
[null,null,null,null,null,null,null,null,null,null,null,null,null,null,null,null,null,null,null,null,null,null,null,null,null,null,null,null,null,null,null,null,null,null,null,null,null,null,null,null,null,null,null,null,null,null,null,null,null,null,null,null,null,null,null,null,null,null,null,null,null,null,null,null,16,null,null,"豆腐・油揚製造業||売上高||kg/百万円","豆腐・油揚製造業","売上高","百万円",2005,"kg/百万円"]
[null,null,null,null,null,null,null,null,null,null,null,null,null,null,null,null,null,null,null,null,null,null,null,null,null,null,null,null,null,null,null,null,null,null,null,null,null,null,null,null,null,null,null,null,null,null,null,null,null,null,null,null,null,null,null,null,null,null,null,null,null,null,null,null,17,null,null,"冷凍調理食品製造業||売上高||kg/百万円","冷凍調理食品製造業","売上高","百万円",317,"kg/百万円"]
[null,null,null,null,null,null,null,null,null,null,null,null,null,null,null,null,null,null,null,null,null,null,null,null,null,null,null,null,null,null,null,null,null,null,null,null,null,null,null,null,null,null,null,null,null,null,null,null,null,null,null,null,null,null,null,null,null,null,null,null,null,null,null,null,18,null,null,"そう菜製造業||売上高||kg/百万円","そう菜製造業","売上高","百万円",211,"kg/百万円"]
[null,null,null,null,null,null,null,null,null,null,null,null,null,null,null,null,null,null,null,null,null,null,null,null,null,null,null,null,null,null,null,null,null,null,null,null,null,null,null,null,null,null,null,null,null,null,null,null,null,null,null,null,null,null,null,null,null,null,null,null,null,null,null,null,19,null,null,"すし・弁当・調理パン製造業||売上高||kg/百万円","すし・弁当・調理パン製造業","売上高","百万円",177,"kg/百万円"]
[null,null,null,null,null,null,null,null,null,null,null,null,null,null,null,null,null,null,null,null,null,null,null,null,null,null,null,null,null,null,null,null,null,null,null,null,null,null,null,null,null,null,null,null,null,null,null,null,null,null,null,null,null,null,null,null,null,null,null,null,null,null,null,null,20,null,null,"食料・飲料卸売業（飲料を中心とするものに限る。）||売上高||kg/百万円","食料・飲料卸売業（飲料を中心とするものに限る。）","売上高","百万円",14.8,"kg/百万円"]
[null,null,null,null,null,null,null,null,null,null,null,null,null,null,null,null,null,null,null,null,null,null,null,null,null,null,null,null,null,null,null,null,null,null,null,null,null,null,null,null,null,null,null,null,null,null,null,null,null,null,null,null,null,null,null,null,null,null,null,null,null,null,null,null,21,null,null,{"$f":"CONCATENATE(BQ21,\"||\",BR21,\"||\",BU21)","v":"各種食料品小売業||売上高||kg/百万円"},"各種食料品小売業","売上高","百万円",41,"kg/百万円"]
[null,null,null,null,null,null,null,null,null,null,null,null,null,null,null,null,null,null,null,null,null,null,null,null,null,null,null,null,null,null,null,null,null,null,null,null,null,null,null,null,null,null,null,null,null,null,null,null,null,null,null,null,null,null,null,null,null,null,null,null,null,null,null,null,22,null,null,"菓子・パン小売業||売上高||kg/百万円","菓子・パン小売業","売上高","百万円",76.099999999999994,"kg/百万円"]
[null,null,null,null,null,null,null,null,null,null,null,null,null,null,null,null,null,null,null,null,null,null,null,null,null,null,null,null,null,null,null,null,null,null,null,null,null,null,null,null,null,null,null,null,null,null,null,null,null,null,null,null,null,null,null,null,null,null,null,null,null,null,null,null,23,null,null,"コンビニエンスストア||売上高||kg/百万円","コンビニエンスストア","売上高","百万円",41.8,"kg/百万円"]
[null,null,null,null,null,null,null,null,null,null,null,null,null,null,null,null,null,null,null,null,null,null,null,null,null,null,null,null,null,null,null,null,null,null,null,null,null,null,null,null,null,null,null,null,null,null,null,null,null,null,null,null,null,null,null,null,null,null,null,null,null,null,null,null,24,null,null,"食堂・レストラン（麺類を中心とするものに限る。）||売上高||kg/百万円","食堂・レストラン（麺類を中心とするものに限る。）","売上高","百万円",170,"kg/百万円"]
[null,null,null,null,null,null,null,null,null,null,null,null,null,null,null,null,null,null,null,null,null,null,null,null,null,null,null,null,null,null,null,null,null,null,null,null,null,null,null,null,null,null,null,null,null,null,null,null,null,null,null,null,null,null,null,null,null,null,null,null,null,null,null,null,25,null,null,"食堂・レストラン（麺類を中心とするものを除く。）||売上高||kg/百万円","食堂・レストラン（麺類を中心とするものを除く。）","売上高","百万円",114,"kg/百万円"]
[null,null,null,null,null,null,null,null,null,null,null,null,null,null,null,null,null,null,null,null,null,null,null,null,null,null,null,null,null,null,null,null,null,null,null,null,null,null,null,null,null,null,null,null,null,null,null,null,null,null,null,null,null,null,null,null,null,null,null,null,null,null,null,null,26,null,null,"居酒屋等||売上高||kg/百万円","居酒屋等","売上高","百万円",114,"kg/百万円"]
[null,null,null,null,null,null,null,null,null,null,null,null,null,null,null,null,null,null,null,null,null,null,null,null,null,null,null,null,null,null,null,null,null,null,null,null,null,null,null,null,null,null,null,null,null,null,null,null,null,null,null,null,null,null,null,null,null,null,null,null,null,null,null,null,27,null,null,"喫茶店||売上高||kg/百万円","喫茶店","売上高","百万円",83.3,"kg/百万円"]
["",null,null,null,"-","",null,"-","",null,null,null,null,null,null,null,null,null,null,null,null,null,null,null,null,null,null,null,null,null,null,null,null,null,null,null,null,null,null,null,null,null,null,null,null,null,"Ver.",null,null,null,null,null,"06.1",null,null,null,null,null,null,null,null,null,null,null,28,null,"Rel.1","ファーストフード店||売上高||kg/百万円","ファーストフード店","売上高","百万円",83.3,"kg/百万円"]
["別記様式（第１条関係）",null,null,null,null,null,null,null,null,null,null,null,null,null,null,null,null,null,null,null,null,null,null,null,null,null,null,null,null,null,null,null,null,null,null,null,null,null,null,null,null,null,null,null,null,null,null,null,null,null,null,null,null,null,null,null,null,null,null,null,null,null,null,null,29,"入力注意事項",null,"その他の飲食店(ファーストフード店を除く。）||売上高||kg/百万円","その他の飲食店(ファーストフード店を除く。）","売上高","百万円",83.3,"kg/百万円"]
[null,null,null,null,null,null,null,null,null,null,null,null,null,null,null,null,null,null,null,null,null,null,null,null,null,null,null,null,null,"※受理年月日",null,null,null,null,null,null,null,null,null,null,null,null,"月",null,null,null,null,null,"日",null,null,null,null,null,null,null,null,null,null,"t1",null,null,null,null,30,"・表１から表17までの入力が完了したら、必ず左上の【最終チェック】ボタンを押下し、エラーが有った場合は適宜修正する。\nエラーが無くなるまで最終チェックを繰り返す。",null,"持ち帰り・配達飲食サービス業(給食事業を除く。)||売上高||kg/百万円","持ち帰り・配達飲食サービス業(給食事業を除く。)","売上高","百万円",141,"kg/百万円"]
[null,null,null,null,null,null,null,null,null,null,null,null,null,null,null,null,null,null,null,null,null,null,null,null,null,null,null,null,null,null,null,null,null,null,null,null,null,null,null,null,null,null,null,null,null,null,null,null,null,null,null,null,null,null,null,null,null,null,null,null,null,null,null,null,31,null,null,"結婚式場業||客数||kg/人","結婚式場業","客数","人",0.82599999999999996,"kg/人"]
["定 期 報 告 書",null,null,null,null,null,null,null,null,null,null,null,null,null,null,null,null,null,null,null,null,null,null,null,null,null,null,null,null,null,null,null,null,null,null,null,null,null,null,null,null,null,null,null,null,null,null,null,null,null,null,null,null,null,null,null,null,null,null,null,null,null,null,null,null,null,null,"旅館業||客数||kg/人","旅館業","客数","人",0.56999999999999995,"kg/人"]
[null,null,null,null,null,null,null,null,null,null,null,null,null,null,null,null,null,null,null,null,null,null,null,null,null,null,null,null,null,null,null,null,null,null,null,null,null,null,null,null,null,null,null,null,null,null,null,null,null,null,null,null,null,null,null,null,null,null,null,null,null,null,null,null,null,null,null,"その他の畜産食料品製造業||製造量||kg/t","その他の畜産食料品製造業","製造量","t",501,"kg/t"]
[null,"農林水産大臣",null,null,null,null,null,null,null,null,"殿",null,null,null,null,null,null,null,null,null,null,null,null,null,null,null,null,null,null,null,null,null,null,null,null,null,null,null,null,null,null,null,null,null,null,null,null,null,null,null,null,null,null,null,null,null,null,null,null,"t2-1",null,null,null,null,null,null,null,"食酢製造業||売上高||kg/百万円","食酢製造業","売上高","百万円",155,"kg/百万円"]
[null,"環境大臣",null,null,null,null,null,null,null,null,"殿",null,null,null,null,null,null,null,null,null,null,null,null,null,null,null,null,null,null,null,null,null,null,null,null,null,null,null,null,null,null,null,null,null,null,null,null,null,null,null,null,null,null,null,null,null,null,null,null,"t2-2",null,null,null,null,null,null,null,"菓子製造業||売上高||kg/百万円","菓子製造業","売上高","百万円",249,"kg/百万円"]
[null,null,null,null,null,null,null,null,null,null,"殿",null,null,null,null,null,null,null,null,null,null,null,null,null,null,null,null,null,null,null,null,null,null,null,null,null,null,null,null,null,null,null,null,null,null,null,null,null,null,null,null,null,null,null,null,null,null,null,null,"t2-3",null,null,null,null,null,null,null,"清涼飲料製造業（茶、コーヒー、果汁など残さが出るものに限る。）||製造量||kg/t","清涼飲料製造業（茶、コーヒー、果汁など残さが出るものに限る。）","製造量","t",429,"kg/t"]
[null,null,null,null,null,null,null,null,null,null,"殿",null,null,null,null,null,null,null,null,null,null,null,null,null,null,null,null,null,null,null,null,null,null,null,null,null,null,null,null,null,null,null,null,null,null,null,null,null,null,null,null,null,null,null,null,null,null,null,null,"t2-4",null,null,null,null,null,null,null,"清涼飲料製造業（茶、コーヒー、果汁など残さが出るものに限る。）||製造数量||kg/kl","清涼飲料製造業（茶、コーヒー、果汁など残さが出るものに限る。）","製造数量","kl",421,"kg/kl"]
[null,null,null,null,null,null,null,null,null,null,"殿",null,null,null,null,null,null,null,null,null,null,null,null,null,null,null,"令和",null,null,null,null,null,"年",null,null,null,null,"月",null,null,null,null,"日",null,null,null,null,null,null,null,null,null,null,null,null,null,null,null,null,"t2-5",null,null,null,null,null,null,null,"給食事業||売上高||kg/百万円","給食事業","売上高","百万円",278,"kg/百万円"]
[null,null,null,null,null,null,null,null,null,null,"殿",null,null,null,null,null,null,null,null,null,null,null,null,null,null,null,null,null,null,null,null,null,null,null,null,null,null,null,null,null,null,null,null,null,null,null,null,null,null,null,null,null,null,null,null,null,null,null,null,"t2-6",null,null,null,null,null,null,null,"水産練製品製造業||売上高||kg/百万円","水産練製品製造業","売上高","百万円",227,"kg/百万円"]
[null,null,null,null,null,null,null,null,null,null,null,null,null,null,null,null,null,null,null,null,null,null,null,null,null,null,"住 所",null,null,null,null,null,null,null,null,null,null,null,null,null,null,null,null,null,null,null,null,null,null,null,null,null,null,null,null,null,null,null,null,"t3",null,null,null,null,null,"以下、農政局用備考欄",null,"食用油脂加工業||製造量||kg/t","食用油脂加工業","製造量","t",44.7,"kg/t"]
[null,null,null,null,null,null,null,null,null,null,null,null,null,null,null,null,null,null,null,null,null,null,null,null,null,null,null,null,null,null,null,null,null,null,null,null,null,null,null,null,null,null,null,null,null,null,null,null,null,null,null,null,null,null,null,null,null,null,null,null,null,null,null,null,null,null,null,"食肉小売業（卵・鳥肉を除く。）||売上高||kg/百万円","食肉小売業（卵・鳥肉を除く。）","売上高","百万円",28.3,"kg/百万円"]
[null,null,null,null,null,null,null,null,null,null,null,null,null,null,null,null,null,null,null,null,null,null,null,null,null,null,"氏 名",null,null,null,null,null,null,null,null,null,null,null,null,null,null,null,null,null,null,null,null,null,null,null,null,null,null,null,null,null,null,null,null,"t4",null,null,null,null,null,null,null,"レトルト食品製造業||売上高||kg/百万円","レトルト食品製造業","売上高","百万円",127,"kg/百万円"]
[]
[null,null,null,null,null,null,null,null,null,null,null,null,null,null,null,null,null,null,null,null,null,null,null,null,null,null,"（法人にあっては名称及び代表者の氏名）"]
[]
[null,null,null,null,null,null,null,null,null,null,null,null,null,null,null,null,null,null,null,null,null,null,null,null,null,null,"電話番号",null,null,null,null,null,null,null,null,null,null,null,"－",null,null,null,null,null,null,"－",null,null,null,null,null,null,null,null,null,null,null,null,null,"t5"]
[]
["　食品循環資源の再生利用等の促進に関する法律第９条の規定に基づき、次のとおり報告します。"]
[]
["事業者名",null,null,null,null,null,null,null,null,null,null,null,null,{"$f":"IF(AE42=\"\",\"\",AE42)","v":""},null,null,null,null,null,null,null,null,null,null,null,null,null,null,null,null,null,null,null,null,null,null,null,null,null,null,null,null,null,null,null,null,null,null,null,null,null,null,null,null,null,null,null,null,null,"t6"]
["住所",null,null,null,null,null,null,null,null,null,null,null,null,"郵便番号",null,null,null,null,null,null,null,null,null,"－",null,null,null,null,null,null,null,null,null,null,null,null,null,null,null,null,null,null,null,null,null,null,null,null,null,null,null,null,null,null,null,null,null,null,null,"t7"]
[null,null,null,null,null,null,null,null,null,null,null,null,null,{"$f":"IF(AE40=\"\",\"\",AE40)&IF(AL40=\"\",\"\",AL40)","v":""},null,null,null,null,null,null,null,null,null,null,null,null,null,null,null,null,null,null,null,null,null,null,null,null,null,null,null,null,null,null,null,null,null,null,null,null,null,null,null,null,null,null,null,null,null,"t8"]
["業種",null,null,null,null,null,null,null,null,null,null,null,null,null,null,null,null,null,null,null,null,null,null,null,null,null,null,null,null,null,null,null,null,null,null,null,null,null,null,null,null,null,null,null,null,null,null,null,null,null,null,null,null,null,null,null,null,null,null,"t9"]
[null,null,null,null,null,null,null,null,null,null,null,null,null,null,null,null,null,null,null,null,null,null,null,null,null,null,null,null,null,null,null,null,null,null,null,null,null,null,null,null,null,null,null,null,null,null,null,null,null,null,null,null,null,null,null,null,null,null,null,"t9"]
[null,null,null,null,null,null,null,null,null,null,null,null,null,null,null,null,null,null,null,null,null,null,null,null,null,null,null,null,null,null,null,null,null,null,null,null,null,null,null,null,null,null,null,null,null,null,null,null,null,null,null,null,null,null,null,null,null,null,null,"t9"]
["法第９条第２項に規定\nする事業の有無",null,null,null,null,null,null,null,null,null,null,null,null,null,null,null,null,null,null,null,null,null,null,null,null,null,null,null,null,null,null,null,null,null,null,null,null,null,null,null,null,null,null,null,null,null,null,null,null,null,null,null,null,null,null,null,null,null,null,"t10"]
["報告書作成\n責任者氏名",null,null,null,null,null,null,null,null,null,null,null,null,null,null,null,null,null,null,null,null,null,null,null,null,null,null,null,null,null,null,null,null,null,null,null,null,null,null,null,null,null,null,null,null,null,null,null,null,null,null,null,null,null,null,null,null,null,null,"t11"]
[]
["表１　食品廃棄物等の発生量（①＝⑥＋⑦＋⑧＋⑨＋⑩）"]
["業種",null,null,null,null,null,null,null,null,null,null,null,null,null,null,null,null,null,null,null,null,null,null,null,null,null,null,"発生量（ｔ）"]
[null,null,null,null,null,null,null,null,null,null,null,null,null,null,null,null,null,null,null,null,null,null,null,null,null,null,null,null,null,null,null,null,null,null,null,null,null,null,null,null,null,null,null,null,null,null,null,null,null,null,null,null,null,null,null,null,null,null,null,"h1-1"]
[null,null,null,null,null,null,null,null,null,null,null,null,null,null,null,null,null,null,null,null,null,null,null,null,null,null,null,null,null,null,null,null,null,null,null,null,null,null,null,null,null,null,null,null,null,null,null,null,null,null,null,null,null,null,null,null,null,null,null,"h1-1"]
["合計",null,null,null,null,null,null,null,null,null,null,null,null,null,null,null,null,null,null,null,null,null,null,null,null,null,null,{"$f":"SUM(AB61:BA62)","v":0},null,null,null,null,null,null,null,null,null,null,null,null,null,null,null,null,null,null,null,null,null,null,null,null,null,null,null,null,null,null,null,"h1-2"]
["発生量の把握方法",null,null,null,null,null,null,null,null,null,null,null,null,null,null,null,null,null,null,null,null,null,null,null,null,null,null,null,null,null,null,null,null,null,null,null,null,null,null,null,null,null,null,null,null,null,null,null,null,null,null,null,null,null,null,null,null,null,null,"h1-3"]
[]
["表２　食品廃棄物等の発生量と密接な関係をもつ値（②）"]
["業種",null,null,null,null,null,null,null,null,null,null,null,null,null,"売上高、製造数量等"]
[null,null,null,null,null,null,null,null,null,null,null,null,null,null,"名称",null,null,null,null,null,null,null,null,null,null,null,null,"単位",null,null,null,null,null,null,null,null,null,null,null,null,"値"]
[null,null,null,null,null,null,null,null,null,null,null,null,null,null,"売上高",null,null,null,null,null,null,null,null,null,null,null,null,"百万円",null,null,null,null,null,null,null,null,null,null,null,null,null,null,null,null,null,null,null,null,null,null,null,null,null,null,null,null,null,null,null,"h2-1"]
[null,null,null,null,null,null,null,null,null,null,null,null,null,null,"名称",null,null,null,null,null,null,null,null,null,null,null,null,"単位",null,null,null,null,null,null,null,null,null,null,null,null,"値"]
[null,null,null,null,null,null,null,null,null,null,null,null,null,null,"売上高",null,null,null,null,null,null,null,null,null,null,null,null,"百万円",null,null,null,null,null,null,null,null,null,null,null,null,null,null,null,null,null,null,null,null,null,null,null,null,null,null,null,null,null,null,null,"h2-1"]
[null,null,null,null,null,null,null,null,null,null,null,null,null,null,null,null,null,null,null,null,null,null,null,null,null,null,null,null,null,null,null,null,null,null,null,null,null,null,null,null,null,null,null,null,null,null,null,null,null,null,null,null,null,null,null,null,null,null,null,"h2-2"]
["表３　食品廃棄物等の発生原単位（③＝①÷②）"]
["業種",null,null,null,null,null,null,null,null,null,null,null,null,null,"発生原単位",null,null,null,null,null,null,null,null,null,null,null,null,"対前年度比（％）",null,null,null,null,null,null,null,null,null,null,null,null,"基準発生原単位"]
[null,null,null,null,null,null,null,null,null,null,null,null,null,null,{"$f":"IF(AO69=\"\",\"\",ROUND((AB61*1000/AO69),5))","v":""},null,null,null,null,{"$f":"IF(O69=\"\",\"\",\"kg\")","v":"kg"},null,{"$f":"IF(O69=\"\",\"\",\"/\")","v":"/"},{"$f":"IF(AB69=\"\",\"\",AB69)","v":"百万円"},null,null,null,null,null,null,null,null,null,null,null,null,null,null,null,null,null,{"$f":"IF(O75=\"\",\"\",IF(ISERROR(BL75),\"\",BL75))","v":""},null,null,null,null,null,{"$f":"IF(O75=\"\",\"\",IF(ISERROR(BM75),\"該当なし\",BM75))","v":""},null,null,null,null,null,null,null,null,null,null,null,null,"h3-1",null,null,{"$f":"IF(O69=\"\",\"\",O69)","v":"売上高"},{"$f":"VLOOKUP(CONCATENATE($A75,\"||\",$BK75,\"||\",LOWER(TRIM(ASC($T75))),LOWER(TRIM(ASC($V75))),LOWER(TRIM(ASC($W75)))),$BP$7:$BU$42,5,FALSE)","v":{"$error":"#N/A"}},{"$f":"VLOOKUP(CONCATENATE($A75,\"||\",$BK75,\"||\",LOWER(TRIM(ASC($T75))),LOWER(TRIM(ASC($V75))),LOWER(TRIM(ASC($W75)))),$BP$7:$BU$42,6,FALSE)","v":{"$error":"#N/A"}}]
[null,null,null,null,null,null,null,null,null,null,null,null,null,null,{"$f":"IF(AO71=\"\",\"\",ROUND((AB62*1000/AO71),5))","v":""},null,null,null,null,{"$f":"IF(O71=\"\",\"\",\"kg\")","v":"kg"},null,{"$f":"IF(O71=\"\",\"\",\"/\")","v":"/"},{"$f":"IF(AB71=\"\",\"\",AB71)","v":"百万円"},null,null,null,null,null,null,null,null,null,null,null,null,null,null,null,null,null,{"$f":"IF(O76=\"\",\"\",IF(ISERROR(BL76),\"\",BL76))","v":""},null,null,null,null,null,{"$f":"IF(O76=\"\",\"\",IF(ISERROR(BM76),\"該当なし\",BM76))","v":""},null,null,null,null,null,null,null,null,null,null,null,null,"h3-1",null,null,{"$f":"IF(O71=\"\",\"\",O71)","v":"売上高"},{"$f":"VLOOKUP(CONCATENATE($A76,\"||\",$BK76,\"||\",LOWER(TRIM(ASC($T76))),LOWER(TRIM(ASC($V76))),LOWER(TRIM(ASC($W76)))),$BP$7:$BU$42,5,FALSE)","v":{"$error":"#N/A"}},{"$f":"VLOOKUP(CONCATENATE($A76,\"||\",$BK76,\"||\",LOWER(TRIM(ASC($T76))),LOWER(TRIM(ASC($V76))),LOWER(TRIM(ASC($W76)))),$BP$7:$BU$42,6,FALSE)","v":{"$error":"#N/A"}}]
["発生原単位が対前年度比で100％を超えた理由又は発生原単位が基準発生原単位を上回った理由",null,null,null,null,null,null,null,null,null,null,null,null,null,null,null,null,null,null,null,null,null,null,null,null,null,null,null,null,null,null,null,null,null,null,null,null,null,null,null,null,null,null,null,null,null,null,null,null,null,null,null,null,null,null,null,null,null,null,"h3-2"]
[]
["表４　食品廃棄物等の発生抑制の実施量（④＝（⑤－③）×②）"]
["業種",null,null,null,null,null,null,null,null,null,null,null,null,null,null,null,null,"平成19年度\n発生原単位\n（⑤＝平成19年度の①÷平成19年度の②）",null,null,null,null,null,null,null,null,null,null,null,null,null,null,null,null,null,"発生抑制の実施量（ｔ）\n（④）"]
[null,null,null,null,null,null,null,null,null,null,null,null,null,null,null,null,null,null,null,null,null,null,null,null,null,null,null,null,null,null,null,null,null,null,null,{"$f":"IF(AND(O75=\"\",R81=\"\"),0,MAX(0,ROUND(((R81-O75)*AO69)/1000,1)))","v":0},null,null,null,null,null,null,null,null,null,null,null,null,null,null,null,null,null,null,null,null,null,null,null,"h4-1"]
[null,null,null,null,null,null,null,null,null,null,null,null,null,null,null,null,null,null,null,null,null,null,null,null,null,null,null,null,null,null,null,null,null,null,null,{"$f":"IF(AND(O76=\"\",R82=\"\"),0,MAX(0,ROUND(((R82-O76)*AO71)/1000,1)))","v":0},null,null,null,null,null,null,null,null,null,null,null,null,null,null,null,null,null,null,null,null,null,null,null,"h4-1"]
["合計",null,null,null,null,null,null,null,null,null,null,null,null,null,null,null,null,null,null,null,null,null,null,null,null,null,null,null,null,null,null,null,null,null,null,{"$f":"SUM(AJ81:AJ82)","v":0},null,null,null,null,null,null,null,null,null,null,null,null,null,null,null,null,null,null,null,null,null,null,null,"h4-2"]
[]
["表５　食品循環資源の再生利用の実施量（⑥）"]
["業種",null,null,null,null,null,null,null,null,null,null,null,null,null,null,null,null,"特定肥飼料等の種類",null,null,null,null,null,null,null,null,null,null,null,null,null,null,null,null,null,"再生利用の実施量（ｔ）"]
[null,null,null,null,null,null,null,null,null,null,null,null,null,null,null,null,null,"肥料",null,null,null,null,null,null,null,null,null,null,null,null,null,null,null,null,null,null,null,null,null,null,null,null,null,null,null,null,null,null,null,null,null,null,null,null,null,null,null,null,null,"h5-1-1"]
[null,null,null,null,null,null,null,null,null,null,null,null,null,null,null,null,null,"飼料",null,null,null,null,null,null,null,null,null,null,null,null,null,null,null,null,null,null,null,null,null,null,null,null,null,null,null,null,null,null,null,null,null,null,null,null,null,null,null,null,null,"h5-1-2"]
[null,null,null,null,null,null,null,null,null,null,null,null,null,null,null,null,null,"きのこ類の栽培のために使用される固形状の培地",null,null,null,null,null,null,null,null,null,null,null,null,null,null,null,null,null,null,null,null,null,null,null,null,null,null,null,null,null,null,null,null,null,null,null,null,null,null,null,null,null,"h5-1-3"]
[null,null,null,null,null,null,null,null,null,null,null,null,null,null,null,null,null,"炭化の過程を経て製造される燃料及び還元剤",null,null,null,null,null,null,null,null,null,null,null,null,null,null,null,null,null,null,null,null,null,null,null,null,null,null,null,null,null,null,null,null,null,null,null,null,null,null,null,null,null,"h5-1-4"]
[null,null,null,null,null,null,null,null,null,null,null,null,null,null,null,null,null,"油脂及び油脂製品",null,null,null,null,null,null,null,null,null,null,null,null,null,null,null,null,null,null,null,null,null,null,null,null,null,null,null,null,null,null,null,null,null,null,null,null,null,null,null,null,null,"h5-1-5"]
[null,null,null,null,null,null,null,null,null,null,null,null,null,null,null,null,null,"エタノール",null,null,null,null,null,null,null,null,null,null,null,null,null,null,null,null,null,null,null,null,null,null,null,null,null,null,null,null,null,null,null,null,null,null,null,null,null,null,null,null,null,"h5-1-6"]
[null,null,null,null,null,null,null,null,null,null,null,null,null,null,null,null,null,"メタン",null,null,null,null,null,null,null,null,null,null,null,null,null,null,null,null,null,null,null,null,null,null,null,null,null,null,null,null,null,null,null,null,null,null,null,null,null,null,null,null,null,"h5-1-7"]
[null,null,null,null,null,null,null,null,null,null,null,null,null,null,null,null,null,"肥料",null,null,null,null,null,null,null,null,null,null,null,null,null,null,null,null,null,null,null,null,null,null,null,null,null,null,null,null,null,null,null,null,null,null,null,null,null,null,null,null,null,"h5-1-1"]
[null,null,null,null,null,null,null,null,null,null,null,null,null,null,null,null,null,"飼料",null,null,null,null,null,null,null,null,null,null,null,null,null,null,null,null,null,null,null,null,null,null,null,null,null,null,null,null,null,null,null,null,null,null,null,null,null,null,null,null,null,"h5-1-2"]
[null,null,null,null,null,null,null,null,null,null,null,null,null,null,null,null,null,"きのこ類の栽培のために使用される固形状の培地",null,null,null,null,null,null,null,null,null,null,null,null,null,null,null,null,null,null,null,null,null,null,null,null,null,null,null,null,null,null,null,null,null,null,null,null,null,null,null,null,null,"h5-1-3"]
[null,null,null,null,null,null,null,null,null,null,null,null,null,null,null,null,null,"炭化の過程を経て製造される燃料及び還元剤",null,null,null,null,null,null,null,null,null,null,null,null,null,null,null,null,null,null,null,null,null,null,null,null,null,null,null,null,null,null,null,null,null,null,null,null,null,null,null,null,null,"h5-1-4"]
[null,null,null,null,null,null,null,null,null,null,null,null,null,null,null,null,null,"油脂及び油脂製品",null,null,null,null,null,null,null,null,null,null,null,null,null,null,null,null,null,null,null,null,null,null,null,null,null,null,null,null,null,null,null,null,null,null,null,null,null,null,null,null,null,"h5-1-5"]
[null,null,null,null,null,null,null,null,null,null,null,null,null,null,null,null,null,"エタノール",null,null,null,null,null,null,null,null,null,null,null,null,null,null,null,null,null,null,null,null,null,null,null,null,null,null,null,null,null,null,null,null,null,null,null,null,null,null,null,null,null,"h5-1-6"]
[null,null,null,null,null,null,null,null,null,null,null,null,null,null,null,null,null,"メタン",null,null,null,null,null,null,null,null,null,null,null,null,null,null,null,null,null,null,null,null,null,null,null,null,null,null,null,null,null,null,null,null,null,null,null,null,null,null,null,null,null,"h5-1-7"]
["合計",null,null,null,null,null,null,null,null,null,null,null,null,null,null,null,null,"肥料",null,null,null,null,null,null,null,null,null,null,null,null,null,null,null,null,null,null,null,null,null,null,null,null,null,null,null,null,null,null,null,null,null,null,null,null,null,null,null,null,null,"h5-3-1"]
[null,null,null,null,null,null,null,null,null,null,null,null,null,null,null,null,null,"飼料",null,null,null,null,null,null,null,null,null,null,null,null,null,null,null,null,null,null,null,null,null,null,null,null,null,null,null,null,null,null,null,null,null,null,null,null,null,null,null,null,null,"h5-3-2"]
[null,null,null,null,null,null,null,null,null,null,null,null,null,null,null,null,null,"きのこ類の栽培のために使用される固形状の培地",null,null,null,null,null,null,null,null,null,null,null,null,null,null,null,null,null,null,null,null,null,null,null,null,null,null,null,null,null,null,null,null,null,null,null,null,null,null,null,null,null,"h5-3-3"]
[null,null,null,null,null,null,null,null,null,null,null,null,null,null,null,null,null,"炭化の過程を経て製造される燃料及び還元剤",null,null,null,null,null,null,null,null,null,null,null,null,null,null,null,null,null,null,null,null,null,null,null,null,null,null,null,null,null,null,null,null,null,null,null,null,null,null,null,null,null,"h5-3-4"]
[null,null,null,null,null,null,null,null,null,null,null,null,null,null,null,null,null,"油脂及び油脂製品",null,null,null,null,null,null,null,null,null,null,null,null,null,null,null,null,null,null,null,null,null,null,null,null,null,null,null,null,null,null,null,null,null,null,null,null,null,null,null,null,null,"h5-3-5"]
[null,null,null,null,null,null,null,null,null,null,null,null,null,null,null,null,null,"エタノール",null,null,null,null,null,null,null,null,null,null,null,null,null,null,null,null,null,null,null,null,null,null,null,null,null,null,null,null,null,null,null,null,null,null,null,null,null,null,null,null,null,"h5-3-6"]
[null,null,null,null,null,null,null,null,null,null,null,null,null,null,null,null,null,"メタン",null,null,null,null,null,null,null,null,null,null,null,null,null,null,null,null,null,null,null,null,null,null,null,null,null,null,null,null,null,null,null,null,null,null,null,null,null,null,null,null,null,"h5-3-7"]
["総計",null,null,null,null,null,null,null,null,null,null,null,null,null,null,null,null,null,null,null,null,null,null,null,null,null,null,null,null,null,null,null,null,null,null,{"$f":"SUM(AJ101:BA107)","v":0},null,null,null,null,null,null,null,null,null,null,null,null,null,null,null,null,null,null,null,null,null,null,null,"h5-4"]
[]
["表６　都道府県及び市町村別の食品廃棄物等の発生量及び再生利用の実施量",null,null,null,null,null,null,null,null,null,null,null,null,null,null,null,null,null,null,null,null,null,null,null,null,null,null,null,null,null,null,null,null,null,null,null,null,null,null,null,null,null,null,null,null,null,null,null,null,null,null,null,null,null,null,null,null,null,"注意：表６については「別表」シートから入力をお願いします。"]
["業種",null,null,null,null,null,"都道府県名",null,null,null,null,"市\n町\n村\n名\n(詳細\nは別表\n参照）","発生量（ｔ）",null,null,null,null,null,"再生利用の実施量（ｔ）",null,null,null,null,null,null,null,null,null,null,null,null,null,null,null,null,null,null,null,null,null,null,null,null,null,null,null,null,null,null,null,null,null,null,null,null,null,null,null,null,null,null,null,null,null,null,null,"・「発生量」は、食品廃棄物等が発生した事業所の所在する都道府県の欄に入力。（合計は表１と同数）\n・「再生利用の実施量」は、再生利用が実施された事業場の所在する都道府県の欄に入力。（合計は表５と同数）                                                                                                                                                                                                                    　　　　　　　　　　　　　　　　　　　　　　　　　　　　　　　　　　　　　　　　　　　　　　　　　　　　　　　　　　　　　　　　　　　　　　　　　　　　　　　　　　　　　　　　　　　　　　　　　　　　　　　　　　　　　　　　　　　　　　　　　　　　　　　　　　　　　　　　　　　　　　　　　            "]
[null,null,null,null,null,null,null,null,null,null,null,null,null,null,null,null,null,null,"合計",null,null,null,null,null,"肥料",null,null,null,null,"飼料",null,null,null,null,"きのこ類の栽培のために使用される固形状の培地",null,null,null,null,"炭化の過程を経て製造される燃料・還元剤",null,null,null,null,"油脂･油脂製品",null,null,null,null,"エタノール",null,null,null,null,"メタン"]
[]
[]
[]
[null,null,null,null,null,null,"北海道","北海道","北海道","北海道","北海道",null,null,null,null,null,null,null,{"$f":"SUM(Y116:BG116)","v":0},null,null,null,null,null,null,null,null,null,null,null,null,null,null,null,null,null,null,null,null,null,null,null,null,null,null,null,null,null,null,null,null,null,null,null,null,null,null,null,null,"h6-1",null,null,null,null,null,null,null,null,null,null,null,null,"・「再生利用の実施量」は、業種ごとに再生利用を実施（特定肥飼料等を製造）した事業者の施設の所在する都道府県の欄に引き渡した数量を入力。\n（合計は表５と同数）"]
[null,null,null,null,null,null,"青森県","青森県","青森県","青森県","青森県",null,null,null,null,null,null,null,0,null,null,null,null,null,null,null,null,null,null,null,null,null,null,null,null,null,null,null,null,null,null,null,null,null,null,null,null,null,null,null,null,null,null,null,null,null,null,null,null,"h6-1"]
[null,null,null,null,null,null,"岩手県","岩手県","岩手県","岩手県","岩手県",null,null,null,null,null,null,null,0,null,null,null,null,null,null,null,null,null,null,null,null,null,null,null,null,null,null,null,null,null,null,null,null,null,null,null,null,null,null,null,null,null,null,null,null,null,null,null,null,"h6-1"]
[null,null,null,null,null,null,"宮城県","宮城県","宮城県","宮城県","宮城県",null,null,null,null,null,null,null,0,null,null,null,null,null,null,null,null,null,null,null,null,null,null,null,null,null,null,null,null,null,null,null,null,null,null,null,null,null,null,null,null,null,null,null,null,null,null,null,null,"h6-1"]
[null,null,null,null,null,null,"秋田県","秋田県","秋田県","秋田県","秋田県",null,null,null,null,null,null,null,0,null,null,null,null,null,null,null,null,null,null,null,null,null,null,null,null,null,null,null,null,null,null,null,null,null,null,null,null,null,null,null,null,null,null,null,null,null,null,null,null,"h6-1"]
[null,null,null,null,null,null,"山形県","山形県","山形県","山形県","山形県",null,null,null,null,null,null,null,0,null,null,null,null,null,null,null,null,null,null,null,null,null,null,null,null,null,null,null,null,null,null,null,null,null,null,null,null,null,null,null,null,null,null,null,null,null,null,null,null,"h6-1"]
[null,null,null,null,null,null,"福島県","福島県","福島県","福島県","福島県",null,null,null,null,null,null,null,0,null,null,null,null,null,null,null,null,null,null,null,null,null,null,null,null,null,null,null,null,null,null,null,null,null,null,null,null,null,null,null,null,null,null,null,null,null,null,null,null,"h6-1"]
[null,null,null,null,null,null,"茨城県","茨城県","茨城県","茨城県","茨城県",null,null,null,null,null,null,null,0,null,null,null,null,null,null,null,null,null,null,null,null,null,null,null,null,null,null,null,null,null,null,null,null,null,null,null,null,null,null,null,null,null,null,null,null,null,null,null,null,"h6-1"]
[null,null,null,null,null,null,"栃木県","栃木県","栃木県","栃木県","栃木県",null,null,null,null,null,null,null,0,null,null,null,null,null,null,null,null,null,null,null,null,null,null,null,null,null,null,null,null,null,null,null,null,null,null,null,null,null,null,null,null,null,null,null,null,null,null,null,null,"h6-1"]
[null,null,null,null,null,null,"群馬県","群馬県","群馬県","群馬県","群馬県",null,null,null,null,null,null,null,0,null,null,null,null,null,null,null,null,null,null,null,null,null,null,null,null,null,null,null,null,null,null,null,null,null,null,null,null,null,null,null,null,null,null,null,null,null,null,null,null,"h6-1"]
[null,null,null,null,null,null,"埼玉県","埼玉県","埼玉県","埼玉県","埼玉県",null,null,null,null,null,null,null,0,null,null,null,null,null,null,null,null,null,null,null,null,null,null,null,null,null,null,null,null,null,null,null,null,null,null,null,null,null,null,null,null,null,null,null,null,null,null,null,null,"h6-1"]
[null,null,null,null,null,null,"千葉県","千葉県","千葉県","千葉県","千葉県",null,null,null,null,null,null,null,0,null,null,null,null,null,null,null,null,null,null,null,null,null,null,null,null,null,null,null,null,null,null,null,null,null,null,null,null,null,null,null,null,null,null,null,null,null,null,null,null,"h6-1"]
[null,null,null,null,null,null,"東京都","東京都","東京都","東京都","東京都",null,null,null,null,null,null,null,0,null,null,null,null,null,null,null,null,null,null,null,null,null,null,null,null,null,null,null,null,null,null,null,null,null,null,null,null,null,null,null,null,null,null,null,null,null,null,null,null,"h6-1"]
[null,null,null,null,null,null,"神奈川県","神奈川県","神奈川県","神奈川県","神奈川県",null,null,null,null,null,null,null,0,null,null,null,null,null,null,null,null,null,null,null,null,null,null,null,null,null,null,null,null,null,null,null,null,null,null,null,null,null,null,null,null,null,null,null,null,null,null,null,null,"h6-1"]
[null,null,null,null,null,null,"新潟県","新潟県","新潟県","新潟県","新潟県",null,null,null,null,null,null,null,0,null,null,null,null,null,null,null,null,null,null,null,null,null,null,null,null,null,null,null,null,null,null,null,null,null,null,null,null,null,null,null,null,null,null,null,null,null,null,null,null,"h6-1"]
[null,null,null,null,null,null,"富山県","富山県","富山県","富山県","富山県",null,null,null,null,null,null,null,0,null,null,null,null,null,null,null,null,null,null,null,null,null,null,null,null,null,null,null,null,null,null,null,null,null,null,null,null,null,null,null,null,null,null,null,null,null,null,null,null,"h6-1"]
[null,null,null,null,null,null,"石川県","石川県","石川県","石川県","石川県",null,null,null,null,null,null,null,0,null,null,null,null,null,null,null,null,null,null,null,null,null,null,null,null,null,null,null,null,null,null,null,null,null,null,null,null,null,null,null,null,null,null,null,null,null,null,null,null,"h6-1"]
[null,null,null,null,null,null,"福井県","福井県","福井県","福井県","福井県",null,null,null,null,null,null,null,0,null,null,null,null,null,null,null,null,null,null,null,null,null,null,null,null,null,null,null,null,null,null,null,null,null,null,null,null,null,null,null,null,null,null,null,null,null,null,null,null,"h6-1"]
[null,null,null,null,null,null,"山梨県","山梨県","山梨県","山梨県","山梨県",null,null,null,null,null,null,null,0,null,null,null,null,null,null,null,null,null,null,null,null,null,null,null,null,null,null,null,null,null,null,null,null,null,null,null,null,null,null,null,null,null,null,null,null,null,null,null,null,"h6-1"]
[null,null,null,null,null,null,"長野県","長野県","長野県","長野県","長野県",null,null,null,null,null,null,null,0,null,null,null,null,null,null,null,null,null,null,null,null,null,null,null,null,null,null,null,null,null,null,null,null,null,null,null,null,null,null,null,null,null,null,null,null,null,null,null,null,"h6-1"]
[null,null,null,null,null,null,"岐阜県","岐阜県","岐阜県","岐阜県","岐阜県",null,null,null,null,null,null,null,0,null,null,null,null,null,null,null,null,null,null,null,null,null,null,null,null,null,null,null,null,null,null,null,null,null,null,null,null,null,null,null,null,null,null,null,null,null,null,null,null,"h6-1"]
[null,null,null,null,null,null,"静岡県","静岡県","静岡県","静岡県","静岡県",null,null,null,null,null,null,null,0,null,null,null,null,null,null,null,null,null,null,null,null,null,null,null,null,null,null,null,null,null,null,null,null,null,null,null,null,null,null,null,null,null,null,null,null,null,null,null,null,"h6-1"]
[null,null,null,null,null,null,"愛知県","愛知県","愛知県","愛知県","愛知県",null,null,null,null,null,null,null,0,null,null,null,null,null,null,null,null,null,null,null,null,null,null,null,null,null,null,null,null,null,null,null,null,null,null,null,null,null,null,null,null,null,null,null,null,null,null,null,null,"h6-1"]
[null,null,null,null,null,null,"三重県","三重県","三重県","三重県","三重県",null,null,null,null,null,null,null,0,null,null,null,null,null,null,null,null,null,null,null,null,null,null,null,null,null,null,null,null,null,null,null,null,null,null,null,null,null,null,null,null,null,null,null,null,null,null,null,null,"h6-1"]
[null,null,null,null,null,null,"滋賀県","滋賀県","滋賀県","滋賀県","滋賀県",null,null,null,null,null,null,null,0,null,null,null,null,null,null,null,null,null,null,null,null,null,null,null,null,null,null,null,null,null,null,null,null,null,null,null,null,null,null,null,null,null,null,null,null,null,null,null,null,"h6-1"]
[null,null,null,null,null,null,"京都府","京都府","京都府","京都府","京都府",null,null,null,null,null,null,null,0,null,null,null,null,null,null,null,null,null,null,null,null,null,null,null,null,null,null,null,null,null,null,null,null,null,null,null,null,null,null,null,null,null,null,null,null,null,null,null,null,"h6-1"]
[null,null,null,null,null,null,"大阪府","大阪府","大阪府","大阪府","大阪府",null,null,null,null,null,null,null,0,null,null,null,null,null,null,null,null,null,null,null,null,null,null,null,null,null,null,null,null,null,null,null,null,null,null,null,null,null,null,null,null,null,null,null,null,null,null,null,null,"h6-1"]
[null,null,null,null,null,null,"兵庫県","兵庫県","兵庫県","兵庫県","兵庫県",null,null,null,null,null,null,null,0,null,null,null,null,null,null,null,null,null,null,null,null,null,null,null,null,null,null,null,null,null,null,null,null,null,null,null,null,null,null,null,null,null,null,null,null,null,null,null,null,"h6-1"]
[null,null,null,null,null,null,"奈良県","奈良県","奈良県","奈良県","奈良県",null,null,null,null,null,null,null,0,null,null,null,null,null,null,null,null,null,null,null,null,null,null,null,null,null,null,null,null,null,null,null,null,null,null,null,null,null,null,null,null,null,null,null,null,null,null,null,null,"h6-1"]
[null,null,null,null,null,null,"和歌山県","和歌山県","和歌山県","和歌山県","和歌山県",null,null,null,null,null,null,null,0,null,null,null,null,null,null,null,null,null,null,null,null,null,null,null,null,null,null,null,null,null,null,null,null,null,null,null,null,null,null,null,null,null,null,null,null,null,null,null,null,"h6-1"]
[null,null,null,null,null,null,"鳥取県","鳥取県","鳥取県","鳥取県","鳥取県",null,null,null,null,null,null,null,0,null,null,null,null,null,null,null,null,null,null,null,null,null,null,null,null,null,null,null,null,null,null,null,null,null,null,null,null,null,null,null,null,null,null,null,null,null,null,null,null,"h6-1"]
[null,null,null,null,null,null,"島根県","島根県","島根県","島根県","島根県",null,null,null,null,null,null,null,0,null,null,null,null,null,null,null,null,null,null,null,null,null,null,null,null,null,null,null,null,null,null,null,null,null,null,null,null,null,null,null,null,null,null,null,null,null,null,null,null,"h6-1"]
[null,null,null,null,null,null,"岡山県","岡山県","岡山県","岡山県","岡山県",null,null,null,null,null,null,null,0,null,null,null,null,null,null,null,null,null,null,null,null,null,null,null,null,null,null,null,null,null,null,null,null,null,null,null,null,null,null,null,null,null,null,null,null,null,null,null,null,"h6-1"]
[null,null,null,null,null,null,"広島県","広島県","広島県","広島県","広島県",null,null,null,null,null,null,null,0,null,null,null,null,null,null,null,null,null,null,null,null,null,null,null,null,null,null,null,null,null,null,null,null,null,null,null,null,null,null,null,null,null,null,null,null,null,null,null,null,"h6-1"]
[null,null,null,null,null,null,"山口県","山口県","山口県","山口県","山口県",null,null,null,null,null,null,null,0,null,null,null,null,null,null,null,null,null,null,null,null,null,null,null,null,null,null,null,null,null,null,null,null,null,null,null,null,null,null,null,null,null,null,null,null,null,null,null,null,"h6-1"]
[null,null,null,null,null,null,"徳島県","徳島県","徳島県","徳島県","徳島県",null,null,null,null,null,null,null,0,null,null,null,null,null,null,null,null,null,null,null,null,null,null,null,null,null,null,null,null,null,null,null,null,null,null,null,null,null,null,null,null,null,null,null,null,null,null,null,null,"h6-1"]
[null,null,null,null,null,null,"香川県","香川県","香川県","香川県","香川県",null,null,null,null,null,null,null,0,null,null,null,null,null,null,null,null,null,null,null,null,null,null,null,null,null,null,null,null,null,null,null,null,null,null,null,null,null,null,null,null,null,null,null,null,null,null,null,null,"h6-1"]
[null,null,null,null,null,null,"愛媛県","愛媛県","愛媛県","愛媛県","愛媛県",null,null,null,null,null,null,null,0,null,null,null,null,null,null,null,null,null,null,null,null,null,null,null,null,null,null,null,null,null,null,null,null,null,null,null,null,null,null,null,null,null,null,null,null,null,null,null,null,"h6-1"]
[null,null,null,null,null,null,"高知県","高知県","高知県","高知県","高知県",null,null,null,null,null,null,null,0,null,null,null,null,null,null,null,null,null,null,null,null,null,null,null,null,null,null,null,null,null,null,null,null,null,null,null,null,null,null,null,null,null,null,null,null,null,null,null,null,"h6-1"]
[null,null,null,null,null,null,"福岡県","福岡県","福岡県","福岡県","福岡県",null,null,null,null,null,null,null,0,null,null,null,null,null,null,null,null,null,null,null,null,null,null,null,null,null,null,null,null,null,null,null,null,null,null,null,null,null,null,null,null,null,null,null,null,null,null,null,null,"h6-1"]
[null,null,null,null,null,null,"佐賀県","佐賀県","佐賀県","佐賀県","佐賀県",null,null,null,null,null,null,null,0,null,null,null,null,null,null,null,null,null,null,null,null,null,null,null,null,null,null,null,null,null,null,null,null,null,null,null,null,null,null,null,null,null,null,null,null,null,null,null,null,"h6-1"]
[null,null,null,null,null,null,"長崎県","長崎県","長崎県","長崎県","長崎県",null,null,null,null,null,null,null,0,null,null,null,null,null,null,null,null,null,null,null,null,null,null,null,null,null,null,null,null,null,null,null,null,null,null,null,null,null,null,null,null,null,null,null,null,null,null,null,null,"h6-1"]
[null,null,null,null,null,null,"熊本県","熊本県","熊本県","熊本県","熊本県",null,null,null,null,null,null,null,0,null,null,null,null,null,null,null,null,null,null,null,null,null,null,null,null,null,null,null,null,null,null,null,null,null,null,null,null,null,null,null,null,null,null,null,null,null,null,null,null,"h6-1"]
[null,null,null,null,null,null,"大分県","大分県","大分県","大分県","大分県",null,null,null,null,null,null,null,0,null,null,null,null,null,null,null,null,null,null,null,null,null,null,null,null,null,null,null,null,null,null,null,null,null,null,null,null,null,null,null,null,null,null,null,null,null,null,null,null,"h6-1"]
[null,null,null,null,null,null,"宮崎県","宮崎県","宮崎県","宮崎県","宮崎県",null,null,null,null,null,null,null,0,null,null,null,null,null,null,null,null,null,null,null,null,null,null,null,null,null,null,null,null,null,null,null,null,null,null,null,null,null,null,null,null,null,null,null,null,null,null,null,null,"h6-1"]
[null,null,null,null,null,null,"鹿児島県","鹿児島県","鹿児島県","鹿児島県","鹿児島県",null,null,null,null,null,null,null,0,null,null,null,null,null,null,null,null,null,null,null,null,null,null,null,null,null,null,null,null,null,null,null,null,null,null,null,null,null,null,null,null,null,null,null,null,null,null,null,null,"h6-1"]
[null,null,null,null,null,null,"沖縄県","沖縄県","沖縄県","沖縄県","沖縄県",null,null,null,null,null,null,null,0,null,null,null,null,null,null,null,null,null,null,null,null,null,null,null,null,null,null,null,null,null,null,null,null,null,null,null,null,null,null,null,null,null,null,null,null,null,null,null,null,"h6-1"]
[null,null,null,null,null,null,"小計",null,null,null,null,{"$f":"SUM(L116:L162)","v":0},{"$f":"SUM(M116:R162)","v":0},null,null,null,null,null,{"$f":"SUM(S116:X162)","v":0},null,null,null,null,null,{"$f":"SUM(Y116:AC162)","v":0},null,null,null,null,{"$f":"SUM(AD116:AH162)","v":0},null,null,null,null,{"$f":"SUM(AI116:AM162)","v":0},null,null,null,null,{"$f":"SUM(AN116:AR162)","v":0},null,null,null,null,{"$f":"SUM(AS116:AW162)","v":0},null,null,null,null,{"$f":"SUM(AX116:BB162)","v":0},null,null,null,null,{"$f":"SUM(BC116:BG162)","v":0},null,null,null,null,"h6-2"]
[null,null,null,null,null,null,"北海道","北海道","北海道","北海道","北海道",null,null,null,null,null,null,null,{"$f":"SUM(Y164:BG164)","v":0},null,null,null,null,null,null,null,null,null,null,null,null,null,null,null,null,null,null,null,null,null,null,null,null,null,null,null,null,null,null,null,null,null,null,null,null,null,null,null,null,"h6-1",null,null,null,null,null,null,null,null,null,null,null,null,"・「再生利用の実施量」は、業種ごとに再生利用を実施（特定肥飼料等を製造）した事業者の施設の所在する都道府県の欄に引き渡した数量を入力。\n（合計は表５と同数）"]
[null,null,null,null,null,null,"青森県","青森県","青森県","青森県","青森県",null,null,null,null,null,null,null,0,null,null,null,null,null,null,null,null,null,null,null,null,null,null,null,null,null,null,null,null,null,null,null,null,null,null,null,null,null,null,null,null,null,null,null,null,null,null,null,null,"h6-1"]
[null,null,null,null,null,null,"岩手県","岩手県","岩手県","岩手県","岩手県",null,null,null,null,null,null,null,0,null,null,null,null,null,null,null,null,null,null,null,null,null,null,null,null,null,null,null,null,null,null,null,null,null,null,null,null,null,null,null,null,null,null,null,null,null,null,null,null,"h6-1"]
[null,null,null,null,null,null,"宮城県","宮城県","宮城県","宮城県","宮城県",null,null,null,null,null,null,null,0,null,null,null,null,null,null,null,null,null,null,null,null,null,null,null,null,null,null,null,null,null,null,null,null,null,null,null,null,null,null,null,null,null,null,null,null,null,null,null,null,"h6-1"]
[null,null,null,null,null,null,"秋田県","秋田県","秋田県","秋田県","秋田県",null,null,null,null,null,null,null,0,null,null,null,null,null,null,null,null,null,null,null,null,null,null,null,null,null,null,null,null,null,null,null,null,null,null,null,null,null,null,null,null,null,null,null,null,null,null,null,null,"h6-1"]
[null,null,null,null,null,null,"山形県","山形県","山形県","山形県","山形県",null,null,null,null,null,null,null,0,null,null,null,null,null,null,null,null,null,null,null,null,null,null,null,null,null,null,null,null,null,null,null,null,null,null,null,null,null,null,null,null,null,null,null,null,null,null,null,null,"h6-1"]
[null,null,null,null,null,null,"福島県","福島県","福島県","福島県","福島県",null,null,null,null,null,null,null,0,null,null,null,null,null,null,null,null,null,null,null,null,null,null,null,null,null,null,null,null,null,null,null,null,null,null,null,null,null,null,null,null,null,null,null,null,null,null,null,null,"h6-1"]
[null,null,null,null,null,null,"茨城県","茨城県","茨城県","茨城県","茨城県",null,null,null,null,null,null,null,0,null,null,null,null,null,null,null,null,null,null,null,null,null,null,null,null,null,null,null,null,null,null,null,null,null,null,null,null,null,null,null,null,null,null,null,null,null,null,null,null,"h6-1"]
[null,null,null,null,null,null,"栃木県","栃木県","栃木県","栃木県","栃木県",null,null,null,null,null,null,null,0,null,null,null,null,null,null,null,null,null,null,null,null,null,null,null,null,null,null,null,null,null,null,null,null,null,null,null,null,null,null,null,null,null,null,null,null,null,null,null,null,"h6-1"]
[null,null,null,null,null,null,"群馬県","群馬県","群馬県","群馬県","群馬県",null,null,null,null,null,null,null,0,null,null,null,null,null,null,null,null,null,null,null,null,null,null,null,null,null,null,null,null,null,null,null,null,null,null,null,null,null,null,null,null,null,null,null,null,null,null,null,null,"h6-1"]
[null,null,null,null,null,null,"埼玉県","埼玉県","埼玉県","埼玉県","埼玉県",null,null,null,null,null,null,null,0,null,null,null,null,null,null,null,null,null,null,null,null,null,null,null,null,null,null,null,null,null,null,null,null,null,null,null,null,null,null,null,null,null,null,null,null,null,null,null,null,"h6-1"]
[null,null,null,null,null,null,"千葉県","千葉県","千葉県","千葉県","千葉県",null,null,null,null,null,null,null,0,null,null,null,null,null,null,null,null,null,null,null,null,null,null,null,null,null,null,null,null,null,null,null,null,null,null,null,null,null,null,null,null,null,null,null,null,null,null,null,null,"h6-1"]
[null,null,null,null,null,null,"東京都","東京都","東京都","東京都","東京都",null,null,null,null,null,null,null,0,null,null,null,null,null,null,null,null,null,null,null,null,null,null,null,null,null,null,null,null,null,null,null,null,null,null,null,null,null,null,null,null,null,null,null,null,null,null,null,null,"h6-1"]
[null,null,null,null,null,null,"神奈川県","神奈川県","神奈川県","神奈川県","神奈川県",null,null,null,null,null,null,null,0,null,null,null,null,null,null,null,null,null,null,null,null,null,null,null,null,null,null,null,null,null,null,null,null,null,null,null,null,null,null,null,null,null,null,null,null,null,null,null,null,"h6-1"]
[null,null,null,null,null,null,"新潟県","新潟県","新潟県","新潟県","新潟県",null,null,null,null,null,null,null,0,null,null,null,null,null,null,null,null,null,null,null,null,null,null,null,null,null,null,null,null,null,null,null,null,null,null,null,null,null,null,null,null,null,null,null,null,null,null,null,null,"h6-1"]
[null,null,null,null,null,null,"富山県","富山県","富山県","富山県","富山県",null,null,null,null,null,null,null,0,null,null,null,null,null,null,null,null,null,null,null,null,null,null,null,null,null,null,null,null,null,null,null,null,null,null,null,null,null,null,null,null,null,null,null,null,null,null,null,null,"h6-1"]
[null,null,null,null,null,null,"石川県","石川県","石川県","石川県","石川県",null,null,null,null,null,null,null,0,null,null,null,null,null,null,null,null,null,null,null,null,null,null,null,null,null,null,null,null,null,null,null,null,null,null,null,null,null,null,null,null,null,null,null,null,null,null,null,null,"h6-1"]
[null,null,null,null,null,null,"福井県","福井県","福井県","福井県","福井県",null,null,null,null,null,null,null,0,null,null,null,null,null,null,null,null,null,null,null,null,null,null,null,null,null,null,null,null,null,null,null,null,null,null,null,null,null,null,null,null,null,null,null,null,null,null,null,null,"h6-1"]
[null,null,null,null,null,null,"山梨県","山梨県","山梨県","山梨県","山梨県",null,null,null,null,null,null,null,0,null,null,null,null,null,null,null,null,null,null,null,null,null,null,null,null,null,null,null,null,null,null,null,null,null,null,null,null,null,null,null,null,null,null,null,null,null,null,null,null,"h6-1"]
[null,null,null,null,null,null,"長野県","長野県","長野県","長野県","長野県",null,null,null,null,null,null,null,0,null,null,null,null,null,null,null,null,null,null,null,null,null,null,null,null,null,null,null,null,null,null,null,null,null,null,null,null,null,null,null,null,null,null,null,null,null,null,null,null,"h6-1"]
[null,null,null,null,null,null,"岐阜県","岐阜県","岐阜県","岐阜県","岐阜県",null,null,null,null,null,null,null,0,null,null,null,null,null,null,null,null,null,null,null,null,null,null,null,null,null,null,null,null,null,null,null,null,null,null,null,null,null,null,null,null,null,null,null,null,null,null,null,null,"h6-1"]
[null,null,null,null,null,null,"静岡県","静岡県","静岡県","静岡県","静岡県",null,null,null,null,null,null,null,0,null,null,null,null,null,null,null,null,null,null,null,null,null,null,null,null,null,null,null,null,null,null,null,null,null,null,null,null,null,null,null,null,null,null,null,null,null,null,null,null,"h6-1"]
[null,null,null,null,null,null,"愛知県","愛知県","愛知県","愛知県","愛知県",null,null,null,null,null,null,null,0,null,null,null,null,null,null,null,null,null,null,null,null,null,null,null,null,null,null,null,null,null,null,null,null,null,null,null,null,null,null,null,null,null,null,null,null,null,null,null,null,"h6-1"]
[null,null,null,null,null,null,"三重県","三重県","三重県","三重県","三重県",null,null,null,null,null,null,null,0,null,null,null,null,null,null,null,null,null,null,null,null,null,null,null,null,null,null,null,null,null,null,null,null,null,null,null,null,null,null,null,null,null,null,null,null,null,null,null,null,"h6-1"]
[null,null,null,null,null,null,"滋賀県","滋賀県","滋賀県","滋賀県","滋賀県",null,null,null,null,null,null,null,0,null,null,null,null,null,null,null,null,null,null,null,null,null,null,null,null,null,null,null,null,null,null,null,null,null,null,null,null,null,null,null,null,null,null,null,null,null,null,null,null,"h6-1"]
[null,null,null,null,null,null,"京都府","京都府","京都府","京都府","京都府",null,null,null,null,null,null,null,0,null,null,null,null,null,null,null,null,null,null,null,null,null,null,null,null,null,null,null,null,null,null,null,null,null,null,null,null,null,null,null,null,null,null,null,null,null,null,null,null,"h6-1"]
[null,null,null,null,null,null,"大阪府","大阪府","大阪府","大阪府","大阪府",null,null,null,null,null,null,null,0,null,null,null,null,null,null,null,null,null,null,null,null,null,null,null,null,null,null,null,null,null,null,null,null,null,null,null,null,null,null,null,null,null,null,null,null,null,null,null,null,"h6-1"]
[null,null,null,null,null,null,"兵庫県","兵庫県","兵庫県","兵庫県","兵庫県",null,null,null,null,null,null,null,0,null,null,null,null,null,null,null,null,null,null,null,null,null,null,null,null,null,null,null,null,null,null,null,null,null,null,null,null,null,null,null,null,null,null,null,null,null,null,null,null,"h6-1"]
[null,null,null,null,null,null,"奈良県","奈良県","奈良県","奈良県","奈良県",null,null,null,null,null,null,null,0,null,null,null,null,null,null,null,null,null,null,null,null,null,null,null,null,null,null,null,null,null,null,null,null,null,null,null,null,null,null,null,null,null,null,null,null,null,null,null,null,"h6-1"]
[null,null,null,null,null,null,"和歌山県","和歌山県","和歌山県","和歌山県","和歌山県",null,null,null,null,null,null,null,0,null,null,null,null,null,null,null,null,null,null,null,null,null,null,null,null,null,null,null,null,null,null,null,null,null,null,null,null,null,null,null,null,null,null,null,null,null,null,null,null,"h6-1"]
[null,null,null,null,null,null,"鳥取県","鳥取県","鳥取県","鳥取県","鳥取県",null,null,null,null,null,null,null,0,null,null,null,null,null,null,null,null,null,null,null,null,null,null,null,null,null,null,null,null,null,null,null,null,null,null,null,null,null,null,null,null,null,null,null,null,null,null,null,null,"h6-1"]
[null,null,null,null,null,null,"島根県","島根県","島根県","島根県","島根県",null,null,null,null,null,null,null,0,null,null,null,null,null,null,null,null,null,null,null,null,null,null,null,null,null,null,null,null,null,null,null,null,null,null,null,null,null,null,null,null,null,null,null,null,null,null,null,null,"h6-1"]
[null,null,null,null,null,null,"岡山県","岡山県","岡山県","岡山県","岡山県",null,null,null,null,null,null,null,0,null,null,null,null,null,null,null,null,null,null,null,null,null,null,null,null,null,null,null,null,null,null,null,null,null,null,null,null,null,null,null,null,null,null,null,null,null,null,null,null,"h6-1"]
[null,null,null,null,null,null,"広島県","広島県","広島県","広島県","広島県",null,null,null,null,null,null,null,0,null,null,null,null,null,null,null,null,null,null,null,null,null,null,null,null,null,null,null,null,null,null,null,null,null,null,null,null,null,null,null,null,null,null,null,null,null,null,null,null,"h6-1"]
[null,null,null,null,null,null,"山口県","山口県","山口県","山口県","山口県",null,null,null,null,null,null,null,0,null,null,null,null,null,null,null,null,null,null,null,null,null,null,null,null,null,null,null,null,null,null,null,null,null,null,null,null,null,null,null,null,null,null,null,null,null,null,null,null,"h6-1"]
[null,null,null,null,null,null,"徳島県","徳島県","徳島県","徳島県","徳島県",null,null,null,null,null,null,null,0,null,null,null,null,null,null,null,null,null,null,null,null,null,null,null,null,null,null,null,null,null,null,null,null,null,null,null,null,null,null,null,null,null,null,null,null,null,null,null,null,"h6-1"]
[null,null,null,null,null,null,"香川県","香川県","香川県","香川県","香川県",null,null,null,null,null,null,null,0,null,null,null,null,null,null,null,null,null,null,null,null,null,null,null,null,null,null,null,null,null,null,null,null,null,null,null,null,null,null,null,null,null,null,null,null,null,null,null,null,"h6-1"]
[null,null,null,null,null,null,"愛媛県","愛媛県","愛媛県","愛媛県","愛媛県",null,null,null,null,null,null,null,0,null,null,null,null,null,null,null,null,null,null,null,null,null,null,null,null,null,null,null,null,null,null,null,null,null,null,null,null,null,null,null,null,null,null,null,null,null,null,null,null,"h6-1"]
[null,null,null,null,null,null,"高知県","高知県","高知県","高知県","高知県",null,null,null,null,null,null,null,0,null,null,null,null,null,null,null,null,null,null,null,null,null,null,null,null,null,null,null,null,null,null,null,null,null,null,null,null,null,null,null,null,null,null,null,null,null,null,null,null,"h6-1"]
[null,null,null,null,null,null,"福岡県","福岡県","福岡県","福岡県","福岡県",null,null,null,null,null,null,null,0,null,null,null,null,null,null,null,null,null,null,null,null,null,null,null,null,null,null,null,null,null,null,null,null,null,null,null,null,null,null,null,null,null,null,null,null,null,null,null,null,"h6-1"]
[null,null,null,null,null,null,"佐賀県","佐賀県","佐賀県","佐賀県","佐賀県",null,null,null,null,null,null,null,0,null,null,null,null,null,null,null,null,null,null,null,null,null,null,null,null,null,null,null,null,null,null,null,null,null,null,null,null,null,null,null,null,null,null,null,null,null,null,null,null,"h6-1"]
[null,null,null,null,null,null,"長崎県","長崎県","長崎県","長崎県","長崎県",null,null,null,null,null,null,null,0,null,null,null,null,null,null,null,null,null,null,null,null,null,null,null,null,null,null,null,null,null,null,null,null,null,null,null,null,null,null,null,null,null,null,null,null,null,null,null,null,"h6-1"]
[null,null,null,null,null,null,"熊本県","熊本県","熊本県","熊本県","熊本県",null,null,null,null,null,null,null,0,null,null,null,null,null,null,null,null,null,null,null,null,null,null,null,null,null,null,null,null,null,null,null,null,null,null,null,null,null,null,null,null,null,null,null,null,null,null,null,null,"h6-1"]
[null,null,null,null,null,null,"大分県","大分県","大分県","大分県","大分県",null,null,null,null,null,null,null,0,null,null,null,null,null,null,null,null,null,null,null,null,null,null,null,null,null,null,null,null,null,null,null,null,null,null,null,null,null,null,null,null,null,null,null,null,null,null,null,null,"h6-1"]
[null,null,null,null,null,null,"宮崎県","宮崎県","宮崎県","宮崎県","宮崎県",null,null,null,null,null,null,null,0,null,null,null,null,null,null,null,null,null,null,null,null,null,null,null,null,null,null,null,null,null,null,null,null,null,null,null,null,null,null,null,null,null,null,null,null,null,null,null,null,"h6-1"]
[null,null,null,null,null,null,"鹿児島県","鹿児島県","鹿児島県","鹿児島県","鹿児島県",null,null,null,null,null,null,null,0,null,null,null,null,null,null,null,null,null,null,null,null,null,null,null,null,null,null,null,null,null,null,null,null,null,null,null,null,null,null,null,null,null,null,null,null,null,null,null,null,"h6-1"]
[null,null,null,null,null,null,"沖縄県","沖縄県","沖縄県","沖縄県","沖縄県",null,null,null,null,null,null,null,0,null,null,null,null,null,null,null,null,null,null,null,null,null,null,null,null,null,null,null,null,null,null,null,null,null,null,null,null,null,null,null,null,null,null,null,null,null,null,null,null,"h6-1"]
[null,null,null,null,null,null,"小計",null,null,null,null,{"$f":"SUM(L164:L210)","v":0},{"$f":"SUM(M164:R210)","v":0},null,null,null,null,null,{"$f":"SUM(S164:X210)","v":0},null,null,null,null,null,{"$f":"SUM(Y164:AC210)","v":0},null,null,null,null,{"$f":"SUM(AD164:AH210)","v":0},null,null,null,null,{"$f":"SUM(AI164:AM210)","v":0},null,null,null,null,{"$f":"SUM(AN164:AR210)","v":0},null,null,null,null,{"$f":"SUM(AS164:AW210)","v":0},null,null,null,null,{"$f":"SUM(AX164:BB210)","v":0},null,null,null,null,{"$f":"SUM(BC164:BG210)","v":0},null,null,null,null,"h6-2"]
["合計",null,null,null,null,null,null,null,null,null,null,{"$f":"SUM(L163,L211)","v":0},{"$f":"SUM(M163,M211)","v":0},null,null,null,null,null,{"$f":"SUM(S163,S211)","v":0},null,null,null,null,null,{"$f":"SUM(Y163,Y211)","v":0},null,null,null,null,{"$f":"SUM(AD163,AD211)","v":0},null,null,null,null,{"$f":"SUM(AI163,AI211)","v":0},null,null,null,null,{"$f":"SUM(AN163,AN211)","v":0},null,null,null,null,{"$f":"SUM(AS163,AS211)","v":0},null,null,null,null,{"$f":"SUM(AX163,AX211)","v":0},null,null,null,null,{"$f":"SUM(BC163,BC211)","v":0},null,null,null,null,"h6-3"]
[null,null,null,null,null,null,null,null,null,null,null,null,null,null,null,null,null,null,null,null,null,null,null,null,null,null,null,null,null,null,null,null,null,null,null,null,null,null,null,null,null,null,null,null,null,null,null,null,null,null,null,null,null,null,null,null,null,null,null,"h6-4"]
["表７　食品循環資源の熱回収の実施量（⑦）"]
["業種",null,null,null,null,null,null,null,null,null,null,null,null,null,null,null,null,null,null,null,null,null,null,null,null,null,null,"熱回収の実施量（ｔ）"]
[null,null,null,null,null,null,null,null,null,null,null,null,null,null,null,null,null,null,null,null,null,null,null,null,null,null,null,null,null,null,null,null,null,null,null,null,null,null,null,null,null,null,null,null,null,null,null,null,null,null,null,null,null,null,null,null,null,null,null,"h7-1"]
[null,null,null,null,null,null,null,null,null,null,null,null,null,null,null,null,null,null,null,null,null,null,null,null,null,null,null,null,null,null,null,null,null,null,null,null,null,null,null,null,null,null,null,null,null,null,null,null,null,null,null,null,null,null,null,null,null,null,null,"h7-1"]
["合計",null,null,null,null,null,null,null,null,null,null,null,null,null,null,null,null,null,null,null,null,null,null,null,null,null,null,{"$f":"SUM(AB216:BA217)","v":0},null,null,null,null,null,null,null,null,null,null,null,null,null,null,null,null,null,null,null,null,null,null,null,null,null,null,null,null,null,null,null,"h7-2"]
[]
["表８　食品廃棄物等の減量の実施量（⑧）"]
["業種",null,null,null,null,null,null,null,null,null,null,null,null,null,null,null,null,null,null,null,null,null,null,null,null,null,null,"減量の実施量（ｔ）"]
[null,null,null,null,null,null,null,null,null,null,null,null,null,null,null,null,null,null,null,null,null,null,null,null,null,null,null,null,null,null,null,null,null,null,null,null,null,null,null,null,null,null,null,null,null,null,null,null,null,null,null,null,null,null,null,null,null,null,null,"h8-1"]
[null,null,null,null,null,null,null,null,null,null,null,null,null,null,null,null,null,null,null,null,null,null,null,null,null,null,null,null,null,null,null,null,null,null,null,null,null,null,null,null,null,null,null,null,null,null,null,null,null,null,null,null,null,null,null,null,null,null,null,"h8-1"]
["合計",null,null,null,null,null,null,null,null,null,null,null,null,null,null,null,null,null,null,null,null,null,null,null,null,null,null,{"$f":"SUM(AB222:BA223)","v":0},null,null,null,null,null,null,null,null,null,null,null,null,null,null,null,null,null,null,null,null,null,null,null,null,null,null,null,null,null,null,null,"h8-3"]
[]
["表９　食品循環資源の再生利用等以外の実施量（⑨）"]
["業種",null,null,null,null,null,null,null,null,null,null,null,null,null,null,null,null,"特定肥飼料等以外の製品の種類",null,null,null,null,null,null,null,null,null,null,null,null,null,null,null,null,null,"再生利用等以外の実施量（ｔ）"]
[null,null,null,null,null,null,null,null,null,null,null,null,null,null,null,null,null,null,null,null,null,null,null,null,null,null,null,null,null,null,null,null,null,null,null,null,null,null,null,null,null,null,null,null,null,null,null,null,null,null,null,null,null,null,null,null,null,null,null,"h9-1","肥料"]
[null,null,null,null,null,null,null,null,null,null,null,null,null,null,null,null,null,null,null,null,null,null,null,null,null,null,null,null,null,null,null,null,null,null,null,null,null,null,null,null,null,null,null,null,null,null,null,null,null,null,null,null,null,null,null,null,null,null,null,"h9-1","飼料"]
[null,null,null,null,null,null,null,null,null,null,null,null,null,null,null,null,null,null,null,null,null,null,null,null,null,null,null,null,null,null,null,null,null,null,null,null,null,null,null,null,null,null,null,null,null,null,null,null,null,null,null,null,null,null,null,null,null,null,null,"h9-1","炭化の過程を経て製造される燃料及び還元剤"]
[null,null,null,null,null,null,null,null,null,null,null,null,null,null,null,null,null,null,null,null,null,null,null,null,null,null,null,null,null,null,null,null,null,null,null,null,null,null,null,null,null,null,null,null,null,null,null,null,null,null,null,null,null,null,null,null,null,null,null,"h9-1","油脂及び油脂製品"]
[null,null,null,null,null,null,null,null,null,null,null,null,null,null,null,null,null,null,null,null,null,null,null,null,null,null,null,null,null,null,null,null,null,null,null,null,null,null,null,null,null,null,null,null,null,null,null,null,null,null,null,null,null,null,null,null,null,null,null,"h9-1","エタノール"]
[null,null,null,null,null,null,null,null,null,null,null,null,null,null,null,null,null,"小計",null,null,null,null,null,null,null,null,null,null,null,null,null,null,null,null,null,{"$f":"SUM(AJ228:BA232)","v":0},null,null,null,null,null,null,null,null,null,null,null,null,null,null,null,null,null,null,null,null,null,null,null,"h9-2","メタン"]
[null,null,null,null,null,null,null,null,null,null,null,null,null,null,null,null,null,null,null,null,null,null,null,null,null,null,null,null,null,null,null,null,null,null,null,null,null,null,null,null,null,null,null,null,null,null,null,null,null,null,null,null,null,null,null,null,null,null,null,"h9-1","肥料"]
[null,null,null,null,null,null,null,null,null,null,null,null,null,null,null,null,null,null,null,null,null,null,null,null,null,null,null,null,null,null,null,null,null,null,null,null,null,null,null,null,null,null,null,null,null,null,null,null,null,null,null,null,null,null,null,null,null,null,null,"h9-1","飼料"]
[null,null,null,null,null,null,null,null,null,null,null,null,null,null,null,null,null,null,null,null,null,null,null,null,null,null,null,null,null,null,null,null,null,null,null,null,null,null,null,null,null,null,null,null,null,null,null,null,null,null,null,null,null,null,null,null,null,null,null,"h9-1","炭化の過程を経て製造される燃料及び還元剤"]
[null,null,null,null,null,null,null,null,null,null,null,null,null,null,null,null,null,null,null,null,null,null,null,null,null,null,null,null,null,null,null,null,null,null,null,null,null,null,null,null,null,null,null,null,null,null,null,null,null,null,null,null,null,null,null,null,null,null,null,"h9-1","油脂及び油脂製品"]
[null,null,null,null,null,null,null,null,null,null,null,null,null,null,null,null,null,null,null,null,null,null,null,null,null,null,null,null,null,null,null,null,null,null,null,null,null,null,null,null,null,null,null,null,null,null,null,null,null,null,null,null,null,null,null,null,null,null,null,"h9-1","エタノール"]
[null,null,null,null,null,null,null,null,null,null,null,null,null,null,null,null,null,"小計",null,null,null,null,null,null,null,null,null,null,null,null,null,null,null,null,null,{"$f":"SUM(AJ234:BA238)","v":0},null,null,null,null,null,null,null,null,null,null,null,null,null,null,null,null,null,null,null,null,null,null,null,"h9-2","メタン"]
["合計",null,null,null,null,null,null,null,null,null,null,null,null,null,null,null,null,null,null,null,null,null,null,null,null,null,null,null,null,null,null,null,null,null,null,null,null,null,null,null,null,null,null,null,null,null,null,null,null,null,null,null,null,null,null,null,null,null,null,"h9-3"]
[null,null,null,null,null,null,null,null,null,null,null,null,null,null,null,null,null,null,null,null,null,null,null,null,null,null,null,null,null,null,null,null,null,null,null,null,null,null,null,null,null,null,null,null,null,null,null,null,null,null,null,null,null,null,null,null,null,null,null,"h9-3"]
[null,null,null,null,null,null,null,null,null,null,null,null,null,null,null,null,null,null,null,null,null,null,null,null,null,null,null,null,null,null,null,null,null,null,null,null,null,null,null,null,null,null,null,null,null,null,null,null,null,null,null,null,null,null,null,null,null,null,null,"h9-3"]
[null,null,null,null,null,null,null,null,null,null,null,null,null,null,null,null,null,null,null,null,null,null,null,null,null,null,null,null,null,null,null,null,null,null,null,null,null,null,null,null,null,null,null,null,null,null,null,null,null,null,null,null,null,null,null,null,null,null,null,"h9-3"]
[null,null,null,null,null,null,null,null,null,null,null,null,null,null,null,null,null,null,null,null,null,null,null,null,null,null,null,null,null,null,null,null,null,null,null,null,null,null,null,null,null,null,null,null,null,null,null,null,null,null,null,null,null,null,null,null,null,null,null,"h9-3"]
["総計",null,null,null,null,null,null,null,null,null,null,null,null,null,null,null,null,null,null,null,null,null,null,null,null,null,null,null,null,null,null,null,null,null,null,{"$f":"SUM(AJ240:BA244)","v":0},null,null,null,null,null,null,null,null,null,null,null,null,null,null,null,null,null,null,null,null,null,null,null,"h9-4"]
[]
["表10　食品廃棄物等の廃棄物としての処分の実施量（⑩）"]
["業種",null,null,null,null,null,null,null,null,null,null,null,null,null,null,null,null,null,null,null,null,null,null,null,null,null,null,"廃棄物としての処分の実施量（ｔ）"]
[null,null,null,null,null,null,null,null,null,null,null,null,null,null,null,null,null,null,null,null,null,null,null,null,null,null,null,null,null,null,null,null,null,null,null,null,null,null,null,null,null,null,null,null,null,null,null,null,null,null,null,null,null,null,null,null,null,null,null,"h10-1"]
[null,null,null,null,null,null,null,null,null,null,null,null,null,null,null,null,null,null,null,null,null,null,null,null,null,null,null,null,null,null,null,null,null,null,null,null,null,null,null,null,null,null,null,null,null,null,null,null,null,null,null,null,null,null,null,null,null,null,null,"h10-1"]
["合計",null,null,null,null,null,null,null,null,null,null,null,null,null,null,null,null,null,null,null,null,null,null,null,null,null,null,{"$f":"SUM(AB249:BA250)","v":0},null,null,null,null,null,null,null,null,null,null,null,null,null,null,null,null,null,null,null,null,null,null,null,null,null,null,null,null,null,null,null,"h10-2"]
[]
["表11　食品循環資源の再生利用等の実施率（（④＋⑥＋⑦×0.95＋⑧）÷（①＋④）×100（％））"]
["平成19年度及び直近５年度の基準実施率（％）"]
["平成19年度",null,null,null,null,null,null,null,null,"令和2年度",null,null,null,null,null,null,null,null,"令和3年度",null,null,null,null,null,null,null,null,"令和4年度",null,null,null,null,null,null,null,null,"令和5年度",null,null,null,null,null,null,null,null,"令和6年度",null,null,null,null,null,null,null,null,null,null,null,null,null,null,null,null,null,null,null,null,null,null,"平成２０年度","平成２１年度","平成２２年度","平成２３年度","平成２４年度","平成２５年度","平成２６年度","平成２７年度","平成２８年度","平成２９年度","平成３０年度","令和元年度"]
[null,null,null,null,null,null,null,null,null,{"$f":"IF(CB256=\"-\",22,IF(CB256=\"\",\"\",IF(CB256>100,FALSE,IF(CB256>=80,CB256,IF(AND(CB256>=50,CB256<80),CB256+1,IF(AND(CB256>=20,CB256<50),CB256+2,IF(CB256<20,22,FALSE)))))))","v":""},null,null,null,null,null,null,null,null,{"$f":"IF(J256=\"-\",22,IF(J256=\"\",\"\",IF(J256>100,FALSE,IF(J256>=80,J256,IF(AND(J256>=50,J256<80),J256+1,IF(AND(J256>=20,J256<50),J256+2,IF(J256<20,22,FALSE)))))))","v":""},null,null,null,null,null,null,null,null,{"$f":"IF(S256=\"-\",22,IF(S256=\"\",\"\",IF(S256>100,FALSE,IF(S256>=80,S256,IF(AND(S256>=50,S256<80),S256+1,IF(AND(S256>=20,S256<50),S256+2,IF(S256<20,22,FALSE)))))))","v":""},null,null,null,null,null,null,null,null,{"$f":"IF(AB256=\"-\",22,IF(AB256=\"\",\"\",IF(AB256>100,FALSE,IF(AB256>=80,AB256,IF(AND(AB256>=50,AB256<80),AB256+1,IF(AND(AB256>=20,AB256<50),AB256+2,IF(AB256<20,22,FALSE)))))))","v":""},null,null,null,null,null,null,null,null,{"$f":"IF(AK256=\"-\",22,IF(AK256=\"\",\"\",IF(AK256>100,FALSE,IF(AK256>=80,AK256,IF(AND(AK256>=50,AK256<80),AK256+1,IF(AND(AK256>=20,AK256<50),AK256+2,IF(AK256<20,22,FALSE)))))))","v":""},null,null,null,null,null,null,null,null,null,null,null,null,null,"h11-1",null,null,null,null,null,null,null,null,{"$f":"IF(A256=\"-\",22,IF(A256=\"\",\"\",IF(A256>100,FALSE,IF(A256>=80,A256,IF(AND(A256>=50,A256<80),A256+1,IF(AND(A256>=20,A256<50),A256+2,IF(A256<20,22,FALSE)))))))","v":""},{"$f":"IF(BQ256=\"-\",22,IF(BQ256=\"\",\"\",IF(BQ256>100,FALSE,IF(BQ256>=80,BQ256,IF(AND(BQ256>=50,BQ256<80),BQ256+1,IF(AND(BQ256>=20,BQ256<50),BQ256+2,IF(BQ256<20,22,FALSE)))))))","v":""},"","","","","",{"$f":"IF(BW256=\"-\",22,IF(BW256=\"\",\"\",IF(BW256>100,FALSE,IF(BW256>=80,BW256,IF(AND(BW256>=50,BW256<80),BW256+1,IF(AND(BW256>=20,BW256<50),BW256+2,IF(BW256<20,22,FALSE)))))))","v":""},{"$f":"IF(BX256=\"-\",22,IF(BX256=\"\",\"\",IF(BX256>100,FALSE,IF(BX256>=80,BX256,IF(AND(BX256>=50,BX256<80),BX256+1,IF(AND(BX256>=20,BX256<50),BX256+2,IF(BX256<20,22,FALSE)))))))","v":""},{"$f":"IF(BY256=\"-\",22,IF(BY256=\"\",\"\",IF(BY256>100,FALSE,IF(BY256>=80,BY256,IF(AND(BY256>=50,BY256<80),BY256+1,IF(AND(BY256>=20,BY256<50),BY256+2,IF(BY256<20,22,FALSE)))))))","v":""},{"$f":"IF(BZ256=\"-\",22,IF(BZ256=\"\",\"\",IF(BZ256>100,FALSE,IF(BZ256>=80,BZ256,IF(AND(BZ256>=50,BZ256<80),BZ256+1,IF(AND(BZ256>=20,BZ256<50),BZ256+2,IF(BZ256<20,22,FALSE)))))))","v":""},{"$f":"IF(CA256=\"-\",22,IF(CA256=\"\",\"\",IF(CA256>100,FALSE,IF(CA256>=80,CA256,IF(AND(CA256>=50,CA256<80),CA256+1,IF(AND(CA256>=20,CA256<50),CA256+2,IF(CA256<20,22,FALSE)))))))","v":""}]
["当年度の再生利用等の実施率",null,null,null,null,null,null,null,null,null,null,null,null,null,null,null,null,null,null,null,null,null,null,null,null,null,null,"再生利用等の実施率（％）"]
[null,null,null,null,null,null,null,null,null,null,null,null,null,null,null,null,null,null,null,null,null,null,null,null,null,null,null,{"$f":"IF(AB63+AJ83=0,0,ROUND(((AJ83+AJ108+0.95*AB218+AB224)/(AB63+AJ83)*100),1))","v":0},null,null,null,null,null,null,null,null,null,null,null,null,null,null,null,null,null,null,null,null,null,null,null,null,null,null,null,null,null,null,null,"h11-2"]
["業種",null,null,null,null,null,null,null,null,null,null,null,null,null,null,null,null,null,null,null,null,null,null,null,null,null,null,"再生利用等の実施率（％）"]
[null,null,null,null,null,null,null,null,null,null,null,null,null,null,null,null,null,null,null,null,null,null,null,null,null,null,null,{"$f":"IF(AB61+AJ81=0,0,((AJ81+SUM(AJ87:AJ93)+0.95*AB216+AB222)/(AB61+AJ81)*100))","v":0},null,null,null,null,null,null,null,null,null,null,null,null,null,null,null,null,null,null,null,null,null,null,null,null,null,null,null,null,null,null,null,"h11-3"]
[null,null,null,null,null,null,null,null,null,null,null,null,null,null,null,null,null,null,null,null,null,null,null,null,null,null,null,{"$f":"IF(AB62+AJ82=0,0,((AJ82+SUM(AJ94:AJ100)+0.95*AB217+AB223)/(AB62+AJ82)*100))","v":0},null,null,null,null,null,null,null,null,null,null,null,null,null,null,null,null,null,null,null,null,null,null,null,null,null,null,null,null,null,null,null,"h11-3"]
["再生利用等の実施率が基\n準実施率を下回った理由",null,null,null,null,null,null,null,null,null,null,null,null,null,null,null,null,null,null,null,null,null,null,null,null,null,null,null,null,null,null,null,null,null,null,null,null,null,null,null,null,null,null,null,null,null,null,null,null,null,null,null,null,null,null,null,null,null,null,"h11-4"]
[]
["表12　再生利用の委託先又は食品循環資源の譲渡先の業者"]
["委託先\n又は譲\n渡先の\n業者",null,null,null,null,"氏名（法人にあっては名称及び代表者氏名）",null,null,null,null,null,null,null,null,null,null,null,null,null,null,null,null,null,null,null,null,null,null,null,null,null,null,null,null,null,null,null,null,null,null,null,null,null,null,null,null,null,null,null,null,null,null,null,null,null,null,null,null,null,"h12-5"]
[null,null,null,null,null,"住所",null,null,null,null,null,null,null,null,null,null,null,null,null,null,null,null,null,null,null,null,null,null,null,null,null,null,null,null,null,null,null,null,null,null,null,null,null,null,null,null,null,null,null,null,null,null,null,null,null,null,null,null,null,"h12-6"]
[null,null,null,null,null,"再生利用の実施量（ｔ）",null,null,null,null,null,null,null,null,null,null,null,null,null,null,null,null,null,null,null,null,null,null,null,null,null,null,null,null,null,null,null,null,null,null,null,null,null,null,null,null,null,null,null,null,null,null,null,null,null,null,null,null,null,"h12-7"]
[null,null,null,null,null,"特定肥飼料等の種類",null,null,null,null,null,null,null,null,null,null,null,null,null,null,null,null,null,null,null,null,null,null,null,null,null,null,null,null,null,null,null,null,null,null,null,null,null,null,null,null,null,null,null,null,null,null,null,null,null,null,null,null,null,"h12-8"]
[null,null,null,null,null,null,null,null,null,null,null,null,null,null,null,null,null,null,null,null,null,null,null,null,null,null,null,null,null,null,null,null,null,null,null,null,null,null,null,null,null,null,null,null,null,null,null,null,null,null,null,null,null,null,null,null,null,null,null,"h12-8"]
[null,null,null,null,null,null,null,null,null,null,null,null,null,null,null,null,null,null,null,null,null,null,null,null,null,null,null,null,null,null,null,null,null,null,null,null,null,null,null,null,null,null,null,null,null,null,null,null,null,null,null,null,null,null,null,null,null,null,null,"h12-8"]
[null,null,null,null,null,null,null,null,null,null,null,null,null,null,null,null,null,null,null,null,null,null,null,null,null,null,null,null,null,null,null,null,null,null,null,null,null,null,null,null,null,null,null,null,null,null,null,null,null,null,null,null,null,null,null,null,null,null,null,"h12-8"]
[null,null,null,null,null,null,null,null,null,null,null,null,null,null,null,null,null,null,null,null,null,null,null,null,null,null,null,null,null,null,null,null,null,null,null,null,null,null,null,null,null,null,null,null,null,null,null,null,null,null,null,null,null,null,null,null,null,null,null,"h12-8"]
[null,null,null,null,null,null,null,null,null,null,null,null,null,null,null,null,null,null,null,null,null,null,null,null,null,null,null,null,null,null,null,null,null,null,null,null,null,null,null,null,null,null,null,null,null,null,null,null,null,null,null,null,null,null,null,null,null,null,null,"h12-8"]
["委託先\n又は譲\n渡先の\n業者",null,null,null,null,"氏名（法人にあっては名称及び代表者氏名）",null,null,null,null,null,null,null,null,null,null,null,null,null,null,null,null,null,null,null,null,null,null,null,null,null,null,null,null,null,null,null,null,null,null,null,null,null,null,null,null,null,null,null,null,null,null,null,null,null,null,null,null,null,"h12-5"]
[null,null,null,null,null,"住所",null,null,null,null,null,null,null,null,null,null,null,null,null,null,null,null,null,null,null,null,null,null,null,null,null,null,null,null,null,null,null,null,null,null,null,null,null,null,null,null,null,null,null,null,null,null,null,null,null,null,null,null,null,"h12-6"]
[null,null,null,null,null,"再生利用の実施量（ｔ）",null,null,null,null,null,null,null,null,null,null,null,null,null,null,null,null,null,null,null,null,null,null,null,null,null,null,null,null,null,null,null,null,null,null,null,null,null,null,null,null,null,null,null,null,null,null,null,null,null,null,null,null,null,"h12-7"]
[null,null,null,null,null,"特定肥飼料等の種類",null,null,null,null,null,null,null,null,null,null,null,null,null,null,null,null,null,null,null,null,null,null,null,null,null,null,null,null,null,null,null,null,null,null,null,null,null,null,null,null,null,null,null,null,null,null,null,null,null,null,null,null,null,"h12-8"]
[null,null,null,null,null,null,null,null,null,null,null,null,null,null,null,null,null,null,null,null,null,null,null,null,null,null,null,null,null,null,null,null,null,null,null,null,null,null,null,null,null,null,null,null,null,null,null,null,null,null,null,null,null,null,null,null,null,null,null,"h12-8"]
[null,null,null,null,null,null,null,null,null,null,null,null,null,null,null,null,null,null,null,null,null,null,null,null,null,null,null,null,null,null,null,null,null,null,null,null,null,null,null,null,null,null,null,null,null,null,null,null,null,null,null,null,null,null,null,null,null,null,null,"h12-8"]
[null,null,null,null,null,null,null,null,null,null,null,null,null,null,null,null,null,null,null,null,null,null,null,null,null,null,null,null,null,null,null,null,null,null,null,null,null,null,null,null,null,null,null,null,null,null,null,null,null,null,null,null,null,null,null,null,null,null,null,"h12-8"]
[null,null,null,null,null,null,null,null,null,null,null,null,null,null,null,null,null,null,null,null,null,null,null,null,null,null,null,null,null,null,null,null,null,null,null,null,null,null,null,null,null,null,null,null,null,null,null,null,null,null,null,null,null,null,null,null,null,null,null,"h12-8"]
[null,null,null,null,null,null,null,null,null,null,null,null,null,null,null,null,null,null,null,null,null,null,null,null,null,null,null,null,null,null,null,null,null,null,null,null,null,null,null,null,null,null,null,null,null,null,null,null,null,null,null,null,null,null,null,null,null,null,null,"h12-8"]
[]
["表13　熱回収により得られた熱量（その熱を電気に変換した場合にあっては、当該電気の量）\n        （熱回収の委託先又は食品循環資源の譲渡先における熱量又は電気の量を含む。）"]
["業種",null,null,null,null,null,null,null,null,null,null,null,null,"熱回収により得られた熱量又はその熱を変換して得られた電気の量"]
[null,null,null,null,null,null,null,null,null,null,null,null,null,"熱量（MJ）",null,null,null,null,null,null,null,null,null,null,null,null,null,null,null,null,null,null,null,"電気の量（MJ）"]
[null,null,null,null,null,null,null,null,null,null,null,null,null,null,null,null,null,null,null,null,null,null,null,null,null,null,null,null,null,null,null,null,null,null,null,null,null,null,null,null,null,null,null,null,null,null,null,null,null,null,null,null,null,null,null,null,null,null,null,"h13-1"]
[null,null,null,null,null,null,null,null,null,null,null,null,null,null,null,null,null,null,null,null,null,null,null,null,null,null,null,null,null,null,null,null,null,null,null,null,null,null,null,null,null,null,null,null,null,null,null,null,null,null,null,null,null,null,null,null,null,null,null,"h13-1"]
["合計",null,null,null,null,null,null,null,null,null,null,null,null,{"$f":"SUM(N287:AG288)","v":0},null,null,null,null,null,null,null,null,null,null,null,null,null,null,null,null,null,null,null,{"$f":"SUM(AH287:BA288)","v":0},null,null,null,null,null,null,null,null,null,null,null,null,null,null,null,null,null,null,null,null,null,null,null,null,null,"h13-2"]
["委託先又は譲渡先の業者",null,null,null,null,"氏名（法人にあっては名称及び代表者氏名）",null,null,null,null,null,null,null,null,null,null,null,null,null,null,null,null,null,null,null,null,null,null,null,null,null,null,null,null,null,null,null,null,null,null,null,null,null,null,null,null,null,null,null,null,null,null,null,null,null,null,null,null,null,"h13-3"]
[null,null,null,null,null,"住所",null,null,null,null,null,null,null,null,null,null,null,null,null,null,null,null,null,null,null,null,null,null,null,null,null,null,null,null,null,null,null,null,null,null,null,null,null,null,null,null,null,null,null,null,null,null,null,null,null,null,null,null,null,"h13-4"]
[null,null,null,null,null,"熱回収の実施量（ｔ）",null,null,null,null,null,null,null,null,null,null,null,null,null,null,null,null,null,null,null,null,null,null,null,null,null,null,null,null,null,null,null,null,null,null,null,null,null,null,null,null,null,null,null,null,null,null,null,null,null,null,null,null,null,"h13-5"]
[null,null,null,null,null,"熱量（MJ）",null,null,null,null,null,null,null,null,null,null,null,null,null,null,null,null,null,null,null,null,null,null,null,"電気の量（MJ）",null,null,null,null,null,null,null,null,null,null,null,null,null,null,null,null,null,null,null,null,null,null,null,null,null,null,null,null,null,"h13-6"]
["委託先又は譲渡先の業者",null,null,null,null,"氏名（法人にあっては名称及び代表者氏名）",null,null,null,null,null,null,null,null,null,null,null,null,null,null,null,null,null,null,null,null,null,null,null,null,null,null,null,null,null,null,null,null,null,null,null,null,null,null,null,null,null,null,null,null,null,null,null,null,null,null,null,null,null,"h13-3"]
[null,null,null,null,null,"住所",null,null,null,null,null,null,null,null,null,null,null,null,null,null,null,null,null,null,null,null,null,null,null,null,null,null,null,null,null,null,null,null,null,null,null,null,null,null,null,null,null,null,null,null,null,null,null,null,null,null,null,null,null,"h13-4"]
[null,null,null,null,null,"熱回収の実施量（ｔ）",null,null,null,null,null,null,null,null,null,null,null,null,null,null,null,null,null,null,null,null,null,null,null,null,null,null,null,null,null,null,null,null,null,null,null,null,null,null,null,null,null,null,null,null,null,null,null,null,null,null,null,null,null,"h13-5"]
[null,null,null,null,null,"熱量（MJ）",null,null,null,null,null,null,null,null,null,null,null,null,null,null,null,null,null,null,null,null,null,null,null,"電気の量（MJ）",null,null,null,null,null,null,null,null,null,null,null,null,null,null,null,null,null,null,null,null,null,null,null,null,null,null,null,null,null,"h13-6"]
[]
["表14　判断の基準となるべき事項の遵守状況"]
["判断の基準となるべき事項",null,null,null,null,null,null,null,null,null,null,null,null,null,null,null,null,null,null,null,null,null,null,null,null,null,null,null,null,null,null,null,null,null,null,null,null,null,null,null,null,null,null,"遵守状況"]
["食品循環資源の再生利用等の実施の原則",null,null,null,null,null,null,null,null,null,null,null,null,null,null,null,null,null,null,null,null,null,null,null,null,null,null,null,null,null,null,null,null,null,null,null,null,null,null,null,null,null,null,null,null,null,null,null,null,null,null,null,null,"1"]
[null,null,null,"食品循環資源の再生利用等の優先順位に関すること",null,null,null,null,null,null,null,null,null,null,null,null,null,null,null,null,null,null,null,null,null,null,null,null,null,null,null,null,null,null,null,null,null,null,null,null,null,null,null,null,null,null,null,null,null,null,null,null,null,"1-①",null,null,null,null,null,"h14-1"]
[null,null,null,"食品廃棄物等の不適正な処理を防止するための措置に関すること",null,null,null,null,null,null,null,null,null,null,null,null,null,null,null,null,null,null,null,null,null,null,null,null,null,null,null,null,null,null,null,null,null,null,null,null,null,null,null,null,null,null,null,null,null,null,null,null,null,"1-②",null,null,null,null,null,"h14-2"]
["食品廃棄物等の発生の抑制",null,null,null,null,null,null,null,null,null,null,null,null,null,null,null,null,null,null,null,null,null,null,null,null,null,null,null,null,null,null,null,null,null,null,null,null,null,null,null,null,null,null,null,null,null,null,null,null,null,null,null,null,"2"]
[null,null,null,"食品の製造又は加工の過程における原材料の使用の合理化を行うこと",null,null,null,null,null,null,null,null,null,null,null,null,null,null,null,null,null,null,null,null,null,null,null,null,null,null,null,null,null,null,null,null,null,null,null,null,null,null,null,null,null,null,null,null,null,null,null,null,null,"2-①",null,null,null,null,null,"h14-3"]
[null,null,null,"食品の流通の過程における食品の品質管理の高度化その他配送及び保管の方法の改善を行うこと",null,null,null,null,null,null,null,null,null,null,null,null,null,null,null,null,null,null,null,null,null,null,null,null,null,null,null,null,null,null,null,null,null,null,null,null,null,null,null,null,null,null,null,null,null,null,null,null,null,"2-②",null,null,null,null,null,"h14-4"]
[null,null,null,"食品の販売の過程における食品の売れ残りを減少させるための工夫を行うこと（例：需給予測精度の向上、売り切り（販売期限の見直しを含む。））",null,null,null,null,null,null,null,null,null,null,null,null,null,null,null,null,null,null,null,null,null,null,null,null,null,null,null,null,null,null,null,null,null,null,null,null,null,null,null,null,null,null,null,null,null,null,null,null,null,"2-③",null,null,null,null,null,"h14-5"]
[null,null,null,"食品の調理の過程における調理残さを減少させるための調理方法の改善を行うこと（例：メニューの工夫）",null,null,null,null,null,null,null,null,null,null,null,null,null,null,null,null,null,null,null,null,null,null,null,null,null,null,null,null,null,null,null,null,null,null,null,null,null,null,null,null,null,null,null,null,null,null,null,null,null,"2-④",null,null,null,null,null,"h14-6"]
[null,null,null,"食事の提供の過程における食べ残しを減少させるためのメニューの工夫を行うこと（例：提供量の調整、メニューの工夫、持帰りを可能にすること、食べ残しが減少するよう利用者へ呼び掛けを行うこと）",null,null,null,null,null,null,null,null,null,null,null,null,null,null,null,null,null,null,null,null,null,null,null,null,null,null,null,null,null,null,null,null,null,null,null,null,null,null,null,null,null,null,null,null,null,null,null,null,null,"2-⑤",null,null,null,null,null,"h14-7"]
[null,null,null,"未利用食品等まだ食べることができる食品を提供するための活動のために当該食品の提供に努めること（例：フードバンク、福祉施設への提供）",null,null,null,null,null,null,null,null,null,null,null,null,null,null,null,null,null,null,null,null,null,null,null,null,null,null,null,null,null,null,null,null,null,null,null,null,null,null,null,null,null,null,null,null,null,null,null,null,null,"2-⑥"]
[null,null,null,"売れ残りその他の食品廃棄物等の発生形態ごとに定期的に発生量を計測し、その変動の状況の把握に努めること",null,null,null,null,null,null,null,null,null,null,null,null,null,null,null,null,null,null,null,null,null,null,null,null,null,null,null,null,null,null,null,null,null,null,null,null,null,null,null,null,null,null,null,null,null,null,null,null,null,"2-⑦",null,null,null,null,null,"h14-8"]
[null,null,null,"賞味期限の表示方法についての工夫や賞味期限の延長を行うよう努めること",null,null,null,null,null,null,null,null,null,null,null,null,null,null,null,null,null,null,null,null,null,null,null,null,null,null,null,null,null,null,null,null,null,null,null,null,null,null,null,null,null,null,null,null,null,null,null,null,null,"2-⑧"]
[null,null,null,"取引先の食品関連事業者が食品廃棄物等の発生の抑制を実施できるよう努めること（例：納品期限の緩和、発注の早期化）",null,null,null,null,null,null,null,null,null,null,null,null,null,null,null,null,null,null,null,null,null,null,null,null,null,null,null,null,null,null,null,null,null,null,null,null,null,null,null,null,null,null,null,null,null,null,null,null,null,"2-⑨",null,null,null,null,null,"h14-9"]
[null,null,null,"必要に応じ細分化した実施目標を定め、計画的な食品廃棄物等の発生の抑制に努めること",null,null,null,null,null,null,null,null,null,null,null,null,null,null,null,null,null,null,null,null,null,null,null,null,null,null,null,null,null,null,null,null,null,null,null,null,null,null,null,null,null,null,null,null,null,null,null,null,null,"2-⑩",null,null,null,null,null,"h14-49"]
["食品循環資源の管理の基準",null,null,null,null,null,null,null,null,null,null,null,null,null,null,null,null,null,null,null,null,null,null,null,null,null,null,null,null,null,null,null,null,null,null,null,null,null,null,null,null,null,null,null,null,null,null,null,null,null,null,null,null,"3"]
[null,null,null,"食品循環資源と容器包装その他の異物及び特定肥飼料等の原材料の用途に適さない食品廃棄物等とを適切に分別すること",null,null,null,null,null,null,null,null,null,null,null,null,null,null,null,null,null,null,null,null,null,null,null,null,null,null,null,null,null,null,null,null,null,null,null,null,null,null,null,null,null,null,null,null,null,null,null,null,null,"3-①",null,null,null,null,null,"h14-10"]
[null,null,null,"異物その他の特定肥飼料等を利用する上での危害の原因となる物質の混入を防止すること",null,null,null,null,null,null,null,null,null,null,null,null,null,null,null,null,null,null,null,null,null,null,null,null,null,null,null,null,null,null,null,null,null,null,null,null,null,null,null,null,null,null,null,null,null,null,null,null,null,"3-②",null,null,null,null,null,"h14-11"]
[null,null,null,"食品循環資源の品質を保持するため必要がある場合には、腐敗防止のための温度管理その他の品質管理を適切に行うこと",null,null,null,null,null,null,null,null,null,null,null,null,null,null,null,null,null,null,null,null,null,null,null,null,null,null,null,null,null,null,null,null,null,null,null,null,null,null,null,null,null,null,null,null,null,null,null,null,null,"3-③",null,null,null,null,null,"h14-12"]
["食品廃棄物等の収集又は運搬の基準",null,null,null,null,null,null,null,null,null,null,null,null,null,null,null,null,null,null,null,null,null,null,null,null,null,null,null,null,null,null,null,null,null,null,null,null,null,null,null,null,null,null,null,null,null,null,null,null,null,null,null,null,"4"]
[null,null,null,"食品循環資源を特定肥飼料等の原材料として利用する場合は、異物その他の特定肥飼料等を利用する上での危害の原因となる物質の混入を防止すること",null,null,null,null,null,null,null,null,null,null,null,null,null,null,null,null,null,null,null,null,null,null,null,null,null,null,null,null,null,null,null,null,null,null,null,null,null,null,null,null,null,null,null,null,null,null,null,null,null,"4-①",null,null,null,null,null,"h14-13"]
[null,null,null,"食品循環資源を特定肥飼料等の原材料として利用する場合であって、食品循環資源の品質を保持するため必要がある場合には、腐敗防止のための温度管理その他の品質管理を適切に行うこと",null,null,null,null,null,null,null,null,null,null,null,null,null,null,null,null,null,null,null,null,null,null,null,null,null,null,null,null,null,null,null,null,null,null,null,null,null,null,null,null,null,null,null,null,null,null,null,null,null,"4-②",null,null,null,null,null,"h14-14"]
[null,null,null,"生活環境の保全上の支障が生じないよう適切な措置を講ずること",null,null,null,null,null,null,null,null,null,null,null,null,null,null,null,null,null,null,null,null,null,null,null,null,null,null,null,null,null,null,null,null,null,null,null,null,null,null,null,null,null,null,null,null,null,null,null,null,null,"4-③",null,null,null,null,null,"h14-15"]
[null,null,null,"食品廃棄物等の性状、形態又は発生の状況等に鑑み、食用に供されるものと誤認されるおそれがあると認められる場合に、食品廃棄物等の不適切な処理を防止するための適切な措置を講ずること",null,null,null,null,null,null,null,null,null,null,null,null,null,null,null,null,null,null,null,null,null,null,null,null,null,null,null,null,null,null,null,null,null,null,null,null,null,null,null,null,null,null,null,null,null,null,null,null,null,"4-④",null,null,null,null,null,"h14-16"]
["食品廃棄物等の収集又は運搬の委託の基準",null,null,null,null,null,null,null,null,null,null,null,null,null,null,null,null,null,null,null,null,null,null,null,null,null,null,null,null,null,null,null,null,null,null,null,null,null,null,null,null,null,null,null,null,null,null,null,null,null,null,null,null,"5"]
[null,null,null,"上記の基準に従って食品廃棄物等の収集又は運搬を行う者を選定すること",null,null,null,null,null,null,null,null,null,null,null,null,null,null,null,null,null,null,null,null,null,null,null,null,null,null,null,null,null,null,null,null,null,null,null,null,null,null,null,null,null,null,null,null,null,null,null,null,null,"5-①",null,null,null,null,null,"h14-17"]
[null,null,null,"委託先における食品廃棄物等の収集又は運搬の実施状況を定期的に把握すること",null,null,null,null,null,null,null,null,null,null,null,null,null,null,null,null,null,null,null,null,null,null,null,null,null,null,null,null,null,null,null,null,null,null,null,null,null,null,null,null,null,null,null,null,null,null,null,null,null,"5-②",null,null,null,null,null,"h14-18"]
[null,null,null,"委託先における食品廃棄物等の収集又は運搬が上記の基準に従って行われていない、又は委託の内容に即して行われていないと認められるときは、委託先の変更その他必要な措置を講ずること",null,null,null,null,null,null,null,null,null,null,null,null,null,null,null,null,null,null,null,null,null,null,null,null,null,null,null,null,null,null,null,null,null,null,null,null,null,null,null,null,null,null,null,null,null,null,null,null,null,"5-③",null,null,null,null,null,"h14-19"]
["再生利用に係る特定肥飼料等の製造の基準",null,null,null,null,null,null,null,null,null,null,null,null,null,null,null,null,null,null,null,null,null,null,null,null,null,null,null,null,null,null,null,null,null,null,null,null,null,null,null,null,null,null,null,null,null,null,null,null,null,null,null,null,"6"]
[null,null,null,"農林漁業者等の需要に適合する品質を有する特定肥飼料等の製造を行うこと",null,null,null,null,null,null,null,null,null,null,null,null,null,null,null,null,null,null,null,null,null,null,null,null,null,null,null,null,null,null,null,null,null,null,null,null,null,null,null,null,null,null,null,null,null,null,null,null,null,"6-①",null,null,null,null,null,"h14-20"]
[null,null,null,"食品循環資源と容器包装その他の異物及び特定肥飼料等の原材料の用途に適さない食品廃棄物等とを適切に分別すること",null,null,null,null,null,null,null,null,null,null,null,null,null,null,null,null,null,null,null,null,null,null,null,null,null,null,null,null,null,null,null,null,null,null,null,null,null,null,null,null,null,null,null,null,null,null,null,null,null,"6-②",null,null,null,null,null,"h14-21"]
[null,null,null,"食品循環資源の品質を保持するため必要がある場合には、腐敗防止のための温度管理その他の品質管理を適切に行うこと",null,null,null,null,null,null,null,null,null,null,null,null,null,null,null,null,null,null,null,null,null,null,null,null,null,null,null,null,null,null,null,null,null,null,null,null,null,null,null,null,null,null,null,null,null,null,null,null,null,"6-③",null,null,null,null,null,"h14-22"]
[null,null,null,"食品循環資源を特定肥飼料等の原材料として最大限に利用すること",null,null,null,null,null,null,null,null,null,null,null,null,null,null,null,null,null,null,null,null,null,null,null,null,null,null,null,null,null,null,null,null,null,null,null,null,null,null,null,null,null,null,null,null,null,null,null,null,null,"6-④",null,null,null,null,null,"h14-23"]
[null,null,null,"異物その他の特定肥飼料等を利用する上での危害の原因となる物質の混入の防止その他の工程管理を適切に行うこと",null,null,null,null,null,null,null,null,null,null,null,null,null,null,null,null,null,null,null,null,null,null,null,null,null,null,null,null,null,null,null,null,null,null,null,null,null,null,null,null,null,null,null,null,null,null,null,null,null,"6-⑤",null,null,null,null,null,"h14-24"]
[null,null,null,"食品循環資源及びそれ以外の原材料並びに特定肥飼料等の性状の分析及び管理を適正に行い、特定肥飼料等の含有成分の安定化を図ること",null,null,null,null,null,null,null,null,null,null,null,null,null,null,null,null,null,null,null,null,null,null,null,null,null,null,null,null,null,null,null,null,null,null,null,null,null,null,null,null,null,null,null,null,null,null,null,null,null,"6-⑥",null,null,null,null,null,"h14-25"]
[null,null,null,"生活環境の保全上の支障が生じないよう適切な措置を講ずること",null,null,null,null,null,null,null,null,null,null,null,null,null,null,null,null,null,null,null,null,null,null,null,null,null,null,null,null,null,null,null,null,null,null,null,null,null,null,null,null,null,null,null,null,null,null,null,null,null,"6-⑦",null,null,null,null,null,"h14-26"]
[null,null,null,"特定肥飼料等を他人に譲渡する場合には、当該特定肥飼料等が利用されずに廃棄されることのないよう、特定肥飼料等の利用を確保すること",null,null,null,null,null,null,null,null,null,null,null,null,null,null,null,null,null,null,null,null,null,null,null,null,null,null,null,null,null,null,null,null,null,null,null,null,null,null,null,null,null,null,null,null,null,null,null,null,null,"6-⑧",null,null,null,null,null,"h14-27"]
[null,null,null,"食品廃棄物等の性状、形態又は発生の状況等に鑑み、食用に供されるものと誤認されるおそれがあると認められる場合に、食品廃棄物等の不適切な処理を防止するための適切な措置を講ずること",null,null,null,null,null,null,null,null,null,null,null,null,null,null,null,null,null,null,null,null,null,null,null,null,null,null,null,null,null,null,null,null,null,null,null,null,null,null,null,null,null,null,null,null,null,null,null,null,null,"6-⑨",null,null,null,null,null,"h14-28"]
[null,null,null,"肥料の製造を行うときは、その製造する肥料について、肥料取締法及びこれに基づく命令により定められた規格に適合させること",null,null,null,null,null,null,null,null,null,null,null,null,null,null,null,null,null,null,null,null,null,null,null,null,null,null,null,null,null,null,null,null,null,null,null,null,null,null,null,null,null,null,null,null,null,null,null,null,null,"6-⑩",null,null,null,null,null,"h14-29"]
[null,null,null,"飼料の製造を行うときは、その製造する飼料について、飼料の安全性の確保及び品質の改善に関する法律及び愛がん動物用飼料の安全性の確保に関する法律並びにこれらに基づく命令により定められた基準及び規格に適合させること",null,null,null,null,null,null,null,null,null,null,null,null,null,null,null,null,null,null,null,null,null,null,null,null,null,null,null,null,null,null,null,null,null,null,null,null,null,null,null,null,null,null,null,null,null,null,null,null,null,"6-⑪",null,null,null,null,null,"h14-30"]
[null,null,null,"配合飼料の製造を行うときは、粉末乾燥処理を行うこと",null,null,null,null,null,null,null,null,null,null,null,null,null,null,null,null,null,null,null,null,null,null,null,null,null,null,null,null,null,null,null,null,null,null,null,null,null,null,null,null,null,null,null,null,null,null,null,null,null,"6-⑫",null,null,null,null,null,"h14-31"]
["再生利用に係る特定肥飼料等の製造の委託及び食品循環資源の譲渡の基準",null,null,null,null,null,null,null,null,null,null,null,null,null,null,null,null,null,null,null,null,null,null,null,null,null,null,null,null,null,null,null,null,null,null,null,null,null,null,null,null,null,null,null,null,null,null,null,null,null,null,null,null,"7"]
[null,null,null,"上記の基準に従って特定肥飼料等の製造を行い、かつ、当該製造を行う者の再生利用事業の内容及び周辺地域における再生利用事業に係る公示された料金等を踏まえ、適正な料金で再生利用事業を実施している者を選定すること",null,null,null,null,null,null,null,null,null,null,null,null,null,null,null,null,null,null,null,null,null,null,null,null,null,null,null,null,null,null,null,null,null,null,null,null,null,null,null,null,null,null,null,null,null,null,null,null,null,"7-①",null,null,null,null,null,"h14-32"]
[null,null,null,"委託先又は譲渡先における特定肥飼料等の製造及び譲渡の実施状況を定期的に把握すること",null,null,null,null,null,null,null,null,null,null,null,null,null,null,null,null,null,null,null,null,null,null,null,null,null,null,null,null,null,null,null,null,null,null,null,null,null,null,null,null,null,null,null,null,null,null,null,null,null,"7-②",null,null,null,null,null,"h14-33"]
[null,null,null,"委託先又は譲渡先における特定肥飼料等の製造が上記の基準に従って行われていない、又は委託の内容に即して行われていないと認められるときは、委託先又は譲渡先の変更その他必要な措置を講ずること",null,null,null,null,null,null,null,null,null,null,null,null,null,null,null,null,null,null,null,null,null,null,null,null,null,null,null,null,null,null,null,null,null,null,null,null,null,null,null,null,null,null,null,null,null,null,null,null,null,"7-③",null,null,null,null,null,"h14-34"]
["食品循環資源の熱回収",null,null,null,null,null,null,null,null,null,null,null,null,null,null,null,null,null,null,null,null,null,null,null,null,null,null,null,null,null,null,null,null,null,null,null,null,null,null,null,null,null,null,null,null,null,null,null,null,null,null,null,null,"8"]
[null,null,null,"食品循環資源を生ずる自らの工場又は事業場から七十五キロメートルの範囲内における特定肥飼料等製造施設の有無について適切に把握し、その記録を行うこと",null,null,null,null,null,null,null,null,null,null,null,null,null,null,null,null,null,null,null,null,null,null,null,null,null,null,null,null,null,null,null,null,null,null,null,null,null,null,null,null,null,null,null,null,null,null,null,null,null,"8-①",null,null,null,null,null,"h14-35"]
[null,null,null,"食品循環資源を生ずる自らの工場又は事業場から七十五キロメートルの範囲内に存する特定肥飼料等製造施設において、当該食品循環資源を受け入れて再生利用することが著しく困難であることを示す状況について適切に把握し、その記録を行うこと",null,null,null,null,null,null,null,null,null,null,null,null,null,null,null,null,null,null,null,null,null,null,null,null,null,null,null,null,null,null,null,null,null,null,null,null,null,null,null,null,null,null,null,null,null,null,null,null,null,"8-②",null,null,null,null,null,"h14-36"]
[null,null,null,"熱回収を行う食品循環資源の種類及び発熱量その他の性状について適切に把握し、その記録を行うこと",null,null,null,null,null,null,null,null,null,null,null,null,null,null,null,null,null,null,null,null,null,null,null,null,null,null,null,null,null,null,null,null,null,null,null,null,null,null,null,null,null,null,null,null,null,null,null,null,null,"8-③",null,null,null,null,null,"h14-37"]
[null,null,null,"食品循環資源の熱回収により得られた熱量（その熱を電気に変換した場合にあっては、当該電気の量）について適切に把握し、その記録を行うこと",null,null,null,null,null,null,null,null,null,null,null,null,null,null,null,null,null,null,null,null,null,null,null,null,null,null,null,null,null,null,null,null,null,null,null,null,null,null,null,null,null,null,null,null,null,null,null,null,null,"8-④",null,null,null,null,null,"h14-38"]
[null,null,null,"熱回収を行う施設の名称及び所在地について適切に把握し、その記録を行うこと",null,null,null,null,null,null,null,null,null,null,null,null,null,null,null,null,null,null,null,null,null,null,null,null,null,null,null,null,null,null,null,null,null,null,null,null,null,null,null,null,null,null,null,null,null,null,null,null,null,"8-⑤",null,null,null,null,null,"h14-39"]
["情報の提供",null,null,null,null,null,null,null,null,null,null,null,null,null,null,null,null,null,null,null,null,null,null,null,null,null,null,null,null,null,null,null,null,null,null,null,null,null,null,null,null,null,null,null,null,null,null,null,null,null,null,null,null,"9"]
[null,null,null,"特定肥飼料等の利用者（特定肥飼料等の製造を委託又は食品循環資源を譲渡している場合にあっては、当該委託先又は譲渡先）に対し、特定肥飼料等の原材料として利用する食品循環資源について、必要な情報を提供すること",null,null,null,null,null,null,null,null,null,null,null,null,null,null,null,null,null,null,null,null,null,null,null,null,null,null,null,null,null,null,null,null,null,null,null,null,null,null,null,null,null,null,null,null,null,null,null,null,null,"9-①",null,null,null,null,null,"h14-40"]
[null,null,null,"未利用食品等まだ食べることができる食品を提供するための活動のために提供した当該食品の量、食品廃棄物等の発生量及び食品循環資源の再生利用等の状況についての情報を有価証券報告書、統合報告書等への記載、インターネットの利用その他の方法により提供するよう努めること",null,null,null,null,null,null,null,null,null,null,null,null,null,null,null,null,null,null,null,null,null,null,null,null,null,null,null,null,null,null,null,null,null,null,null,null,null,null,null,null,null,null,null,null,null,null,null,null,null,"9-②",null,null,null,null,null,"h14-41"]
["食品廃棄物等の減量",null,null,null,null,null,null,null,null,null,null,null,null,null,null,null,null,null,null,null,null,null,null,null,null,null,null,null,null,null,null,null,null,null,null,null,null,null,null,null,null,null,null,null,null,null,null,null,null,null,null,null,null,"10"]
[null,null,null,"減量の実施後に残存する食品廃棄物等について、適正な処理を行うこと",null,null,null,null,null,null,null,null,null,null,null,null,null,null,null,null,null,null,null,null,null,null,null,null,null,null,null,null,null,null,null,null,null,null,null,null,null,null,null,null,null,null,null,null,null,null,null,null,null,"10-①",null,null,null,null,null,"h14-42"]
["費用の低減",null,null,null,null,null,null,null,null,null,null,null,null,null,null,null,null,null,null,null,null,null,null,null,null,null,null,null,null,null,null,null,null,null,null,null,null,null,null,null,null,null,null,null,null,null,null,null,null,null,null,null,null,"11"]
[null,null,null,"食品循環資源の再生利用等の効率的な実施体制の整備を図ることにより、食品循環資源の再生利用等に要する費用を低減させるよう努めること",null,null,null,null,null,null,null,null,null,null,null,null,null,null,null,null,null,null,null,null,null,null,null,null,null,null,null,null,null,null,null,null,null,null,null,null,null,null,null,null,null,null,null,null,null,null,null,null,null,"11-①",null,null,null,null,null,"h14-43"]
["加盟者における食品循環資源の再生利用等の促進",null,null,null,null,null,null,null,null,null,null,null,null,null,null,null,null,null,null,null,null,null,null,null,null,null,null,null,null,null,null,null,null,null,null,null,null,null,null,null,null,null,null,null,null,null,null,null,null,null,null,null,null,"12"]
[null,null,null,"本部事業者は、加盟者の事業活動に伴い生ずる食品廃棄物等について、加盟者に対し、食品循環資源の再生利用等に関し必要な指導を行い、食品循環資源の再生利用等を促進するよう努めること",null,null,null,null,null,null,null,null,null,null,null,null,null,null,null,null,null,null,null,null,null,null,null,null,null,null,null,null,null,null,null,null,null,null,null,null,null,null,null,null,null,null,null,null,null,null,null,null,null,"12-①",null,null,null,null,null,"h14-44"]
[null,null,null,"加盟者は、本部事業者が実施する食品循環資源の再生利用等の促進のための措置に協力するよう努めること",null,null,null,null,null,null,null,null,null,null,null,null,null,null,null,null,null,null,null,null,null,null,null,null,null,null,null,null,null,null,null,null,null,null,null,null,null,null,null,null,null,null,null,null,null,null,null,null,null,"12-②",null,null,null,null,null,"h14-45"]
["教育訓練",null,null,null,null,null,null,null,null,null,null,null,null,null,null,null,null,null,null,null,null,null,null,null,null,null,null,null,null,null,null,null,null,null,null,null,null,null,null,null,null,null,null,null,null,null,null,null,null,null,null,null,null,"13"]
[null,null,null,"従業員に対して、食品循環資源の再生利用等に関する必要な教育訓練を行うよう努めること",null,null,null,null,null,null,null,null,null,null,null,null,null,null,null,null,null,null,null,null,null,null,null,null,null,null,null,null,null,null,null,null,null,null,null,null,null,null,null,null,null,null,null,null,null,null,null,null,null,"13-①",null,null,null,null,null,"h14-46"]
["再生利用等の実施状況の把握及び管理体制の整備",null,null,null,null,null,null,null,null,null,null,null,null,null,null,null,null,null,null,null,null,null,null,null,null,null,null,null,null,null,null,null,null,null,null,null,null,null,null,null,null,null,null,null,null,null,null,null,null,null,null,null,null,"14"]
[null,null,null,"事業活動に伴い生ずる食品廃棄物等の発生量及び食品循環資源の再生利用等の実施量その他食品循環資源の再生利用等の状況を適切に把握し、その記録を行うこと",null,null,null,null,null,null,null,null,null,null,null,null,null,null,null,null,null,null,null,null,null,null,null,null,null,null,null,null,null,null,null,null,null,null,null,null,null,null,null,null,null,null,null,null,null,null,null,null,null,"14-①",null,null,null,null,null,"h14-47"]
[null,null,null,"事業場ごとの責任者の選任その他管理体制の整備を行うこと",null,null,null,null,null,null,null,null,null,null,null,null,null,null,null,null,null,null,null,null,null,null,null,null,null,null,null,null,null,null,null,null,null,null,null,null,null,null,null,null,null,null,null,null,null,null,null,null,null,"14-②",null,null,null,null,null,"h14-48"]
[]
["表15　食品循環資源の再生利用等の促進に関する食品関連事業者の判断の基準となるべき事項を定める省令（平成13年財務省・厚生労\n　　　働省・農林水産省・経済産業省・国土交通省・環境省令第４号）第10条第２項の情報の提供の方法（情報を提供していない場合（表 18\n　　　において「有」と記入する場合を除く。）にあっては、その理由）"]
[null,null,null,null,null,null,null,null,null,null,null,null,null,null,null,null,null,null,null,null,null,null,null,null,null,null,null,null,null,null,null,null,null,null,null,null,null,null,null,null,null,null,null,null,null,null,null,null,null,null,null,null,null,null,null,null,null,null,null,"h15"]
[]
["表16　未利用食品等まだ食べることができる食品を提供するための活動のために提供した当該食品の量"]
["有償：　　　　　　ｔ\n無償：　　　　　　ｔ",null,null,null,null,null,null,null,null,null,null,null,null,null,null,null,null,null,null,null,null,null,null,null,null,null,null,null,null,null,null,null,null,null,null,null,null,null,null,null,null,null,null,null,null,null,null,null,null,null,null,null,null,null,null,null,null,null,null,"h16",null,null,null,null,null,null,"\n福祉目的でのフードバンク等への食品提供量については、有償／無償の別に記載してください。提供していない場合は、「０（ゼロ）」を記入してください。提供していない又は提供できない理由がある場合はその旨を追記いただいても構いません。なお、「・福祉目的でのフードバンク等への食品提供量（有償：　ｔ、無償：　ｔ）」の文字は削除しないでください。"]
[]
["表17　食品循環資源の再生利用等の促進のための先進的な取組"]
[null,null,null,null,null,null,null,null,null,null,null,null,null,null,null,null,null,null,null,null,null,null,null,null,null,null,null,null,null,null,null,null,null,null,null,null,null,null,null,null,null,null,null,null,null,null,null,null,null,null,null,null,null,null,null,null,null,null,null,"h16",null,null,null,null,null,null,"発生抑制（食品ロスの削減を含む。）、再生利用などに関して、「先進的」にこだわらず、特徴的な取組を行っている場合は、具体的な内容を記載してください。\n"]
[]
["表18　国が公表を行うことについての同意の有無"]
[null,null,null,null,null,null,null,null,null,null,null,null,null,null,null,null,null,null,null,null,null,null,null,null,null,null,null,null,null,null,null,null,null,null,null,null,null,null,null,null,null,null,null,null,null,null,null,null,null,null,null,null,null,null,null,null,null,null,null,"h17"]
[]
["表19　表18において「無」とした場合、その理由"]
[null,null,null,null,null,null,null,null,null,null,null,null,null,null,null,null,null,null,null,null,null,null,null,null,null,null,null,null,null,null,null,null,null,null,null,null,null,null,null,null,null,null,null,null,null,null,null,null,null,null,null,null,null,null,null,null,null,null,null,"h16"]
[]
["＜備考＞"]
["１",null,null,"報告書冒頭の※印を付した欄は記入しないこと。"]
["２",null,null,"「業種」の欄には、「部分肉・冷凍肉製造業」、「肉加工品製造業」、「牛乳・乳製品製造業」、「その他の畜産食料品製造業」、「水産缶詰・瓶詰製造業」、「海藻加工業」、「塩干・塩蔵品製造業」、「水産練製品製造業」、「冷凍水産物製造業」、「冷凍水産食品製造業」、「その他の水産食料品製造業」、「野菜缶詰・果実缶詰・農産保存食料品製造業（野菜漬物製造業を除く。）」、「野菜漬物製造業」、「味そ製造業」、「しょうゆ製造業」、「ソース製造業」、「食酢製造業」、「その他の調味料製造業」、「甘しゃ糖製造業」、「てん菜糖製造業」、「砂糖精製業」、「ぶどう糖・水あめ・異性化糖製造業」、「精米・精麦業」、「小麦粉製造業」、「その他の精穀・製粉業」、「パン製造業」、「菓子製造業」、「動植物油脂製造業（食用油脂加工業を除く。）」、「食用油脂加工業」、「でん粉製造業」、「麺類製造業」、「豆腐・油揚製造業」、「あん類製造業」、「冷凍調理食品製造業」、「そう菜製造業」、「すし・弁当・調理パン製造業」、「レトルト食品製造業」、「他に分類されない食料品製造業」、「清涼飲料製造業（茶、コーヒー、果汁など残さが出るものに限る。）」、「清涼飲料製造業（その他）」、「果実酒製造業」、「ビール類製造業」、「清酒製造業」、「単式蒸留焼酎製造業」、「蒸留酒・混成酒製造業（単式蒸留焼酎製造業を除く。）」、「製茶業」、「コーヒー製造業」、「米麦卸売業・雑穀卸売業」、「野菜卸売業・果実卸売業」、「食肉卸売業」、「生鮮魚介卸売業」、「その他の農畜産物・水産物卸売業」、「食料・飲料卸売業（飲料を中心とするものに限る。）」、「食料・飲料卸売業（飲料を中心とするものを除く。）」、「各種食料品小売業」、「野菜・果実小売業」、「食肉小売業（卵・鳥肉を除く。）」、「卵・鳥肉小売業」、「鮮魚小売業」、「酒小売業」、「菓子・パン小売業」、「コンビニエンスストア」、「その他の飲食料品小売業（コンビニエンスストアを除く。）」、「食堂・レストラン（麺類を中心とするものを除き、すし店を含む。）」、「食堂・レストラン（麺類を中心とするものに限り、そば・うどん店を含む。）」、「居酒屋等」、「喫茶店」、「ファーストフード店」、「その他の飲食店（ファーストフード店を除く。）」、「持ち帰り・配達飲食サービス業（給食事業を除く。）」、「給食事業」、「沿海旅客海運業」、「内陸水運業」、「結婚式場業」及び「旅館業」のうち、該当するものを全て記入すること。\n"]
["３",null,null,"また、「法第９条第２項に規定する事業の有無」の欄には、該当する場合にあっては「有」を、該当しない場合にあっては「無」を記入すること。"]
["４",null,null,"「報告書作成責任者氏名」の欄には、本報告書の作成を担当した者の所属部署及び氏名を記入すること。"]
["５",null,null,"表１の食品廃棄物等の発生量については、法第９条第２項に掲げる食品関連事業者にあっては、加盟者の食品廃棄物等の発生量も含めた量を記入すること。"]
["６",null,null,"表２において、食品廃棄物等の発生量と密接な関係をもつ値として、「売上高」、「製造数量」又は「その他の食品廃棄物等の発生量と密接な関係をもつ値」のいずれかについて、最も適切な値を選択し、その名称、単位及び数値を記入すること。\nなお、「食品廃棄物等の発生量と密接な関係をもつ値」を前年度より変更しようとする場合は、変更後の「食品廃棄物等の発生量と密接な関係をもつ値」については、平成19年度以前（平成20年度以降に新たに食品関連事業者の事業を開始した場合又は食品関連事業者が合併、分割、相続若しくは譲渡により他の食品関連事業者から当該事業者の事業を継承した場合には、当該事業を開始した日の属する年度又は合併、分割、相続若しくは譲渡があった日の属する年度）からその数値を把握しているものに限るものとし、表３の対前年度比及び表11の基準実施率の数値は、変更後の「食品廃棄物等の発生量と密接な関係をもつ値」によって算出される数値を記入すること。"]
["７",null,null,"表３の「基準発生原単位」が定められていない場合は、「該当なし」と記入すること。"]
["８",null,null,"表３の発生原単位の対前年度比が100％を超えた場合又は発生原単位が基準発生原単位を上回った場合は、その理由について記入すること。"]
["９",null,null,"表４の「平成19年度発生原単位」の欄には、平成20年度以降に新たに食品関連事業者の事業を開始した場合又は食品関連事業者が合併、分割、相続若しくは譲渡により他の食品関連事業者から当該事業者の事業を承継した場合には、当該事業を開始した日の属する年度又は合併、分割、相続若しくは譲渡があった日の属する年度の発生原単位を記入すること。"]
["10",null,null,"表９の食品循環資源の再生利用等以外の実施量については、事業活動に伴い生じた食品廃棄物等のうち、特定肥飼料等以外の製品の原材料として利用された食品循環資源の量及び特定肥飼料等以外の製品の原材料として利用するために譲渡された食品循環資源の量の合計量を記入すること。"]
["11",null,null,"表11の「平成19年度及び直近５年度の基準実施率（％）」の欄には、平成19年度及び直近５年度（当年度を含む。）における食品循環資源の再生利用等の促進に関する食品関連事業者の判断の基準となるべき事項を定める省令（平成13年財務省・厚生労働省・農林水産省・経済産業省・国土交通省・環境省令第４号）第２条に規定する基準実施率を記入すること。\nまた、食品循環資源の再生利用等の実施率が基準実施率を下回った場合は、その理由について記入すること。"]
["12",null,null,"表14の「遵守状況」の欄には、「適」、「不適」又は「該当しない」のいずれかを記入すること。"]
["13",null,null,"表15において、情報の提供の方法がインターネットによるものである場合にあってはそのホームページアドレス（二次元コードその他のこれに代わるものを含む。）を記入すること。\n"]
["14",null,null,"表18において、当該定期報告の内容のうち事業者名、表３の発生原単位、表11の当年度の再生利用等の実施率、表14の遵守状況及び表16の量及び表17の取組内容を国が公表することに同意する場合にあっては「有」を、同意しない場合にあっては「無」を記入すること。\n"]

{"sheet":"マスタ","index":1,"n_rows":186,"n_cols":51,"rows_kept":186,"cut":false,"hidden":true,"merged":[]}
["都道府県",null,"北海道","青森県","岩手県","宮城県","秋田県","山形県","福島県","茨城県","栃木県","群馬県","埼玉県","千葉県","東京都","神奈川県","新潟県","富山県","石川県","福井県","山梨県","長野県","岐阜県","静岡県","愛知県","三重県","滋賀県","京都府","大阪府","兵庫県","奈良県","和歌山県","鳥取県","島根県","岡山県","広島県","山口県","徳島県","香川県","愛媛県","高知県","福岡県","佐賀県","長崎県","熊本県","大分県","宮崎県","鹿児島県","沖縄県",null,"業種"]
["北海道",null,"札幌市","青森市","盛岡市","仙台市","秋田市","山形市","福島市","水戸市","宇都宮市","前橋市","さいたま市","千葉市","千代田区","横浜市","新潟市","富山市","金沢市","福井市","甲府市","長野市","岐阜市","静岡市","名古屋市","津市","大津市","京都市","大阪市","神戸市","奈良市","和歌山市","鳥取市","松江市","岡山市","広島市","下関市","徳島市","高松市","松山市","高知市","北九州市","佐賀市","長崎市","熊本市","大分市","宮崎市","鹿児島市","那覇市",null,"肉加工品製造業"]
["青森県",null,"函館市","弘前市","宮古市","石巻市","能代市","米沢市","会津若松市","日立市","足利市","高崎市","川越市","銚子市","中央区","川崎市","長岡市","高岡市","七尾市","敦賀市","富士吉田市","松本市","大垣市","浜松市","豊橋市","四日市市","彦根市","福知山市","堺市","姫路市","大和高田市","海南市","米子市","浜田市","倉敷市","呉市","宇部市","鳴門市","丸亀市","今治市","室戸市","福岡市","唐津市","佐世保市","八代市","別府市","都城市","鹿屋市","宜野湾市",null,"冷凍水産物製造業"]
["岩手県",null,"小樽市","八戸市","大船渡市","塩竈市","横手市","鶴岡市","郡山市","土浦市","栃木市","桐生市","熊谷市","市川市","港区","相模原市","三条市","魚津市","小松市","小浜市","都留市","上田市","高山市","沼津市","岡崎市","伊勢市","長浜市","舞鶴市","岸和田市","尼崎市","大和郡山市","橋本市","倉吉市","出雲市","津山市","竹原市","山口市","小松島市","坂出市","宇和島市","安芸市","大牟田市","鳥栖市","島原市","人吉市","中津市","延岡市","枕崎市","石垣市",null,"その他の畜産食料品製造業"]
["宮城県",null,"旭川市","黒石市","花巻市","気仙沼市","大館市","酒田市","いわき市","古河市","佐野市","伊勢崎市","川口市","船橋市","新宿区","横須賀市","柏崎市","氷見市","輪島市","大野市","山梨市","岡谷市","多治見市","熱海市","一宮市","松阪市","近江八幡市","綾部市","豊中市","明石市","天理市","有田市","境港市","益田市","玉野市","三原市","萩市","阿南市","善通寺市","八幡浜市","南国市","久留米市","多久市","諫早市","荒尾市","日田市","日南市","阿久根市","浦添市"]
["秋田県",null,"室蘭市","五所川原市","北上市","白石市","男鹿市","新庄市","白河市","石岡市","鹿沼市","太田市","行田市","館山市","文京区","平塚市","新発田市","滑川市","珠洲市","勝山市","大月市","飯田市","関市","三島市","瀬戸市","桑名市","草津市","宇治市","池田市","西宮市","橿原市","御坊市","岩美町","大田市","笠岡市","尾道市","防府市","吉野川市","観音寺市","新居浜市","土佐市","直方市","伊万里市","大村市","水俣市","佐伯市","小林市","出水市","名護市"]
["山形県",null,"釧路市","十和田市","久慈市","名取市","湯沢市","寒河江市","須賀川市","結城市","日光市","沼田市","秩父市","木更津市","台東区","鎌倉市","小千谷市","黒部市","加賀市","鯖江市","韮崎市","諏訪市","中津川市","富士宮市","半田市","鈴鹿市","守山市","宮津市","吹田市","洲本市","桜井市","田辺市","若桜町","安来市","井原市","福山市","下松市","阿波市","さぬき市","西条市","須崎市","飯塚市","武雄市","平戸市","玉名市","臼杵市","日向市","指宿市","糸満市"]
["福島県",null,"帯広市","三沢市","遠野市","角田市","鹿角市","上山市","喜多方市","龍ケ崎市","小山市","館林市","所沢市","松戸市","墨田区","藤沢市","加茂市","砺波市","羽咋市","あわら市","南アルプス市","須坂市","美濃市","伊東市","春日井市","名張市","栗東市","亀岡市","泉大津市","芦屋市","五條市","新宮市","智頭町","江津市","総社市","府中市","岩国市","美馬市","東かがわ市","大洲市","宿毛市","田川市","鹿島市","松浦市","山鹿市","津久見市","串間市","西之表市","沖縄市"]
["茨城県",null,"北見市","むつ市","一関市","多賀城市","由利本荘市","村山市","相馬市","下妻市","真岡市","渋川市","飯能市","野田市","江東区","小田原市","十日町市","小矢部市","かほく市","越前市","北杜市","小諸市","瑞浪市","島田市","豊川市","尾鷲市","甲賀市","城陽市","高槻市","伊丹市","御所市","紀の川市","八頭町","雲南市","高梁市","三次市","光市","三好市","三豊市","伊予市","土佐清水市","柳川市","小城市","対馬市","菊池市","竹田市","西都市","垂水市","豊見城市"]
["栃木県",null,"夕張市","つがる市","陸前高田市","岩沼市","潟上市","長井市","二本松市","常総市","大田原市","藤岡市","加須市","茂原市","品川区","茅ヶ崎市","見附市","南砺市","白山市","坂井市","甲斐市","伊那市","羽島市","富士市","津島市","亀山市","野洲市","向日市","貝塚市","相生市","生駒市","岩出市","三朝町","奥出雲町","新見市","庄原市","長門市","勝浦町","土庄町","四国中央市","四万十市","八女市","嬉野市","壱岐市","宇土市","豊後高田市","えびの市","薩摩川内市","うるま市"]
["群馬県",null,"岩見沢市","平川市","釜石市","登米市","大仙市","天童市","田村市","常陸太田市","矢板市","富岡市","本庄市","成田市","目黒区","逗子市","村上市","射水市","能美市","永平寺町","笛吹市","駒ヶ根市","恵那市","磐田市","碧南市","鳥羽市","湖南市","長岡京市","守口市","豊岡市","香芝市","紀美野町","湯梨浜町","飯南町","備前市","大竹市","柳井市","上勝町","小豆島町","西予市","香南市","筑後市","神埼市","五島市","上天草市","杵築市","三股町","日置市","宮古島市"]
["埼玉県",null,"網走市","平内町","二戸市","栗原市","北秋田市","東根市","南相馬市","高萩市","那須塩原市","安中市","東松山市","佐倉市","大田区","三浦市","燕市","舟橋村","野々市市","池田町","上野原市","中野市","美濃加茂市","焼津市","刈谷市","熊野市","高島市","八幡市","枚方市","加古川市","葛城市","かつらぎ町","琴浦町","川本町","瀬戸内市","東広島市","美祢市","佐那河内村","三木町","東温市","香美市","大川市","吉野ヶ里町","西海市","宇城市","宇佐市","高原町","曽於市","南城市"]
["千葉県",null,"留萌市","今別町","八幡平市","東松島市","にかほ市","尾花沢市","伊達市","北茨城市","さくら市","みどり市","春日部市","東金市","世田谷区","秦野市","糸魚川市","上市町","川北町","南越前町","甲州市","大町市","土岐市","掛川市","豊田市","いなべ市","東近江市","京田辺市","茨木市","赤穂市","宇陀市","九度山町","北栄町","美郷町","赤磐市","廿日市市","周南市","石井町","直島町","上島町","東洋町","行橋市","基山町","雲仙市","阿蘇市","豊後大野市","国富町","霧島市","国頭村"]
["東京都",null,"苫小牧市","蓬田村","奥州市","大崎市","仙北市","南陽市","本宮市","笠間市","那須烏山市","榛東村","狭山市","旭市","渋谷区","厚木市","妙高市","立山町","津幡町","越前町","中央市","飯山市","各務原市","藤枝市","安城市","志摩市","米原市","京丹後市","八尾市","西脇市","山添村","高野町","日吉津村","邑南町","真庭市","安芸高田市","山陽小野田市","神山町","宇多津町","久万高原町","奈半利町","豊前市","上峰町","南島原市","天草市","由布市","綾町","いちき串木野市","大宜味村"]
["神奈川県",null,"稚内市","外ヶ浜町","滝沢市","富谷市","小坂町","山辺町","桑折町","取手市","下野市","吉岡町","羽生市","習志野市","中野区","大和市","五泉市","入善町","内灘町","美浜町","市川三郷町","茅野市","可児市","御殿場市","西尾市","伊賀市","日野町","南丹市","泉佐野市","宝塚市","平群町","湯浅町","大山町","津和野町","美作市","江田島市","周防大島町","那賀町","綾川町","松前町","田野町","中間市","みやき町","長与町","合志市","国東市","高鍋町","南さつま市","東村"]
["新潟県",null,"美唄市","鰺ヶ沢町","雫石町","蔵王町","上小阿仁村","中山町","国見町","牛久市","上三川町","上野村","鴻巣市","柏市","杉並区","伊勢原市","上越市","朝日町","志賀町","高浜町","早川町","塩尻市","山県市","袋井市","蒲郡市","木曽岬町","竜王町","木津川市","富田林市","三木市","三郷町","広川町","南部町","吉賀町","浅口市","府中町","和木町","牟岐町","琴平町","砥部町","安田町","小郡市","玄海町","時津町","美里町","姫島村","新富町","志布志市","今帰仁村"]
["富山県",null,"芦別市","深浦町","葛巻町","七ヶ宿町","藤里町","河北町","川俣町","つくば市","益子町","神流町","深谷市","勝浦市","豊島区","海老名市","阿賀野市",null,"宝達志水町","おおい町","身延町","佐久市","瑞穂市","下田市","犬山市","東員町","愛荘町","大山崎町","寝屋川市","高砂市","斑鳩町","有田川町","伯耆町","海士町","和気町","海田町","上関町","美波町","多度津町","内子町","北川村","筑紫野市","有田町","東彼杵町","玉東町","日出町","西米良村","奄美市","本部町"]
["石川県",null,"江別市","西目屋村","岩手町","大河原町","三種町","西川町","大玉村","ひたちなか市","茂木町","下仁田町","上尾市","市原市","北区","座間市","佐渡市",null,"中能登町","若狭町","南部町","千曲市","飛騨市","裾野市","常滑市","菰野町","豊郷町","久御山町","河内長野市","川西市","安堵町","美浜町","日南町","西ノ島町","早島町","熊野町","田布施町","海陽町","まんのう町","伊方町","馬路村","春日市","大町町","川棚町","南関町","九重町","木城町","南九州市","恩納村"]
["福井県",null,"赤平市","藤崎町","紫波町","村田町","八峰町","朝日町","鏡石町","鹿嶋市","市貝町","南牧村","草加市","流山市","荒川区","南足柄市","魚沼市",null,"穴水町",null,"富士川町","東御市","本巣市","湖西市","江南市","朝日町","甲良町","井手町","松原市","小野市","川西町","日高町","日野町","知夫村","里庄町","坂町","平生町","松茂町",null,"松野町","芸西村","大野城市","江北町","波佐見町","長洲町","玖珠町","川南町","伊佐市","宜野座村"]
["山梨県",null,"紋別市","大鰐町","矢巾町","柴田町","五城目町","大江町","天栄村","潮来市","芳賀町","甘楽町","越谷市","八千代市","板橋区","綾瀬市","南魚沼市",null,"能登町",null,"昭和町","安曇野市","郡上市","伊豆市","小牧市","川越町","多賀町","宇治田原町","大東市","三田市","三宅町","由良町","江府町","隠岐の島町","矢掛町","安芸太田町","阿武町","北島町",null,"鬼北町","本山町","宗像市","白石町","小値賀町","和水町",null,"都農町","姶良市","金武町"]
["長野県",null,"士別市","田舎館村","西和賀町","川崎町","八郎潟町","大石田町","下郷町","守谷市","壬生町","中之条町","蕨市","我孫子市","練馬区","葉山町","胎内市",null,null,null,"道志村","小海町","下呂市","御前崎市","稲沢市","多気町",null,"笠置町","和泉市","加西市","田原本町","印南町",null,null,"新庄村","北広島町",null,"藍住町",null,"愛南町","大豊町","太宰府市","太良町","佐々町","大津町",null,"門川町","三島村","伊江村"]
["岐阜県",null,"名寄市","板柳町","金ケ崎町","丸森町","井川町","金山町","檜枝岐村","常陸大宮市","野木町","長野原町","戸田市","鴨川市","足立区","寒川町","聖籠町",null,null,null,"西桂町","川上村","海津市","菊川市","新城市","明和町",null,"和束町","箕面市","丹波篠山市","曽爾村","みなべ町",null,null,"鏡野町","大崎上島町",null,"板野町",null,null,"土佐町","古賀市",null,"新上五島町","菊陽町",null,"諸塚村","十島村","読谷村"]
["静岡県",null,"三笠市","鶴田町","平泉町","亘理町","大潟村","最上町","只見町","那珂市","塩谷町","嬬恋村","入間市","鎌ケ谷市","葛飾区","大磯町","弥彦村",null,null,null,"忍野村","南牧村","岐南町","伊豆の国市","東海市","大台町",null,"精華町","柏原市","養父市","御杖村","日高川町",null,null,"勝央町","世羅町",null,"上板町",null,null,"大川村","福津市",null,null,"南小国町",null,"椎葉村","さつま町","嘉手納町"]
["愛知県",null,"根室市","中泊町","住田町","山元町","美郷町","舟形町","南会津町","筑西市","高根沢町","草津町","朝霞市","君津市","江戸川区","二宮町","田上町",null,null,null,"山中湖村","南相木村","笠松町","牧之原市","大府市","玉城町",null,"南山城村","羽曳野市","丹波市","高取町","白浜町",null,null,"奈義町","神石高原町",null,"つるぎ町",null,null,"いの町","うきは市",null,null,"小国町",null,"美郷町","長島町","北谷町"]
["三重県",null,"千歳市","野辺地町","大槌町","松島町","羽後町","真室川町","北塩原村","坂東市","那須町","高山村","志木市","富津市","八王子市","中井町","阿賀町",null,null,null,"鳴沢村","北相木村","養老町","東伊豆町","知多市","度会町",null,"京丹波町","門真市","南あわじ市","明日香村","上富田町",null,null,"西粟倉村",null,null,"東みよし町",null,null,"仁淀川町","宮若市",null,null,"産山村",null,"高千穂町","湧水町","北中城村"]
["滋賀県",null,"滝川市","七戸町","山田町","七ヶ浜町","東成瀬村","大蔵村","西会津町","稲敷市","那珂川町","東吾妻町","和光市","浦安市","立川市","大井町","出雲崎町",null,null,null,"富士河口湖町","佐久穂町","垂井町","河津町","知立市","大紀町",null,"伊根町","摂津市","朝来市","上牧町","すさみ町",null,null,"久米南町",null,null,null,null,null,"中土佐町","嘉麻市",null,null,"高森町",null,"日之影町","大崎町","中城村"]
["京都府",null,"砂川市","六戸町","岩泉町","利府町",null,"鮭川村","磐梯町","かすみがうら市",null,"片品村","新座市","四街道市","武蔵野市","松田町","湯沢町",null,null,null,"小菅村","軽井沢町","関ケ原町","南伊豆町","尾張旭市","南伊勢町",null,"与謝野町","高石市","淡路市","王寺町","那智勝浦町",null,null,"美咲町",null,null,null,null,null,"佐川町","朝倉市",null,null,"西原村",null,"五ヶ瀬町","東串良町","西原町"]
["大阪府",null,"歌志内市","横浜町","田野畑村","大和町",null,"戸沢村","猪苗代町","桜川市",null,"川場村","桶川市","袖ケ浦市","三鷹市","山北町","津南町",null,null,null,"丹波山村","御代田町","神戸町","松崎町","高浜市","紀北町",null,null,"藤井寺市","宍粟市","広陵町","太地町",null,null,"吉備中央町",null,null,null,null,null,"越知町","みやま市",null,null,"南阿蘇村",null,null,"錦江町","与那原町"]
["兵庫県",null,"深川市","東北町","普代村","大郷町",null,"高畠町","会津坂下町","神栖市",null,"昭和村","久喜市","八街市","青梅市","開成町","刈羽村",null,null,null,null,"立科町","輪之内町","西伊豆町","岩倉市","御浜町",null,null,"東大阪市","加東市","河合町","古座川町",null,null,null,null,null,null,null,null,"梼原町","糸島市",null,null,"御船町",null,null,"南大隅町","南風原町"]
["奈良県",null,"富良野市","六ヶ所村","軽米町","大衡村",null,"川西町","湯川村","行方市",null,"みなかみ町","北本市","印西市","府中市","箱根町","関川村",null,null,null,null,"青木村","安八町","函南町","豊明市","紀宝町",null,null,"泉南市","たつの市","吉野町","北山村",null,null,null,null,null,null,null,null,"日高村","那珂川市",null,null,"嘉島町",null,null,"肝付町","渡嘉敷村"]
["和歌山県",null,"登別市","おいらせ町","野田村","色麻町",null,"小国町","柳津町","鉾田市",null,"玉村町","八潮市","白井市","昭島市","真鶴町","粟島浦村",null,null,null,null,"長和町","揖斐川町","清水町","日進市",null,null,null,"四條畷市","猪名川町","大淀町","串本町",null,null,null,null,null,null,null,null,"津野町","宇美町",null,null,"益城町",null,null,"中種子町","座間味村"]
["鳥取県",null,"恵庭市","大間町","九戸村","加美町",null,"白鷹町","三島町","つくばみらい市",null,"板倉町","富士見市","富里市","調布市","湯河原町",null,null,null,null,null,"下諏訪町","大野町","長泉町","田原市",null,null,null,"交野市","多可町","下市町",null,null,null,null,null,null,null,null,null,"四万十町","篠栗町",null,null,"甲佐町",null,null,"南種子町","粟国村"]
["島根県",null,"伊達市","東通村","洋野町","涌谷町",null,"飯豊町","金山町","小美玉市",null,"明和町","三郷市","南房総市","町田市","愛川町",null,null,null,null,null,"富士見町","池田町","小山町","愛西市",null,null,null,"大阪狭山市","稲美町","黒滝村",null,null,null,null,null,null,null,null,null,"大月町","志免町",null,null,"山都町",null,null,"屋久島町","渡名喜村"]
["岡山県",null,"北広島市","風間浦村","一戸町","美里町",null,"三川町","昭和村","茨城町",null,"千代田町","蓮田市","匝瑳市","小金井市","清川村",null,null,null,null,null,"原村","北方町","吉田町","清須市",null,null,null,"阪南市","播磨町","天川村",null,null,null,null,null,null,null,null,null,"三原村","須恵町",null,null,"氷川町",null,null,"大和村","南大東村"]
["広島県",null,"石狩市","佐井村",null,"女川町",null,"庄内町","会津美里町","大洗町",null,"大泉町","坂戸市","香取市","小平市",null,null,null,null,null,null,"辰野町","坂祝町","川根本町","北名古屋市",null,null,null,"島本町","市川町","野迫川村",null,null,null,null,null,null,null,null,null,"黒潮町","新宮町",null,null,"芦北町",null,null,"宇検村","北大東村"]
["山口県",null,"北斗市","三戸町",null,"南三陸町",null,"遊佐町","西郷村","城里町",null,"邑楽町","幸手市","山武市","日野市",null,null,null,null,null,null,"箕輪町","富加町","森町","弥富市",null,null,null,"豊能町","福崎町","十津川村",null,null,null,null,null,null,null,null,null,null,"久山町",null,null,"津奈木町",null,null,"瀬戸内町","伊平屋村"]
["徳島県",null,"当別町","五戸町",null,null,null,null,"泉崎村","東海村",null,null,"鶴ヶ島市","いすみ市","東村山市",null,null,null,null,null,null,"飯島町","川辺町",null,"みよし市",null,null,null,"能勢町","神河町","下北山村",null,null,null,null,null,null,null,null,null,null,"粕屋町",null,null,"錦町",null,null,"龍郷町","伊是名村"]
["香川県",null,"新篠津村","田子町",null,null,null,null,"中島村","大子町",null,null,"日高市","大網白里市","国分寺市",null,null,null,null,null,null,"南箕輪村","七宗町",null,"あま市",null,null,null,"忠岡町","太子町","上北山村",null,null,null,null,null,null,null,null,null,null,"芦屋町",null,null,"多良木町",null,null,"喜界町","久米島町"]
["愛媛県",null,"松前町","南部町",null,null,null,null,"矢吹町","美浦村",null,null,"吉川市","酒々井町","国立市",null,null,null,null,null,null,"中川村","八百津町",null,"長久手市",null,null,null,"熊取町","上郡町","川上村",null,null,null,null,null,null,null,null,null,null,"水巻町",null,null,"湯前町",null,null,"徳之島町","八重瀬町"]
["高知県",null,"福島町","階上町",null,null,null,null,"棚倉町","阿見町",null,null,"ふじみ野市","栄町","福生市",null,null,null,null,null,null,"宮田村","白川町",null,"東郷町",null,null,null,"田尻町","佐用町","東吉野村",null,null,null,null,null,null,null,null,null,null,"岡垣町",null,null,"水上村",null,null,"天城町","多良間村"]
["福岡県",null,"知内町","新郷村",null,null,null,null,"矢祭町","河内町",null,null,"白岡市","神崎町","狛江市",null,null,null,null,null,null,"松川町","東白川村",null,"豊山町",null,null,null,"岬町","香美町",null,null,null,null,null,null,null,null,null,null,null,"遠賀町",null,null,"相良村",null,null,"伊仙町","竹富町"]
["佐賀県",null,"木古内町",null,null,null,null,null,"塙町","八千代町",null,null,"伊奈町","多古町","東大和市",null,null,null,null,null,null,"高森町","御嵩町",null,"大口町",null,null,null,"太子町","新温泉町",null,null,null,null,null,null,null,null,null,null,null,"小竹町",null,null,"五木村",null,null,"和泊町","与那国町"]
["長崎県",null,"七飯町",null,null,null,null,null,"鮫川村","五霞町",null,null,"三芳町","東庄町","清瀬市",null,null,null,null,null,null,"阿南町","白川村",null,"扶桑町",null,null,null,"河南町",null,null,null,null,null,null,null,null,null,null,null,null,"鞍手町",null,null,"山江村",null,null,"知名町"]
["熊本県",null,"鹿部町",null,null,null,null,null,"石川町","境町",null,null,"毛呂山町","九十九里町","東久留米市",null,null,null,null,null,null,"阿智村",null,null,"大治町",null,null,null,"千早赤阪村",null,null,null,null,null,null,null,null,null,null,null,null,"桂川町",null,null,"球磨村",null,null,"与論町"]
["大分県",null,"森町",null,null,null,null,null,"玉川村","利根町",null,null,"越生町","芝山町","武蔵村山市",null,null,null,null,null,null,"平谷村",null,null,"蟹江町",null,null,null,null,null,null,null,null,null,null,null,null,null,null,null,null,"筑前町",null,null,"あさぎり町"]
["宮崎県",null,"八雲町",null,null,null,null,null,"平田村",null,null,null,"滑川町","横芝光町","多摩市",null,null,null,null,null,null,"根羽村",null,null,"飛島村",null,null,null,null,null,null,null,null,null,null,null,null,null,null,null,null,"東峰村",null,null,"苓北町"]
["鹿児島県",null,"長万部町",null,null,null,null,null,"浅川町",null,null,null,"嵐山町","一宮町","稲城市",null,null,null,null,null,null,"下條村",null,null,"阿久比町",null,null,null,null,null,null,null,null,null,null,null,null,null,null,null,null,"大刀洗町"]
["沖縄県",null,"江差町",null,null,null,null,null,"古殿町",null,null,null,"小川町","睦沢町","羽村市",null,null,null,null,null,null,"売木村",null,null,"東浦町",null,null,null,null,null,null,null,null,null,null,null,null,null,null,null,null,"大木町"]
[null,null,"上ノ国町",null,null,null,null,null,"三春町",null,null,null,"川島町","長生村","あきる野市",null,null,null,null,null,null,"天龍村",null,null,"南知多町",null,null,null,null,null,null,null,null,null,null,null,null,null,null,null,null,"広川町"]
[null,null,"厚沢部町",null,null,null,null,null,"小野町",null,null,null,"吉見町","白子町","西東京市",null,null,null,null,null,null,"泰阜村",null,null,"美浜町",null,null,null,null,null,null,null,null,null,null,null,null,null,null,null,null,"香春町"]
[null,null,"乙部町",null,null,null,null,null,"広野町",null,null,null,"鳩山町","長柄町","瑞穂町",null,null,null,null,null,null,"喬木村",null,null,"武豊町",null,null,null,null,null,null,null,null,null,null,null,null,null,null,null,null,"添田町"]
[null,null,"奥尻町",null,null,null,null,null,"楢葉町",null,null,null,"ときがわ町","長南町","日の出町",null,null,null,null,null,null,"豊丘村",null,null,"幸田町",null,null,null,null,null,null,null,null,null,null,null,null,null,null,null,null,"糸田町"]
[null,null,"今金町",null,null,null,null,null,"富岡町",null,null,null,"横瀬町","大多喜町","檜原村",null,null,null,null,null,null,"大鹿村",null,null,"設楽町",null,null,null,null,null,null,null,null,null,null,null,null,null,null,null,null,"川崎町"]
[null,null,"せたな町",null,null,null,null,null,"川内村",null,null,null,"皆野町","御宿町","奥多摩町",null,null,null,null,null,null,"上松町",null,null,"東栄町",null,null,null,null,null,null,null,null,null,null,null,null,null,null,null,null,"大任町"]
[null,null,"島牧村",null,null,null,null,null,"大熊町",null,null,null,"長瀞町","鋸南町","大島町",null,null,null,null,null,null,"南木曽町",null,null,"豊根村",null,null,null,null,null,null,null,null,null,null,null,null,null,null,null,null,"赤村"]
[null,null,"寿都町",null,null,null,null,null,"双葉町",null,null,null,"小鹿野町",null,"利島村",null,null,null,null,null,null,"木祖村",null,null,null,null,null,null,null,null,null,null,null,null,null,null,null,null,null,null,null,"福智町"]
[null,null,"黒松内町",null,null,null,null,null,"浪江町",null,null,null,"東秩父村",null,"新島村",null,null,null,null,null,null,"王滝村",null,null,null,null,null,null,null,null,null,null,null,null,null,null,null,null,null,null,null,"苅田町"]
[null,null,"蘭越町",null,null,null,null,null,"葛尾村",null,null,null,"美里町",null,"神津島村",null,null,null,null,null,null,"大桑村",null,null,null,null,null,null,null,null,null,null,null,null,null,null,null,null,null,null,null,"みやこ町"]
[null,null,"ニセコ町",null,null,null,null,null,"新地町",null,null,null,"神川町",null,"三宅村",null,null,null,null,null,null,"木曽町",null,null,null,null,null,null,null,null,null,null,null,null,null,null,null,null,null,null,null,"吉富町"]
[null,null,"真狩村",null,null,null,null,null,"飯舘村",null,null,null,"上里町",null,"御蔵島村",null,null,null,null,null,null,"麻績村",null,null,null,null,null,null,null,null,null,null,null,null,null,null,null,null,null,null,null,"上毛町"]
[null,null,"留寿都村",null,null,null,null,null,null,null,null,null,"寄居町",null,"八丈町",null,null,null,null,null,null,"生坂村",null,null,null,null,null,null,null,null,null,null,null,null,null,null,null,null,null,null,null,"築上町"]
[null,null,"喜茂別町",null,null,null,null,null,null,null,null,null,"宮代町",null,"青ヶ島村",null,null,null,null,null,null,"山形村"]
[null,null,"京極町",null,null,null,null,null,null,null,null,null,"杉戸町",null,"小笠原村",null,null,null,null,null,null,"朝日村"]
[null,null,"倶知安町",null,null,null,null,null,null,null,null,null,"松伏町",null,null,null,null,null,null,null,null,"筑北村"]
[null,null,"共和町",null,null,null,null,null,null,null,null,null,null,null,null,null,null,null,null,null,null,"池田町"]
[null,null,"岩内町",null,null,null,null,null,null,null,null,null,null,null,null,null,null,null,null,null,null,"松川村"]
[null,null,"泊村",null,null,null,null,null,null,null,null,null,null,null,null,null,null,null,null,null,null,"白馬村"]
[null,null,"神恵内村",null,null,null,null,null,null,null,null,null,null,null,null,null,null,null,null,null,null,"小谷村"]
[null,null,"積丹町",null,null,null,null,null,null,null,null,null,null,null,null,null,null,null,null,null,null,"坂城町"]
[null,null,"古平町",null,null,null,null,null,null,null,null,null,null,null,null,null,null,null,null,null,null,"小布施町"]
[null,null,"仁木町",null,null,null,null,null,null,null,null,null,null,null,null,null,null,null,null,null,null,"高山村"]
[null,null,"余市町",null,null,null,null,null,null,null,null,null,null,null,null,null,null,null,null,null,null,"山ノ内町"]
[null,null,"赤井川村",null,null,null,null,null,null,null,null,null,null,null,null,null,null,null,null,null,null,"木島平村"]
[null,null,"南幌町",null,null,null,null,null,null,null,null,null,null,null,null,null,null,null,null,null,null,"野沢温泉村"]
[null,null,"奈井江町",null,null,null,null,null,null,null,null,null,null,null,null,null,null,null,null,null,null,"信濃町"]
[null,null,"上砂川町",null,null,null,null,null,null,null,null,null,null,null,null,null,null,null,null,null,null,"小川村"]
[null,null,"由仁町",null,null,null,null,null,null,null,null,null,null,null,null,null,null,null,null,null,null,"飯綱町"]
[null,null,"長沼町",null,null,null,null,null,null,null,null,null,null,null,null,null,null,null,null,null,null,"栄村"]
[null,null,"栗山町"]
[null,null,"月形町"]
[null,null,"浦臼町"]
[null,null,"新十津川町"]
[null,null,"妹背牛町"]
[null,null,"秩父別町"]
[null,null,"雨竜町"]
[null,null,"北竜町"]
[null,null,"沼田町"]
[null,null,"鷹栖町"]
[null,null,"東神楽町"]
[null,null,"当麻町"]
[null,null,"比布町"]
[null,null,"愛別町"]
[null,null,"上川町"]
[null,null,"東川町"]
[null,null,"美瑛町"]
[null,null,"上富良野町"]
[null,null,"中富良野町"]
[null,null,"南富良野町"]
[null,null,"占冠村"]
[null,null,"和寒町"]
[null,null,"剣淵町"]
[null,null,"下川町"]
[null,null,"美深町"]
[null,null,"音威子府村"]
[null,null,"中川町"]
[null,null,"幌加内町"]
[null,null,"増毛町"]
[null,null,"小平町"]
[null,null,"苫前町"]
[null,null,"羽幌町"]
[null,null,"初山別村"]
[null,null,"遠別町"]
[null,null,"天塩町"]
[null,null,"猿払村"]
[null,null,"浜頓別町"]
[null,null,"中頓別町"]
[null,null,"枝幸町"]
[null,null,"豊富町"]
[null,null,"礼文町"]
[null,null,"利尻町"]
[null,null,"利尻富士町"]
[null,null,"幌延町"]
[null,null,"美幌町"]
[null,null,"津別町"]
[null,null,"斜里町"]
[null,null,"清里町"]
[null,null,"小清水町"]
[null,null,"訓子府町"]
[null,null,"置戸町"]
[null,null,"佐呂間町"]
[null,null,"遠軽町"]
[null,null,"湧別町"]
[null,null,"滝上町"]
[null,null,"興部町"]
[null,null,"西興部村"]
[null,null,"雄武町"]
[null,null,"大空町"]
[null,null,"豊浦町"]
[null,null,"壮瞥町"]
[null,null,"白老町"]
[null,null,"厚真町"]
[null,null,"洞爺湖町"]
[null,null,"安平町"]
[null,null,"むかわ町"]
[null,null,"日高町"]
[null,null,"平取町"]
[null,null,"新冠町"]
[null,null,"浦河町"]
[null,null,"様似町"]
[null,null,"えりも町"]
[null,null,"新ひだか町"]
[null,null,"音更町"]
[null,null,"士幌町"]
[null,null,"上士幌町"]
[null,null,"鹿追町"]
[null,null,"新得町"]
[null,null,"清水町"]
[null,null,"芽室町"]
[null,null,"中札内村"]
[null,null,"更別村"]
[null,null,"大樹町"]
[null,null,"広尾町"]
[null,null,"幕別町"]
[null,null,"池田町"]
[null,null,"豊頃町"]
[null,null,"本別町"]
[null,null,"足寄町"]
[null,null,"陸別町"]
[null,null,"浦幌町"]
[null,null,"釧路町"]
[null,null,"厚岸町"]
[null,null,"浜中町"]
[null,null,"標茶町"]
[null,null,"弟子屈町"]
[null,null,"鶴居村"]
[null,null,"白糠町"]
[null,null,"別海町"]
[null,null,"中標津町"]
[null,null,"標津町"]
[null,null,"羅臼町"]
[null,null,"色丹村"]
[null,null,"泊村"]
[null,null,"留夜別村"]
[null,null,"留別村"]
[null,null,"紗那村"]
[null,null,"蘂取村"]

{"sheet":"H25_H26","index":2,"n_rows":76,"n_cols":3,"rows_kept":76,"cut":false,"hidden":true,"merged":[]}
["平成26年度　75業種","平成25年度　75業種","差異"]
["部分肉・冷凍肉製造業","部分肉・冷凍肉製造業",{"$f":"EXACT(A2,B2)","v":true}]
["肉加工品製造業","肉加工品製造業",{"$f":"EXACT(A3,B3)","v":true}]
["牛乳・乳製品製造業","牛乳・乳製品製造業",true]
["その他の畜産食料品製造業","その他の畜産食料品製造業",true]
["水産缶詰・瓶詰製造業","水産缶詰・瓶詰製造業",true]
["海藻加工業","海藻加工業",true]
["塩干・塩蔵品製造業","塩干・塩蔵品製造業",true]
["水産練製品製造業","水産練製品製造業",true]
["冷凍水産物製造業","冷凍水産物製造業",true]
["冷凍水産食品製造業","冷凍水産食品製造業",true]
["その他の水産食料品製造業","その他の水産食料品製造業",true]
["野菜缶詰・果実缶詰・農産保存食料品製造業（野菜漬物を除く。）","野菜缶詰・果実缶詰・農産保存食料品製造業（野菜漬物を除く。）",true]
["野菜漬物製造業","野菜漬物製造業",true]
["しょうゆ製造業","しょうゆ製造業",true]
["味そ製造業","味そ製造業",true]
["ソース製造業","ソース製造業",{"$f":"EXACT(A17,B17)","v":true}]
["食酢製造業","食酢製造業",true]
["その他の調味料製造業","その他の調味料製造業",true]
["甘しゃ糖製造業","甘しゃ糖製造業",true]
["てん菜糖製造業","てん菜糖製造業",true]
["砂糖精製業","砂糖精製業",true]
["ぶどう糖・水あめ・異性化糖製造業","ぶどう糖・水あめ・異性化糖製造業",true]
["精米・精麦業","精米・精麦業",true]
["小麦粉製造業","小麦粉製造業",true]
["その他の精穀・製粉業","その他の精穀・製粉業",true]
["パン製造業","パン製造業",true]
["菓子製造業","菓子製造業",true]
["動植物油脂製造業（食用油脂加工業を除く。）","動植物油脂製造業（食用油脂加工業を除く。）",true]
["食用油脂加工業","食用油脂加工業",true]
["でん粉製造業","でん粉製造業",true]
["麺類製造業","麺類製造業",true]
["豆腐・油揚製造業","豆腐・油揚製造業",true]
["あん類製造業","あん類製造業",true]
["冷凍調理食品製造業","冷凍調理食品製造業",true]
["そう菜製造業","そう菜製造業",true]
["すし・弁当・調理パン製造業","すし・弁当・調理パン製造業",true]
["レトルト食品製造業","レトルト食品製造業",true]
["他に分類されない食料品製造業","他に分類されない食料品製造業",true]
["清涼飲料製造業（茶、コーヒー、果汁など残さが出るものに限る。）","清涼飲料製造業（茶、コーヒー、果汁など残さが出るものに限る。）",true]
["清涼飲料製造業（その他）","清涼飲料製造業（その他）",true]
["果実酒製造業","果実酒製造業",true]
["ビール類製造業","ビール類製造業",true]
["清酒製造業","清酒製造業",true]
["単式蒸留焼酎製造業","単式蒸留焼酎製造業",true]
["蒸留酒・混成酒製造業（単式蒸留焼酎製造業を除く。）","蒸留酒・混成酒製造業（単式蒸留焼酎製造業を除く。）",true]
["製茶業","製茶業",true]
["コーヒー製造業","コーヒー製造業",true]
["米麦卸売業・雑穀卸売業","米麦卸売業・雑穀卸売業",{"$f":"EXACT(A49,B49)","v":true}]
["野菜卸売業・果実卸売業","野菜卸売業・果実卸売業",true]
["生鮮魚介卸売業","生鮮魚介卸売業",true]
["食肉卸売業","食肉卸売業",true]
["その他の農畜産物・水産物卸売業","その他の農畜産物・水産物卸売業",true]
["食料・飲料卸売業（飲料を中心とするものに限る。）","食料・飲料卸売業（飲料を中心とするものに限る。）",true]
["食料・飲料卸売業（飲料を中心とするものを除く。）","食料・飲料卸売業（飲料を中心とするものを除く。）",true]
["各種食料品小売業","各種食料品小売業",true]
["野菜・果実小売業","野菜・果実小売業",true]
["食肉小売業（卵・鳥肉を除く。）","食肉小売業（卵・鳥肉を除く。）",true]
["卵・鳥肉小売業","卵・鳥肉小売業",true]
["鮮魚小売業","鮮魚小売業",true]
["酒小売業","酒小売業",true]
["菓子・パン小売業","菓子・パン小売業",true]
["コンビニエンスストア","コンビニエンスストア",true]
["その他の飲食料品小売業（コンビニエンスストアを除く。）","その他の飲食料品小売業（コンビニエンスストアを除く。）",true]
["食堂・レストラン（麺類を中心とするものに限る。）","食堂・レストラン（麺類を中心とするものに限り、そば・うどん店を含む。）",false]
["食堂・レストラン（麺類を中心とするものを除く。）","食堂・レストラン（麺類を中心とするものを除き、すし店を含む。）",false]
["居酒屋等","居酒屋等",true]
["喫茶店","喫茶店",true]
["ファーストフード店","ファーストフード店",true]
["その他の飲食店(ファーストフード店を除く。）","その他の飲食店(ファーストフード店を除く。）",true]
["持ち帰り・配達飲食サービス業(給食事業を除く。)","持ち帰り・配達飲食サービス業(給食事業を除く。)",true]
["給食事業","給食事業",true]
["沿海旅客海運業","沿海旅客海運業",true]
["内陸水運業","内陸水運業",true]
["結婚式場業","結婚式場業",true]
["旅館業","旅館業",true]

{"sheet":"別表","index":3,"n_rows":88,"n_cols":14,"rows_kept":88,"cut":false,"hidden":false,"merged":[[28,1,31,3],[28,7,31,9],[34,6,37,6],[34,7,37,7],[34,8,37,8],[34,9,37,9],[34,10,37,10],[34,11,37,11],[33,0,37,0],[33,1,37,1],[33,3,37,3],[33,4,33,11],[34,4,37,4],[34,5,37,5],[33,2,37,2]]}
[]
[]
[]
[]
[]
[]
[]
[]
[]
[]
[]
[]
[]
[]
[]
[]
[]
[]
[]
[]
[]
[]
[]
[]
[]
[]
[]
[]
[null,"不要な行を削除したい場合は、その行を選択して左のボタンを押してください。\n確認メッセージは出ませんので、使用の際はご注意ください。",null,null,null,null,null," 表の行が足りない場合、右のテキスト\n ボックスに追加したい行数を入力して\n 「追加」ボタンを押してください。"]
[]
[]
[]
["表6-1　都道府県及び市町村別の食品廃棄物等の発生量及び再生利用の実施量（別表）"]
["業種","都道府県名","\n\n\n市町村名\n\n※「郡名」は入力しないでください。","発生量（ｔ）","再生利用の実施量（ｔ）"]
[null,null,null,null,"合計","肥料","飼料","きのこ類の栽培のために使用される固形状の培地","炭化の過程を経て製造される燃料・還元剤","油脂･油脂製品","エタノール","メタン"]
[]
[]
[]
[null,null,null,null,{"$f":"SUM(F39:L39)","v":0},null,null,null,null,null,null,null,null,"start"]
[null,null,null,null,{"$f":"SUM(F40:L40)","v":0}]
[null,null,null,null,{"$f":"SUM(F41:L41)","v":0}]
[null,null,null,null,{"$f":"SUM(F42:L42)","v":0}]
[null,null,null,null,{"$f":"SUM(F43:L43)","v":0}]
[null,null,null,null,{"$f":"SUM(F44:L44)","v":0}]
[null,null,null,null,0]
[null,null,null,null,0]
[null,null,null,null,0]
[null,null,null,null,0]
[null,null,null,null,0]
[null,null,null,null,0]
[null,null,null,null,0]
[null,null,null,null,0]
[null,null,null,null,0]
[null,null,null,null,0]
[null,null,null,null,0]
[null,null,null,null,0]
[null,null,null,null,{"$f":"SUM(F57:L57)","v":0}]
[null,null,null,null,0]
[null,null,null,null,0]
[null,null,null,null,0]
[null,null,null,null,0]
[null,null,null,null,0]
[null,null,null,null,0]
[null,null,null,null,0]
[null,null,null,null,0]
[null,null,null,null,0]
[null,null,null,null,0]
[null,null,null,null,0]
[null,null,null,null,0]
[null,null,null,null,0]
[null,null,null,null,0]
[null,null,null,null,0]
[null,null,null,null,0]
[null,null,null,null,0]
[null,null,null,null,0]
[null,null,null,null,0]
[null,null,null,null,0]
[null,null,null,null,0]
[null,null,null,null,{"$f":"SUM(F79:L79)","v":0}]
[null,null,null,null,0]
[null,null,null,null,0]
[null,null,null,null,0]
[null,null,null,null,0]
[null,null,null,null,0]
[null,null,null,null,0]
[null,null,null,null,0]
[null,null,null,null,0]
[null,null,null,null,0,null,null,null,null,null,null,null,null,"end"]

{"sheet":"様式","index":4,"n_rows":123,"n_cols":11,"rows_kept":123,"cut":false,"hidden":true,"merged":[[22,1,25,1],[26,1,31,1],[37,1,43,1],[1,1,17,1],[18,1,21,1],[32,1,36,1],[44,1,75,1],[108,1,118,1],[76,1,78,1],[79,1,81,1],[82,1,88,1],[89,1,91,1],[103,1,107,1],[92,1,102,1]]}
["№","表位置","名称","セル（列）","セル（行）","表番号","名細部","桁数","少数点","必須","数値属性"]
[1,"Top　　（表紙）","受理年月日（月）","AM",30,0,null,"－",null,"－"]
[null,null,"受理年月日（日）","AS",30,0]
[2,null,"宛先大臣","B",36,0,null,"－",null,"－"]
[3,null,"報告年月日（年）","AD",38,0,null,8,null,"◎"]
[null,null,"報告年月日（月）","AI",38,0,null,null,null,"◎"]
[null,null,"報告年月日（日）","AN",38,0,null,null,null,"◎"]
[4,null,"住所（都道府県名）","AE",40,0,null,"－",null,"◎"]
[5,null,"住所（市区町村以下）","AL",40,0,null,50,null,"◎"]
[6,null,"氏名","AE",42,0,null,50,null,"◎"]
[7,null,"電話番号","AG",46,0,null,13,null,"◎","○"]
[8,null,"事業者名","N",50,0,null,50,null,"◎"]
[9,null,"住所（郵便番号　その１）","T",51,0,null,3,null,"◎","○"]
[null,null,"住所（郵便番号　その２）","Z",51,0,null,4,null,"◎","○"]
[10,null,"住所","N",52,0,null,54,null,"◎"]
[11,null,"業種","***","***",0,null,"－",null,"◎"]
[12,null,"法第９条第２項に規定する事業の有無","N",56,0,null,"－",null,"◎"]
[13,null,"報告書作成責任者氏名","N",57,0,null,100,null,"◎"]
[14,"表1","業種","***","***",1,"○","－",null,"○"]
[15,null,"発生量（ｔ）","AB",61,1,"○",12,1,"○","○"]
[16,null,"発生量（ｔ）[合計]","AB",63,1,null,"－",null,"－"]
[17,null,"発生量の把握方法","AB",64,1,null,400,null,"○"]
[18,"表2","業種","***","***",2,"○","－",null,"○"]
[19,null,"名称","O",69,2,"○",15,null,"○"]
[20,null,"単位","AB",69,2,"○",5,null,"○"]
[21,null,"値","AO",69,2,"○",12,1,"○","○"]
[22,"表3","業種","***","***",3,"○","－",null,"○"]
[23,null,"発生原単位[数値]","O",75,3,"○",10,5,"－","○"]
[24,null,"対前年度比（%）","AB",75,3,"○",10,null,"○","△"]
[25,null,"基準発生原単位[数値]","AO",75,3,"○",12,1,"○","○"]
[null,null,"基準発生原単位[単位]","AU",75,3,"○",10,null,"－"]
[26,null,"発生原単位が対前年度比で１００％を超えた理由又は発生原単位が基準発生原単位を上回った理由","O",77,3,null,400,null,"－"]
[27,"表4","業種","***","***",4,"○","－",null,"○"]
[28,null,"平成１９年度発生原単位(⑤=平成１９年度の①÷平成１９年度の②)[数値]","R",81,4,"○",12,1,"○","○"]
[null,null,"平成１９年度発生原単位(⑤=平成１９年度の①÷平成１９年度の②)[単位]","AA",81,4,"○",10,null,"○"]
[29,null,"発生抑制の実施量（ｔ）","AJ",81,4,"○",12,1,"○","○"]
[30,null,"発生抑制の実施量（ｔ）[合計]","AJ",83,4,null,"－",null,"－"]
[31,"表5","業種","***","***",5,"○","－"]
[32,null,"特定肥飼料等の種類","R",87,5,"○",30]
[33,null,"再生利用の実施量（ｔ）","AJ",87,5,"○",12,1,null,"○"]
[34,null,"再生利用の実施量（ｔ）[小計]","AJ",93,5,"○","－"]
[35,null,"特定肥飼料等の種類[合計]","R",101,5,null,30]
[36,null,"再生利用の実施量（ｔ）[合計]","AJ",101,5,null,"－"]
[37,null,"再生利用の実施量（ｔ）[総計]","AJ",108,5,null,"－"]
[38,"表6","業種","***","***",6,"○","－"]
[39,null,"都道府県名","G",116,6,"○","－"]
[110,null,"市区町村","L",116,6,"○",3,null,null,"○"]
[40,null,"発生量（ｔ）","M",116,6,"○",12,1,null,"○"]
[41,null,"合計（ｔ）","S",116,6,"○",12,1,null,"○"]
[42,null,"肥料（ｔ）","Y",116,6,"○",12,1,null,"○"]
[43,null,"飼料（ｔ）","AD",116,6,"○",12,1,null,"○"]
[111,null,"きのこ類の栽培のために使用される固形状の培地（ｔ）","AI",116,6,"○",12,1,null,"○"]
[44,null,"炭化の過程を経て製造される燃料・還元剤（ｔ）","AN",116,6,"○",12,1,null,"○"]
[45,null,"油脂･油脂製品（ｔ）","AS",116,6,"○",12,1,null,"○"]
[46,null,"エタノール（ｔ）","AX",116,6,"○",12,1,null,"○"]
[47,null,"メタン（ｔ）","BC",116,6,"○",12,1,null,"○"]
[112,null,"市区町村[小計]","L",163,6,"○",4,1,null,"○"]
[48,null,"発生量（ｔ）[小計]","M",163,6,"○",12,1,null,"○"]
[49,null,"合計（ｔ）[小計]","S",163,6,"○",12,1,null,"○"]
[50,null,"肥料（ｔ）[小計]","Y",163,6,"○",12,1,null,"○"]
[51,null,"飼料（ｔ）[小計]","AD",163,6,"○",12,1,null,"○"]
[113,null,"きのこ類の栽培のために使用される固形状の培地（ｔ）[小計]","AI",163,6,"○",12,1,null,"○"]
[52,null,"炭化の過程を経て製造される燃料・還元剤（ｔ）[小計]","AN",163,6,"○",12,1,null,"○"]
[53,null,"油脂･油脂製品（ｔ）[小計]","AS",163,6,"○",12,1,null,"○"]
[54,null,"エタノール（ｔ）[小計]","AX",163,6,"○",12,1,null,"○"]
[55,null,"メタン（ｔ）[小計]","BC",163,6,"○",12,1,null,"○"]
[114,null,"市区町村[合計]","L",212,6,null,5,1,null,"○"]
[56,null,"発生量（ｔ）[合計]","M",212,6,null,12,1,null,"○"]
[57,null,"合計（ｔ）[合計]","S",212,6,null,12,1,null,"○"]
[58,null,"肥料（ｔ）[合計]","Y",212,6,null,12,1,null,"○"]
[59,null,"飼料（ｔ）[合計]","AD",212,6,null,12,1,null,"○"]
[115,null,"きのこ類の栽培のために使用される固形状の培地（ｔ）[合計]","AI",212,6,null,12,1,null,"○"]
[60,null,"炭化の過程を経て製造される燃料・還元剤（ｔ）[合計]","AN",212,6,null,12,1,null,"○"]
[61,null,"油脂･油脂製品（ｔ）[合計]","AS",212,6,null,12,1,null,"○"]
[62,null,"エタノール（ｔ）[合計]","AX",212,6,null,12,1,null,"○"]
[63,null,"メタン（ｔ）[合計]","BC",212,6,null,12,1,null,"○"]
[64,"表7","業種","***","***",7,"○","－"]
[65,null,"熱回収の実施量（ｔ）","AB",216,7,"○",12,1,null,"○"]
[66,null,"熱回収の実施量（ｔ）[合計]","AB",218,7,null,"－"]
[67,"表8","業種","***","***",8,"○","－"]
[68,null,"減量の実施量（ｔ）","AB",222,8,"○",12,1,null,"○"]
[69,null,"減量の実施量（ｔ）[合計]","AB",224,8,null,"－"]
[70,"表9","業種","***","***",9,"○","－"]
[71,null,"特定肥飼料等以外の製品の種類","R",228,9,"○",20]
[72,null,"再生利用等以外の実施量（ｔ）","AJ",228,9,"○",12,1,null,"○"]
[73,null,"再生利用等以外の実施量（ｔ）[小計]","AJ",233,9,"○","－"]
[74,null,"特定肥飼料等以外の製品の種類[合計]","R",234,9,null,"－"]
[75,null,"再生利用等以外の実施量（ｔ）[合計]","AJ",240,9,null,12,1,null,"○"]
[76,null,"再生利用等以外の実施量（ｔ）[総計]","AJ",245,9,null,"－"]
[77,"表10","業種","***","***",10,"○","－"]
[78,null,"廃棄物としての処分の実施量（ｔ）","AB",249,10,"○",12,1,null,"○"]
[79,null,"廃棄物としての処分の実施量（ｔ）[合計]","AB",251,10,null,"－"]
[80,"表11","平成19年度及び直近５年度の基準実施率（％）","－","－",11,null,"－",null,"－"]
[81,null,"基準実施率(%)　平成１９年度","A",256,11,null,3,1,"○","□"]
[82,null,"基準実施率(%)　○○年度　※当年度の－４年度","J",256,11,null,3,1,"○","□"]
[83,null,"基準実施率(%)　○○年度　※当年度の－３年度","S",256,11,null,3,1,"○","□"]
[84,null,"基準実施率(%)　○○年度　※当年度の－２年度","AB",256,11,null,3,1,"○","□"]
[85,null,"基準実施率(%)　○○年度　※当年度の－１年度","AK",256,11,null,3,1,"○","□"]
[86,null,"基準実施率(%)　○○年度　※報告書の対象当年度","AT",256,11,null,3,1,"○","□"]
[87,null,"当年度の再生利用等実施率[再生利用等の実施率(%)]","AB",258,11,null,"－"]
[88,null,"業種","***","***",11,"○","－",null,"○"]
[89,null,"再生利用等の実施率(%)","AB",260,11,"○","－"]
[90,null,"再生利用等の実施率が基準実施率を下回った理由","AB",261,11,null,400,null,"－"]
[91,"表12","氏名（法人にあっては名称及び代表者の氏名）","AF",265,12,null,50]
[92,null,"業者住所（都道府県名）","J",266,12,null,"－"]
[93,null,"業者住所（市区町村以下）","Q",266,12,null,50]
[94,null,"業者再生利用の実施量（ｔ）","AF",267,12,null,12,1,null,"○"]
[95,null,"業者特定肥飼料等の種類","AF",268,12,null,"－"]
[96,"表13","業種","***","***",13,"○","－"]
[97,null,"熱量（MJ）","N",287,13,"○",12,1,null,"○"]
[98,null,"電気の量（MJ）","AH",287,13,"○",12,1,null,"○"]
[99,null,"熱量（MJ）[合計]","N",289,13,null,"－",null,"－"]
[100,null,"電気の量（MJ）[合計]","AH",289,13,null,"－",null,"－"]
[101,null,"氏名（法人にあっては名称及び代表者の氏名）","AH",290,13,null,50]
[102,null,"業者住所（都道府県名）","J",291,13,null,"－"]
[103,null,"業者住所（市区町村以下）","Q",291,13,null,50]
[104,null,"業者熱回収の実施量（ｔ）","X",292,13,null,12,1,null,"○"]
[105,null,"業者熱量（MJ）","R",293,13,null,12,1,null,"○"]
[106,null,"業者電気の量（MJ）","AP",293,13,null,12,1,null,"○"]
[107,"表14","判断の基準となるべき事項の遵守状況","AR",301,14,null,"－",null,"○"]
[108,"表15","食品循環資源の再生利用等の促進に関する食品関連事業者の判断の基準となるべき事項を定める省令第10条第２項の情報の提供の方法","A",366,15,null,400]
[109,"表16","その他の食品循環資源の再生利用等の促進のために実施した取組","A",369,16,null,400]
[110,"表17","国が公表を行うことについての同意の有無","A",372,17,null,"－",null,"○"]

{"sheet":"入力を始める前に","index":5,"n_rows":27,"n_cols":1,"rows_kept":27,"cut":false,"hidden":false,"merged":[]}
[]
[]
[]
[]
["ご確認ください"]
[]
["本エクセル起動時にこの警告文が表示される場合は、マクロが無効化されています。※"]
[]
["マクロが無効化されていると、本エクセルの入力補助機能が利用できません。"]
[]
["下記の手順に基づき、マクロを有効化して再度エクセルを開き直してください。"]
[]
["※本ファイルの保存時に自動的に本シートが表示されますが、次に開く時のためにそのようになっております。\n　一時保存の方は、お手数ですが手動でSheet1シートの表示をお願いいたします。\n　（エクセル2010の場合、保存後に自動的にSheet1に戻ります。）"]
[]
[]
["・マクロの有効化の方法"]
["　入力を始める前に、必ず下記事項に従ってマクロの有効化を行って下さい。"]
["(1) エクセル2010 の場合 ： メッセージバーに表示されたセキュリティ警告の 「コンテンツを有効化」をクリックし、マクロを有効にする"]
["注 1 ： 本様式は、マクロ（計算プログラム）により各項目のデータの置き換えや計算等を行っております。マクロを有効化せずに数値の入力を行った場合、各項目に業種名等が反映されない、最終チェックが機能しないなどの誤作動が生じ、再入力が必要となってしまいます。"]
["注 2 ： エクセル2010の場合、マクロの設定によってはセキュリティ警告が表示されない場合があります。よって、下記の方法により、設定を変更してから本様式の入力を行って下さい。"]
["1. Office ボタン  →  2. Excelのオプション  →  3. セキュリティセンター（セキュリティセンターの設定）  →  4. マクロの設定について、「警告を表示してすべてのマクロを無効にする(D)」にチェック"]
[]
[]
["・マクロの有効化の確認方法"]
["　このエクセルファイルは警告シートを表示した状態で保存されており、ファイルを開く際にマクロ機能により自動的に警告シートからSheet1シート（本報告業務の入力用シート）に移動するように作成されております。"]
["　したがって、マクロの有効化の確認のため、本エクセルファイルを一旦閉じて、開き直してください。"]
["　本画面が表示されなければ、マクロが有効化されています。"]